Ref No,Fund Type,Dept,Cost Centre Description    ,Description    ,Creditor Name    ,GL Code Net Amount,Payment date        
2,Revenue,CCHD,Bed Purchasing - South,Permanent Nursing,.,1320.2, 23-Dec-2014
3,Revenue,CCHD,18-25 Year Olds,Permanent Residential,1 St Georges House,13206.6, 23-Dec-2014
4,Revenue,CCHD,Breakthrough and Inclusion Work,Other Supplies & Services,121Turnaround Limited,3413.16, 18-Dec-2014
5,Revenue,CCHD,Breakthrough and Inclusion Work,Other Supplies & Services,121Turnaround Limited,3689.57, 17-Dec-2014
6,Revenue,CCHD,Supporting People Programme,Grants to Voluntary Bodies,1625 Independent People,16692.5, 01-Dec-2014
7,Revenue,CCHD,Home Care - Elderly - South,Other Small Contracts,3 Trees Community Support Ltd,196.68, 05-Dec-2014
8,Revenue,CCHD,Home Care - Elderly - North,Day Care / Social Activities,3 Trees Community Support Ltd,1546.62, 05-Dec-2014
9,Revenue,CCHD,Home Care - Elderly - North,Other Small Contracts,3 Trees Community Support Ltd,1081.74, 05-Dec-2014
10,Revenue,CCHD,Home Care - Elderly - North,Supported Living,3 Trees Community Support Ltd,8638.26, 05-Dec-2014
11,Revenue,CCHD,Home Care - Elderly - South,Other Small Contracts,3 Trees Community Support Ltd,196.68, 11-Dec-2014
12,Revenue,CCHD,Home Care - Elderly - North,Day Care / Social Activities,3 Trees Community Support Ltd,1519.8, 11-Dec-2014
13,Revenue,CCHD,Home Care - Elderly - North,Other Small Contracts,3 Trees Community Support Ltd,1265.01, 11-Dec-2014
14,Revenue,CCHD,Home Care - Elderly - North,Supported Living,3 Trees Community Support Ltd,8626.4, 11-Dec-2014
15,Revenue,CCHD,Home Care - Elderly - South,Other Small Contracts,3 Trees Community Support Ltd,196.68, 05-Dec-2014
16,Revenue,CCHD,Home Care - Elderly - North,Day Care / Social Activities,3 Trees Community Support Ltd,1850.58, 05-Dec-2014
17,Revenue,CCHD,Home Care - Elderly - North,Other Small Contracts,3 Trees Community Support Ltd,1180.08, 05-Dec-2014
18,Revenue,CCHD,Home Care - Elderly - North,Supported Living,3 Trees Community Support Ltd,9322.07, 05-Dec-2014
19,Revenue,CCHD,Home Care - Elderly - South,Other Small Contracts,3 Trees Community Support Ltd,192.21, 11-Dec-2014
20,Revenue,CCHD,Home Care - Elderly - North,Day Care / Social Activities,3 Trees Community Support Ltd,1841.64, 11-Dec-2014
21,Revenue,CCHD,Home Care - Elderly - North,Other Small Contracts,3 Trees Community Support Ltd,1372.29, 11-Dec-2014
22,Revenue,CCHD,Home Care - Elderly - North,Supported Living,3 Trees Community Support Ltd,8641.14, 11-Dec-2014
23,Revenue,CCHD,Home Care - Elderly - North,Other Small Contracts,3 Trees Community Support Ltd,3958.62, 05-Dec-2014
24,Revenue,CCHD,Bed Purchasing - South,Permanent Residential,5Th Floor Harlech Court,16062.2, 23-Dec-2014
25,Revenue,CCHD,18-25 Year Olds,Permanent Residential,5Th Floor Harlech Court,13689.08, 23-Dec-2014
26,Revenue,CCHD,18-25 Year Olds,Permanent Residential,5Th Floor Harlech Court,13962.28, 23-Dec-2014
27,Revenue,CCHD,18-25 Year Olds,Permanent Residential,5Th Floor Harlech Court,12849.84, 23-Dec-2014
28,Revenue,CCHD,Bed Purchasing - North,Permanent Residential,5Th Floor Harlech Court,16589.72, 23-Dec-2014
29,Revenue,CCHD,18-25 Year Olds,Permanent Residential,5Th Floor Harlech Court,15754.12, 23-Dec-2014
30,Revenue,CCHD,Bed Purchasing - South,Permanent Residential,5Th Floor Harlech Court,9301.84, 23-Dec-2014
31,Revenue,CCHD,Bed Purchasing - South,Permanent Nursing,5Th Floor Harlech Court,53645.97, 23-Dec-2014
32,Revenue,CCHD,Bed purchasing - S28A Under 65 - South,Permanent Residential,5Th Floor Harlech Court,10570.16, 23-Dec-2014
33,Revenue,CCHD,Bed purchasing - S28A Under 65 - South,Permanent Residential,5Th Floor Harlech Court,10717.48, 23-Dec-2014
34,Revenue,CCHD,Bed Purchasing - South,Permanent Nursing,5Th Floor Harlech Court,10240.88, 23-Dec-2014
35,Revenue,CCHD,Bed Purchasing - South,Permanent Nursing,5Th Floor Harlech Court,92402.45, 23-Dec-2014
36,Revenue,CCHD,Bed Purchasing - North,Permanent Nursing,ABI Development Limited,6970.24, 23-Dec-2014
37,Revenue,CCHD,Housing Needs,Storage & Removal,Ablemove-Wottons,460, 04-Dec-2014
38,Revenue,CCHD,Housing Needs,Storage & Removal,Ablemove-Wottons,450, 04-Dec-2014
39,Revenue,CCHD,Housing Needs,Storage & Removal,Ablemove-Wottons,560, 04-Dec-2014
40,Revenue,CCHD,Housing Needs,Storage & Removal,Ablemove-Wottons,460, 04-Dec-2014
41,Revenue,CCHD,Housing Needs,Storage & Removal,Ablemove-Wottons,670, 04-Dec-2014
42,Revenue,CCHD,Bed and Breakfast,Storage & Removal,Ablemove-Wottons,460, 15-Dec-2014
43,Revenue,CCHD,Bed and Breakfast,Storage & Removal,Ablemove-Wottons,432, 15-Dec-2014
44,Revenue,CCHD,Housing Needs,Storage & Removal,Ablemove-Wottons,480, 04-Dec-2014
45,Revenue,CCHD,Housing Needs,Storage & Removal,Ablemove-Wottons,480, 04-Dec-2014
46,Revenue,CCHD,Day Care - North,Day Care / Social Activities,About Me Care and Support Limited,765.86, 16-Dec-2014
47,Revenue,CCHD,Day Care - North,Day Care / Social Activities,About Me Care and Support Limited,740.16, 01-Dec-2014
48,Revenue,CCHD,Day Care - South,Day Care / Social Activities,About Me Care and Support Limited,1216.05, 19-Dec-2014
49,Revenue,CCHD,Day Care - North,Day Care / Social Activities,About Me Care and Support Limited,750.44, 17-Dec-2014
50,Revenue,CCHD,Day Care - South,Day Care / Social Activities,About Me Care and Support Limited,800.69, 19-Dec-2014
51,Revenue,CCHD,Home Care - Elderly - South,Other Small Contracts,Agincare Chippenham,1349, 01-Dec-2014
52,Revenue,CCHD,Home Care - Elderly - South,Other Small Contracts,Agincare Chippenham,1052.6, 05-Dec-2014
53,Revenue,CCHD,Home Care - Elderly - South,Other Small Contracts,Agincare Chippenham,771.4, 11-Dec-2014
54,Revenue,CCHD,Home Care - Elderly - South,Other Small Contracts,Agincare Chippenham,1330, 23-Dec-2014
55,Revenue,CCHD,Home Care - Elderly - South,Other Small Contracts,Agincare Chippenham,1406, 23-Dec-2014
56,Revenue,CCHD,Home Care - Elderly - South,Other Small Contracts,Agincare UK Limited,513, 01-Dec-2014
57,Revenue,CCHD,Home Care - Elderly - North,Other Small Contracts,Agincare UK Limited,114, 01-Dec-2014
58,Revenue,CCHD,Elderly MH Day Care North,Day Care / Social Activities,Agincare UK Limited,49.4, 01-Dec-2014
59,Revenue,CCHD,Home Care - Elderly - South,Other Small Contracts,Agincare UK Limited,478.8, 02-Dec-2014
60,Revenue,CCHD,Home Care - Elderly - North,Other Small Contracts,Agincare UK Limited,117.8, 02-Dec-2014
61,Revenue,CCHD,Elderly MH Day Care North,Day Care / Social Activities,Agincare UK Limited,57, 02-Dec-2014
62,Revenue,CCHD,Home Care - Elderly - South,Other Small Contracts,Agincare UK Limited,478.8, 19-Dec-2014
63,Revenue,CCHD,Home Care - Elderly - North,Other Small Contracts,Agincare UK Limited,114, 19-Dec-2014
64,Revenue,CCHD,Elderly MH Day Care North,Day Care / Social Activities,Agincare UK Limited,49.4, 19-Dec-2014
65,Revenue,CCHD,Home Care - Elderly - South,Other Small Contracts,Agincare UK Limited,459.8, 19-Dec-2014
66,Revenue,CCHD,Home Care - Elderly - North,Other Small Contracts,Agincare UK Limited,155.8, 19-Dec-2014
67,Revenue,CCHD,Elderly MH Day Care North,Day Care / Social Activities,Agincare UK Limited,57, 19-Dec-2014
68,Revenue,CCHD,Home Care - Elderly - South,Other Small Contracts,Agincare UK Limited,357.2, 23-Dec-2014
69,Revenue,CCHD,Home Care - Elderly - North,Other Small Contracts,Agincare UK Limited,163.4, 23-Dec-2014
70,Revenue,CCHD,Elderly MH Day Care North,Day Care / Social Activities,Agincare UK Limited,41.8, 23-Dec-2014
71,Revenue,CCHD,Home Care - Elderly - North,Other Small Contracts,Agincare UK Nutfield,1485.8, 01-Dec-2014
72,Revenue,CCHD,Home Care - Elderly - North,Other Small Contracts,Agincare UK Nutfield,1531.4, 05-Dec-2014
73,Revenue,CCHD,Home Care - Elderly - North,Other Small Contracts,Agincare UK Nutfield,1858.2, 11-Dec-2014
74,Revenue,CCHD,Home Care - Elderly - North,Day Care / Social Activities,Agincare UK Nutfield,49.4, 19-Dec-2014
75,Revenue,CCHD,Home Care - Elderly - North,Other Small Contracts,Agincare UK Nutfield,1789.8, 19-Dec-2014
76,Revenue,CCHD,Home Care - Elderly - North,Other Small Contracts,Agincare UK Nutfield,1865.8, 23-Dec-2014
77,Revenue,CCHD,Home Care - Elderly - South,Other Small Contracts,AliMo Care Ltd,817.74, 03-Dec-2014
78,Revenue,CCHD,Home Care - Elderly - North,Other Small Contracts,AliMo Care Ltd,995.25, 03-Dec-2014
79,Revenue,CCHD,Home Care - Elderly - South,Other Small Contracts,AliMo Care Ltd,1017.74, 11-Dec-2014
80,Revenue,CCHD,Home Care - Elderly - North,Other Small Contracts,AliMo Care Ltd,728.67, 11-Dec-2014
81,Revenue,CCHD,Home Care - Elderly - South,Other Small Contracts,AliMo Care Ltd,1369.06, 17-Dec-2014
82,Revenue,CCHD,Home Care - Elderly - North,Other Small Contracts,AliMo Care Ltd,497.63, 17-Dec-2014
83,Revenue,CCHD,Home Care - Elderly - South,Other Small Contracts,AliMo Care Ltd,1356.67, 24-Dec-2014
84,Revenue,CCHD,Home Care - Elderly - North,Other Small Contracts,AliMo Care Ltd,497.63, 24-Dec-2014
85,Revenue,CCHD,Home Care - Elderly - South,Other Small Contracts,AliMo Care Ltd,1307.11, 24-Dec-2014
86,Revenue,CCHD,Home Care - Elderly - North,Other Small Contracts,AliMo Care Ltd,497.63, 24-Dec-2014
87,Revenue,CCHD,Bed Purchasing - Southmead Hospital,Permanent Nursing,Ambleside Nusing Ho!,1443.84, 23-Dec-2014
88,Revenue,CCHD,Supporting People Programme,Grants to Voluntary Bodies,Anchor Housing,895.5, 01-Dec-2014
89,Revenue,CCHD,Bed Purchasing - North,Permanent Residential,Ark Care Homes Ltd,10314.64, 23-Dec-2014
90,Revenue,CCHD,Mental Capacity Act - Advocacy,Other Supplies & Services,Armadillo Youth Venue & Cafe,970, 24-Dec-2014
91,Revenue,CCHD,S117 Placements PCT,Permanent Residential,Ash View House,6977.4, 23-Dec-2014
92,Revenue,CCHD,18-25 Year Olds,Permanent Residential,Ash View House,6158.4, 23-Dec-2014
93,Revenue,CCHD,Section 117 Placements MH Younger,Permanent Residential,Ash View House,6495.6, 23-Dec-2014
94,Revenue,CCHD,Bed Purchasing - South,Permanent Residential,Ashbourne House Care Home Limited,1122.44, 23-Dec-2014
95,Revenue,CCHD,Home Care - Elderly - South,Other Small Contracts,Ashley Commercial Finance Ltd,456.55, 01-Dec-2014
96,Revenue,CCHD,Home Care - Elderly - North,Other Small Contracts,Ashley Commercial Finance Ltd,3835.02, 01-Dec-2014
97,Revenue,CCHD,Home Care - Elderly - South,Other Small Contracts,Ashley Commercial Finance Ltd,464.49, 01-Dec-2014
98,Revenue,CCHD,Home Care - Elderly - North,Other Small Contracts,Ashley Commercial Finance Ltd,3874.72, 01-Dec-2014
99,Revenue,CCHD,Home Care - Elderly - South,Other Small Contracts,Ashley Commercial Finance Ltd,504.19, 16-Dec-2014
100,Revenue,CCHD,Home Care - Elderly - North,Other Small Contracts,Ashley Commercial Finance Ltd,4311.42, 16-Dec-2014
101,Revenue,CCHD,Home Care - Elderly - South,Other Small Contracts,Ashley Commercial Finance Ltd,460.52, 19-Dec-2014
102,Revenue,CCHD,Home Care - Elderly - North,Other Small Contracts,Ashley Commercial Finance Ltd,4081.16, 19-Dec-2014
103,Revenue,CCHD,Home Care - Elderly - South,Other Small Contracts,Ashley Commercial Finance Ltd,472.43, 23-Dec-2014
104,Revenue,CCHD,Home Care - Elderly - North,Other Small Contracts,Ashley Commercial Finance Ltd,4402.73, 23-Dec-2014
105,Revenue,CCHD,Home Care - Elderly - South,Other Small Contracts,Ashley Commercial Finance Ltd,476.4, 16-Dec-2014
106,Revenue,CCHD,Home Care - Elderly - North,Other Small Contracts,Ashley Commercial Finance Ltd,4494.04, 16-Dec-2014
107,Revenue,CCHD,DAT Treatment,Rent,Ashville Asset Management Limited,2050.87, 24-Dec-2014
108,Revenue,CCHD,DAT Treatment,Rent,Ashville Asset Management Limited,6159, 24-Dec-2014
109,Revenue,CCHD,Bed Purchasing - North,Permanent Residential,Aspects 2 Limited,6358.44, 23-Dec-2014
110,Revenue,CCHD,Supporting People Programme,Grants to Voluntary Bodies,Aspects and Milestones Trust,3219.58, 01-Dec-2014
111,Revenue,CCHD,Supporting People Programme,Grants to Voluntary Bodies,Aspects and Milestones Trust,1614.17, 01-Dec-2014
112,Revenue,CCHD,Supporting People Programme,Grants to Voluntary Bodies,Aspects and Milestones Trust,2450.08, 01-Dec-2014
113,Revenue,CCHD,MH Purchasing - Younger,Independent Living,Aspirations Support Bristol Limited,42168, 29-Dec-2014
114,Revenue,CCHD,Bed Purchasing - South,Permanent Residential,Autism Specialised Care Homes,5611.16, 23-Dec-2014
115,Revenue,CCHD,Purchase of Non-Res Care - North,Day Care / Social Activities,Avon Autistic Foundation Limited,2301.6, 30-Dec-2014
116,Revenue,CCHD,Purchase of Non-Res Care - North,Day Care / Social Activities,Avon Autistic Foundation Limited,2301.6, 30-Dec-2014
117,Revenue,CCHD,Purchase of Non-Res Care - North,Day Care / Social Activities,Avon Autistic Foundation Limited,3378.04, 30-Dec-2014
118,Revenue,CCHD,Purchase of Non-Res Care - North,Day Care / Social Activities,Avon Autistic Foundation Limited,3378.04, 30-Dec-2014
119,Revenue,CCHD,S75 CCG Interim Beds,Permanent Nursing,Avon Lodge Care Centre,10200, 23-Dec-2014
120,Revenue,CCHD,Day Care - North,Day Care / Social Activities,Avonedge Limited,1200, 17-Dec-2014
121,Revenue,CCHD,Day Care - North,Day Care / Social Activities,Avonedge Limited,1200, 18-Dec-2014
122,Revenue,CCHD,Purchase of RAC places,Other L.A.'s - General,Bath & North East Somerset Dist Council,6055.76, 03-Dec-2014
123,Revenue,CCHD,Bed Purchasing - Southmead Hospital,Permanent Nursing,Bayview Nursing & Residential Home,1482.4, 23-Dec-2014
124,Revenue,CCHD,Bed Purchasing - North,Permanent Nursing,Beaufort Grange Care Home,4960, 23-Dec-2014
125,Revenue,CCHD,Swift Dump Code,Permanent Residential,Beaufort Grange Care Home,796.82, 23-Dec-2014
126,Revenue,CCHD,Bed Purchasing - Elderly S117- North,Permanent Nursing,Beaufort Grange Care Home,4156.44, 23-Dec-2014
127,Revenue,CCHD,South Glos Users in South Glos Homes,Permanent Nursing,Beaufort Grange Care Home,2170.28, 23-Dec-2014
128,Revenue,CCHD,South Glos Users in South Glos Homes,Permanent Nursing,Beaufort Grange Care Home,1093.06, 23-Dec-2014
129,Revenue,CCHD,Bed Purchasing - North,Permanent Nursing,Beaufort Grange Care Home,627.31, 23-Dec-2014
130,Revenue,CCHD,Bed Purchasing - North,Permanent Residential,Beaufort House,1900.32, 23-Dec-2014
131,Revenue,CCHD,Bed Purchasing - North,Permanent Residential,Beaufort House,1674.72, 23-Dec-2014
132,Revenue,CCHD,Bed Purchasing - North,Permanent Residential,Beaufort House,1824.2, 23-Dec-2014
133,Revenue,CCHD,Bed Purchasing - North,Permanent Residential,Beaufort House,1390.4, 23-Dec-2014
134,Revenue,CCHD,Bed Purchasing - South,Permanent Residential,Beaufort House,1434.24, 23-Dec-2014
135,Revenue,CCHD,Bed Purchasing - North,Permanent Residential,Beaufort House,1800.08, 23-Dec-2014
136,Revenue,CCHD,Bed Purchasing - Southmead Hospital,Permanent Residential,Beaufort House,2320, 23-Dec-2014
137,Revenue,CCHD,Bed Purchasing - Southmead Hospital,Permanent Residential,Beaufort House,2320, 23-Dec-2014
138,Revenue,CCHD,Bed Purchasing - North,Permanent Residential,Beaufort House,12932.28, 23-Dec-2014
139,Revenue,CCHD,Bed Purchasing - North,Permanent Residential,Beaufort House,1860.64, 23-Dec-2014
140,Revenue,CCHD,Bed Purchasing - North,Permanent Residential,Beaufort House,1755.08, 23-Dec-2014
141,Revenue,CCHD,Bed Purchasing - North,Permanent Residential,Beaufort House,1706.44, 23-Dec-2014
142,Revenue,CCHD,Bed Purchasing - South,Permanent Residential,Bedrock Lodge,3151.8, 23-Dec-2014
143,Revenue,CCHD,Bed Purchasing - South,Permanent Residential,Bedrock Lodge,2949.44, 23-Dec-2014
144,Revenue,CCHD,Section 117 Placements MH Younger,Permanent Residential,Bedrock Lodge,1864.88, 23-Dec-2014
145,Revenue,CCHD,Bed Purchasing - North,Permanent Nursing,Beech House,2378.48, 23-Dec-2014
146,Revenue,CCHD,Bed Purchasing - South,Permanent Residential,Beech House,4095.65, 23-Dec-2014
147,Revenue,CCHD,Bed Purchasing - South,Permanent Residential,Beech House,1260.2, 23-Dec-2014
148,Revenue,CCHD,Bed Purchasing - North,Permanent Nursing,Beech House,1320.2, 23-Dec-2014
149,Revenue,CCHD,Bed Purchasing - North,Permanent Nursing,Beech House,1653.8, 23-Dec-2014
150,Revenue,CCHD,Bed Purchasing - North,Permanent Nursing,Beech House,24010, 23-Dec-2014
151,Revenue,CCHD,Bed Purchasing - North,Respite Planned - Residential,Beech House,1620, 23-Dec-2014
152,Revenue,CCHD,Bed Purchasing - North,Permanent Residential,Beech House,3597.75, 23-Dec-2014
153,Revenue,CCHD,Bed Purchasing - North,Permanent Residential,Beech House,1107, 23-Dec-2014
154,Revenue,CCHD,Bed Purchasing - North,Permanent Nursing,Beech House,7566.75, 23-Dec-2014
155,Revenue,CCHD,Bed Purchasing - North,Permanent Nursing,Beech House,2552.64, 23-Dec-2014
156,Revenue,CCHD,South Glos Users in South Glos Homes,Permanent Nursing,Beech House,633.66, 23-Dec-2014
157,Revenue,CCHD,Bed Purchasing - North,Permanent Residential,Beech House,2632.2, 23-Dec-2014
158,Revenue,CCHD,Bed Purchasing - North,Permanent Nursing,Beech House,879.56, 23-Dec-2014
159,Revenue,CCHD,Bed Purchasing - North,Permanent Residential,Beech House,1911.24, 23-Dec-2014
160,Revenue,CCHD,South Glos Users in South Glos Homes,Permanent Nursing,Beech House,506.93, 23-Dec-2014
161,Revenue,CCHD,Bed Purchasing - North,Permanent Nursing,Beech House,2127.2, 23-Dec-2014
162,Revenue,CCHD,Bed Purchasing - North,Permanent Residential,Beech House,1394.08, 23-Dec-2014
163,Revenue,CCHD,South Glos Users in South Glos Homes,Permanent Nursing,Beech House,506.93, 23-Dec-2014
164,Revenue,CCHD,Bed Purchasing - Elderly S117- North,Permanent Nursing,Blossom Field,1992, 23-Dec-2014
165,Revenue,CCHD,South Glos Users in South Glos Homes,Permanent Nursing,Blossom Field,7122.18, 23-Dec-2014
166,Revenue,CCHD,South Glos Users in South Glos Homes,Permanent Nursing,Blossom Field,19297.62, 23-Dec-2014
167,Revenue,CCHD,Bed Purchasing - North,Permanent Nursing,Blossom Field,21033.83, 23-Dec-2014
168,Revenue,CCHD,Bed Purchasing - North,Permanent Nursing,Blossom Field,2560.64, 23-Dec-2014
169,Revenue,CCHD,Bed Purchasing - North,Permanent Nursing,Blossom Field,1935.64, 23-Dec-2014
170,Revenue,CCHD,Bed Purchasing - North,Permanent Nursing,Blossom Field,2337, 23-Dec-2014
171,Revenue,CCHD,Bed Purchasing - North,Permanent Nursing,Blossom Field,2697.08, 23-Dec-2014
172,Revenue,CCHD,Bed Purchasing - North,Permanent Nursing,Blossom Field,1425.12, 23-Dec-2014
173,Revenue,CCHD,Bed Purchasing - South,Permanent Nursing,Blossom Field,1909.84, 23-Dec-2014
174,Revenue,CCHD,Bed Purchasing - Southmead Hospital,Permanent Nursing,Blossom Field,2545.44, 23-Dec-2014
175,Revenue,CCHD,Bed Purchasing - North,Permanent Nursing,Blossom Fields,2588.96, 29-Dec-2014
176,Revenue,CCHD,Bed Purchasing - Southmead Hospital,Permanent Nursing,Blossom Fields,2093.16, 29-Dec-2014
177,Revenue,CCHD,18-25 Year Olds,Permanent Residential,Bradbury House,8760.16, 23-Dec-2014
178,Revenue,CCHD,User Involvement,Other Supplies & Services,Bradley Bailey,2425, 30-Dec-2014
179,Revenue,CCHD,Bed Purchasing - North,Permanent Residential,Bradley House,1533.8, 23-Dec-2014
180,Revenue,CCHD,Home Care - Elderly - North,Other Small Contracts,Bradley House Home Care Services,717.36, 01-Dec-2014
181,Revenue,CCHD,Day Care - North,Day Care / Social Activities,Bradley House Home Care Services,102.48, 01-Dec-2014
182,Revenue,CCHD,Home Care - Elderly - North,Other Small Contracts,Bradley House Home Care Services,730.17, 01-Dec-2014
183,Revenue,CCHD,Day Care - North,Day Care / Social Activities,Bradley House Home Care Services,102.48, 01-Dec-2014
184,Revenue,CCHD,Home Care - Elderly - North,Other Small Contracts,Bradley House Home Care Services,717.36, 01-Dec-2014
185,Revenue,CCHD,Day Care - North,Day Care / Social Activities,Bradley House Home Care Services,102.48, 01-Dec-2014
186,Revenue,CCHD,Alexandra Way,"Provisions (Food, etc)",Brake Bros,634.01, 11-Dec-2014
187,Revenue,CCHD,Alexandra Way,"Provisions (Food, etc)",Brake Bros,705.71, 11-Dec-2014
188,Revenue,CCHD,Alexandra Way,"Provisions (Food, etc)",Brake Bros,503.54, 11-Dec-2014
189,Revenue,CCHD,Alexandra Way,"Provisions (Food, etc)",Brake Bros,599.81, 30-Dec-2014
190,Revenue,CCHD,Alexandra Way,"Provisions (Food, etc)",Brake Bros,695.72, 30-Dec-2014
191,Revenue,CCHD,Woodleaze,"Provisions (Food, etc)",Brake Bros,544.47, 19-Dec-2014
192,Revenue,CCHD,Bed Purchasing - South,Permanent Nursing,Brandon Trust,5036.84, 23-Dec-2014
193,Revenue,CCHD,Bed Purchasing - S28A - Over 65- North,Permanent Residential,Brandon Trust,3097.08, 23-Dec-2014
194,Revenue,CCHD,Bed Purchasing - South,Permanent Residential,Brandon Trust,10268.44, 23-Dec-2014
195,Revenue,CCHD,Bed Purchasing - South,Permanent Residential,Brandon Trust,4036.12, 23-Dec-2014
196,Revenue,CCHD,Bed Purchasing - South,Permanent Residential,Brandon Trust,3459.92, 23-Dec-2014
197,Revenue,CCHD,Bed Purchasing - LD S28A- Over 65- South,Permanent Nursing,Brandon Trust,4860.44, 23-Dec-2014
198,Revenue,CCHD,Bed Purchasing - South,Permanent Nursing,Brandon Trust,5036.84, 23-Dec-2014
199,Revenue,CCHD,Bed purchasing - S28A Under 65 - South,Permanent Nursing,Brandon Trust,5359.12, 23-Dec-2014
200,Revenue,CCHD,Bed purchasing - S28A Under 65 - South,Permanent Residential,Brandon Trust,4901.16, 23-Dec-2014
201,Revenue,CCHD,Bed Purchasing - LD S28A- Over 65- South,Permanent Nursing,Brandon Trust,5182.72, 23-Dec-2014
202,Revenue,CCHD,Bed Purchasing - LD S28A- Over 65- South,Permanent Nursing,Brandon Trust,4849.76, 23-Dec-2014
203,Revenue,CCHD,Bed Purchasing - South,Permanent Residential,Brandon Trust,3273.48, 23-Dec-2014
204,Revenue,CCHD,Bed Purchasing - S28A - Over 65- North,Permanent Nursing,Brandon Trust,4810.28, 23-Dec-2014
205,Revenue,CCHD,Bed purchasing - S28A Under 65 - South,Permanent Residential,Brandon Trust,5202.76, 23-Dec-2014
206,Revenue,CCHD,Bed purchasing - S28A Under 65 - South,Permanent Residential,Brandon Trust,5258.44, 23-Dec-2014
207,Revenue,CCHD,Bed purchasing - S28A Under 65 - South,Permanent Nursing,Brandon Trust,5399.12, 23-Dec-2014
208,Revenue,CCHD,Bed purchasing - S28A Under 65 - South,Permanent Nursing,Brandon Trust,5359.12, 23-Dec-2014
209,Revenue,CCHD,Bed purchasing -S28A  Under 65 - North,Permanent Nursing,Brandon Trust,4783.16, 23-Dec-2014
210,Revenue,CCHD,Bed purchasing - S28A Under 65 - South,Permanent Residential,Brandon Trust,5258.44, 23-Dec-2014
211,Revenue,CCHD,Bed Purchasing - LD S28A- Over 65- South,Permanent Residential,Brandon Trust,4748.2, 23-Dec-2014
212,Revenue,CCHD,Bed Purchasing - South,Permanent Residential,Brandon Trust,1287.88, 23-Dec-2014
213,Revenue,CCHD,Day Care - North,Day Care / Social Activities,Bridge House (Residential Home) Ltd,3422, 15-Dec-2014
214,Revenue,CCHD,Day Care - North,Day Care / Social Activities,Bridge House (Residential Home) Ltd,531, 15-Dec-2014
215,Revenue,CCHD,Bed Purchasing - North,Permanent Residential,Bridge House Care Home,1513, 23-Dec-2014
216,Revenue,CCHD,Bed Purchasing - North,Permanent Residential,Bridge House Care Home,1167.32, 23-Dec-2014
217,Revenue,CCHD,Bed Purchasing - South,Permanent Residential,Bridge House Care Home,1444.6, 23-Dec-2014
218,Revenue,CCHD,Bed Purchasing - North,Respite Planned - Residential,Bridge House Care Home,828.57, 23-Dec-2014
219,Revenue,CCHD,Bed Purchasing - South,Permanent Residential,Brightbow,2095.28, 23-Dec-2014
220,Revenue,CCHD,MH Purchasing - Younger,Permanent Residential,Brightbow,1493.96, 23-Dec-2014
221,Revenue,CCHD,Day Care - North,Day Care / Social Activities,Bristol & Avon Chinese Womens Group,293.7, 01-Dec-2014
222,Revenue,CCHD,Day Care - North,Day Care / Social Activities,Bristol & Avon Chinese Womens Group,293.7, 01-Dec-2014
223,Revenue,CCHD,Day Care - North,Day Care / Social Activities,Bristol & Avon Chinese Womens Group,293.7, 01-Dec-2014
224,Revenue,CCHD,Day Care - North,Day Care / Social Activities,Bristol & Avon Chinese Womens Group,234.96, 01-Dec-2014
225,Revenue,CCHD,Day Care - North,Day Care / Social Activities,Bristol & Avon Chinese Womens Group,234.96, 01-Dec-2014
226,Revenue,CCHD,Day Care - North,Day Care / Social Activities,Bristol & Avon Chinese Womens Group,234.96, 01-Dec-2014
227,Revenue,CCHD,Leadership and Business Support,Other Small Contracts,Bristol City Council,41259, 05-Dec-2014
228,Revenue,CCHD,Purchase of RAC places,Other L.A.'s - General,Bristol City Council,7610.4, 10-Dec-2014
229,Revenue,CCHD,Supported Living - North,Private & Voluntary Home Care,Bristol Houses UK Limited,1030.19, 10-Dec-2014
230,Revenue,CCHD,Supported Living - North,Private & Voluntary Home Care,Bristol Houses UK Limited,605.6, 10-Dec-2014
231,Revenue,CCHD,Supported Living - North,Private & Voluntary Home Care,Bristol Houses UK Limited,590.46, 30-Dec-2014
232,Revenue,CCHD,Supported Living - North,Private & Voluntary Home Care,Bristol Houses UK Limited,923.54, 10-Dec-2014
233,Revenue,CCHD,Day Care - North,Day Care / Social Activities,Bristol Houses UK Limited,575.32, 30-Dec-2014
234,Revenue,CCHD,Day Care - North,Day Care / Social Activities,Bristol Houses UK Limited,605.6, 10-Dec-2014
235,Revenue,CCHD,Bed and Breakfast,Bed & Breakfast,Bristol Housing & Support Limited,1450, 29-Dec-2014
236,Revenue,CCHD,Supporting People Programme,Grants to Voluntary Bodies,Bristol Missing Link,1990.92, 01-Dec-2014
237,Revenue,CCHD,Supporting People Programme,Grants to Voluntary Bodies,Bristol Missing Link,1449.17, 01-Dec-2014
238,Revenue,CCHD,Home Care - Elderly - North,Day Care / Social Activities,Britannia House,914.88, 23-Dec-2014
239,Revenue,CCHD,Home Care - Elderly - South,Day Care / Social Activities,Britannia House,914.88, 23-Dec-2014
240,Revenue,CCHD,Home Care - Elderly - North,Day Care / Social Activities,Britannia House,686.16, 23-Dec-2014
241,Revenue,CCHD,Home Care - Elderly - North,Day Care / Social Activities,Britannia House,914.88, 23-Dec-2014
242,Revenue,CCHD,Home Care - Elderly - South,Day Care / Social Activities,Britannia House,686.16, 23-Dec-2014
243,Revenue,CCHD,Home Care - Elderly - North,Day Care / Social Activities,Britannia House,914.88, 23-Dec-2014
244,Revenue,CCHD,Home Care - Elderly - South,Day Care / Social Activities,Britannia House,571.8, 23-Dec-2014
245,Revenue,CCHD,Home Care - Elderly - South,Day Care / Social Activities,Britannia House,1143.6, 23-Dec-2014
246,Revenue,CCHD,Home Care - Elderly - South,Day Care / Social Activities,Britannia House,686.16, 23-Dec-2014
247,Revenue,CCHD,Home Care - Elderly - South,Day Care / Social Activities,Britannia House,686.16, 23-Dec-2014
248,Revenue,CCHD,Home Care - Elderly - South,Day Care / Social Activities,Britannia House,686.16, 23-Dec-2014
249,Revenue,CCHD,Bed Purchasing - North,Permanent Nursing,Broadgate House,1985.97, 23-Dec-2014
250,Revenue,CCHD,Supporting People Programme,Grants to Voluntary Bodies,Bromford Housing Group,14050.25, 01-Dec-2014
251,Revenue,CCHD,Bed Purchasing - North,Permanent Nursing,Brunel Care  Saffron Gardens,631.52, 23-Dec-2014
252,Revenue,CCHD,Bed Purchasing - South,Permanent Nursing,Brunel Care  Saffron Gardens,2968.23, 23-Dec-2014
253,Revenue,CCHD,Bed Purchasing - South,Permanent Nursing,Brunel Care  Saffron Gardens,676.36, 23-Dec-2014
254,Revenue,CCHD,South Glos Users in South Glos Homes,Permanent Nursing,Brunel Care  Saffron Gardens,1093.06, 23-Dec-2014
255,Revenue,CCHD,Bed Purchasing - Southmead Hospital,Permanent Nursing,Brunel Care  Saffron Gardens,876.08, 23-Dec-2014
256,Revenue,CCHD,Bed Purchasing - Southmead Hospital,Permanent Nursing,Brunel Care  Saffron Gardens,2052.32, 23-Dec-2014
257,Revenue,CCHD,South Glos Users in South Glos Homes,Permanent Nursing,Brunel Care  Saffron Gardens,1156.42, 23-Dec-2014
258,Revenue,CCHD,Bed Purchasing - Southmead Hospital,Permanent Residential,Brunel Care  Saffron Gardens,1270.68, 23-Dec-2014
259,Revenue,CCHD,Bed Purchasing - South,Permanent Nursing,Brunel Care  Saffron Gardens,2072.32, 23-Dec-2014
260,Revenue,CCHD,Bed Purchasing - Southmead Hospital,Permanent Nursing,Brunel Care  Saffron Gardens,1391.72, 23-Dec-2014
261,Revenue,CCHD,Bed Purchasing - North,Respite Planned - Residential,Brunel Care  Saffron Gardens,1415.98, 23-Dec-2014
262,Revenue,CCHD,Bed Purchasing - South,Permanent Residential,Brunel Care  Saffron Gardens,1296.84, 23-Dec-2014
263,Revenue,CCHD,Home Care - Elderly - North,Private & Voluntary Home Care,Brunelcare,23160, 01-Dec-2014
264,Revenue,CCHD,Home Care - Elderly - North,Private & Voluntary Home Care,Brunelcare,23160, 08-Dec-2014
265,Revenue,CCHD,Home Care - Elderly - North,Private & Voluntary Home Care,Brunelcare,23160, 15-Dec-2014
266,Revenue,CCHD,Home Care - Elderly - North,Private & Voluntary Home Care,Brunelcare,23160, 22-Dec-2014
267,Revenue,CCHD,Home Care - Elderly - North,Private & Voluntary Home Care,Brunelcare,23160, 24-Dec-2014
268,Revenue,CCHD,Bed Purchasing - Elderly MH - South,Permanent Nursing,Brunelcare,1938.03, 24-Dec-2014
269,Revenue,CCHD,Bed Purchasing - South,Permanent Nursing,Brunelcare,1982.41, 24-Dec-2014
270,Revenue,CCHD,Bed Purchasing - South,Permanent Nursing,Brunelcare,1616.74, 24-Dec-2014
271,Revenue,CCHD,Bed Purchasing - Elderly MH - South,Permanent Nursing,Brunelcare,1978.73, 24-Dec-2014
272,Revenue,CCHD,Bed Purchasing - South,Permanent Nursing,Brunelcare,2036.3, 24-Dec-2014
273,Revenue,CCHD,Bed Purchasing - Elderly MH - South,Permanent Nursing,Brunelcare,2021.02, 24-Dec-2014
274,Revenue,CCHD,Bed Purchasing - Elderly S117- North,Permanent Nursing,Brunelcare,2094.14, 24-Dec-2014
275,Revenue,CCHD,Bed Purchasing - Elderly S117- North,Permanent Nursing,Brunelcare,2585.22, 24-Dec-2014
276,Revenue,CCHD,Bed purchasing - Elderly S117 - South,Permanent Nursing,Brunelcare,833.94, 24-Dec-2014
277,Revenue,CCHD,Bed purchasing - Elderly S117 - South,Permanent Nursing,Brunelcare,1598.07, 24-Dec-2014
278,Revenue,CCHD,Bed Purchasing - Southmead Hospital,Permanent Nursing,Brunelcare,1736.75, 24-Dec-2014
279,Revenue,CCHD,Bed Purchasing - Southmead Hospital,Permanent Nursing,Brunelcare,913.97, 24-Dec-2014
280,Revenue,CCHD,Bed Purchasing - Southmead Hospital,Permanent Nursing,Brunelcare,1693.71, 24-Dec-2014
281,Revenue,CCHD,Bed Purchasing - South,Permanent Nursing,Brunelcare,1319.05, 24-Dec-2014
282,Revenue,CCHD,Bed Purchasing - South,Permanent Nursing,Brunelcare,1517.23, 24-Dec-2014
283,Revenue,CCHD,Bed Purchasing - North,Permanent Nursing,Brunelcare,1652.12, 24-Dec-2014
284,Revenue,CCHD,Bed Purchasing - Southmead Hospital,Permanent Nursing,Brunelcare,1147.93, 24-Dec-2014
285,Revenue,CCHD,Bed Purchasing - South,Permanent Nursing,Brunelcare,2036.3, 24-Dec-2014
286,Revenue,CCHD,Bed Purchasing - Southmead Hospital,Permanent Nursing,Brunelcare,1810.13, 24-Dec-2014
287,Revenue,CCHD,Bed Purchasing - South,Permanent Nursing,Brunelcare,1810.13, 24-Dec-2014
288,Revenue,CCHD,Bed Purchasing - North,Permanent Nursing,Brunelcare,1810.13, 24-Dec-2014
289,Revenue,CCHD,Bed Purchasing - Southmead Hospital,Permanent Nursing,Brunelcare,1810.13, 24-Dec-2014
290,Revenue,CCHD,Bed Purchasing - Southmead Hospital,Permanent Nursing,Brunelcare,1703.14, 24-Dec-2014
291,Revenue,CCHD,Bed Purchasing - Elderly S117- North,Permanent Nursing,Brunelcare,2585.22, 24-Dec-2014
292,Revenue,CCHD,Bed Purchasing - Southmead Hospital,Permanent Nursing,Brunelcare,1477.86, 24-Dec-2014
293,Revenue,CCHD,Bed Purchasing - South,Permanent Nursing,Brunelcare,1810.13, 24-Dec-2014
294,Revenue,CCHD,Bed Purchasing - North,Respite Emergency - Nursing,Brunelcare,2359.06, 24-Dec-2014
295,Revenue,CCHD,Bed Purchasing - Elderly MH - South,Permanent Nursing,Brunelcare,1875.51, 24-Dec-2014
296,Revenue,CCHD,Bed Purchasing - South,Permanent Nursing,Brunelcare,1918.46, 24-Dec-2014
297,Revenue,CCHD,Bed Purchasing - South,Permanent Nursing,Brunelcare,1564.59, 24-Dec-2014
298,Revenue,CCHD,Bed Purchasing - Elderly MH - South,Permanent Nursing,Brunelcare,1914.9, 24-Dec-2014
299,Revenue,CCHD,Bed Purchasing - South,Permanent Nursing,Brunelcare,1970.61, 24-Dec-2014
300,Revenue,CCHD,Bed Purchasing - South,Permanent Nursing,Brunelcare,837.08, 24-Dec-2014
301,Revenue,CCHD,Bed Purchasing - Elderly MH - South,Permanent Nursing,Brunelcare,1955.83, 24-Dec-2014
302,Revenue,CCHD,Bed Purchasing - Elderly S117- North,Permanent Nursing,Brunelcare,2026.59, 24-Dec-2014
303,Revenue,CCHD,Bed Purchasing - Elderly S117- North,Permanent Nursing,Brunelcare,2501.83, 24-Dec-2014
304,Revenue,CCHD,Bed purchasing - Elderly S117 - South,Permanent Nursing,Brunelcare,2282.96, 24-Dec-2014
305,Revenue,CCHD,Bed Purchasing - Southmead Hospital,Permanent Nursing,Brunelcare,1680.73, 24-Dec-2014
306,Revenue,CCHD,Bed Purchasing - Southmead Hospital,Permanent Nursing,Brunelcare,884.49, 24-Dec-2014
307,Revenue,CCHD,Bed Purchasing - Southmead Hospital,Permanent Nursing,Brunelcare,1639.07, 24-Dec-2014
308,Revenue,CCHD,Bed Purchasing - South,Permanent Nursing,Brunelcare,1276.5, 24-Dec-2014
309,Revenue,CCHD,Bed Purchasing - South,Permanent Nursing,Brunelcare,1468.29, 24-Dec-2014
310,Revenue,CCHD,Bed Purchasing - North,Permanent Nursing,Brunelcare,1902.3, 24-Dec-2014
311,Revenue,CCHD,Bed Purchasing - Southmead Hospital,Permanent Nursing,Brunelcare,1110.9, 24-Dec-2014
312,Revenue,CCHD,Bed Purchasing - South,Permanent Nursing,Brunelcare,1970.61, 24-Dec-2014
313,Revenue,CCHD,Bed Purchasing - Southmead Hospital,Permanent Nursing,Brunelcare,1751.74, 24-Dec-2014
314,Revenue,CCHD,Bed Purchasing - South,Permanent Nursing,Brunelcare,1751.74, 24-Dec-2014
315,Revenue,CCHD,Bed Purchasing - North,Permanent Nursing,Brunelcare,1751.74, 24-Dec-2014
316,Revenue,CCHD,Bed Purchasing - Southmead Hospital,Permanent Nursing,Brunelcare,1751.74, 24-Dec-2014
317,Revenue,CCHD,Bed Purchasing - Southmead Hospital,Permanent Nursing,Brunelcare,1648.2, 24-Dec-2014
318,Revenue,CCHD,Bed Purchasing - Elderly S117- North,Permanent Nursing,Brunelcare,2501.83, 24-Dec-2014
319,Revenue,CCHD,Bed Purchasing - Southmead Hospital,Permanent Nursing,Brunelcare,1430.19, 24-Dec-2014
320,Revenue,CCHD,Bed Purchasing - South,Permanent Nursing,Brunelcare,1751.74, 24-Dec-2014
321,Revenue,CCHD,Bed Purchasing - North,Respite Emergency - Nursing,Brunelcare,1217.58, 24-Dec-2014
322,Revenue,CCHD,Bed Purchasing - South,Respite Emergency - Nursing,Brunelcare,596.5, 24-Dec-2014
323,Revenue,CCHD,S75 CCG Interim Beds,Permanent Nursing,Brunelcare,15200, 23-Dec-2014
324,Revenue,CCHD,Information Systems - Software,Computer Equipment - Purchase,BT Global Services Solutions,984.77, 04-Dec-2014
325,Revenue,CCHD,Information Systems - Software,Computer Equipment - Purchase,BT Global Services Solutions,984.77, 24-Dec-2014
326,Revenue,CCHD,Bed Purchasing - Southmead Hospital,Permanent Nursing,Bupa Care Services  Bridge House,1902.4, 23-Dec-2014
327,Revenue,CCHD,Bed Purchasing - Southmead Hospital,Permanent Nursing,Bupa Care Services  Bridge House,1674.48, 23-Dec-2014
328,Revenue,CCHD,Bed Purchasing - North,Permanent Nursing,Bupa Care Services  Bridge House,5938.28, 23-Dec-2014
329,Revenue,CCHD,South Glos Users in all other LA Homes,Permanent Nursing,Bupa Care Services  Bridge House,610.44, 23-Dec-2014
330,Revenue,CCHD,Bed Purchasing - North,Permanent Residential,Bupa Care Services  Bridge House,1987.24, 23-Dec-2014
331,Revenue,CCHD,Supported Living - North,Private & Voluntary Home Care,Camphill Communities Thornbury Limited,998.4, 29-Dec-2014
332,Revenue,CCHD,Supported Living - North,Private & Voluntary Home Care,Camphill Communities Thornbury Limited,599.04, 29-Dec-2014
333,Revenue,CCHD,Supported Living - North,Private & Voluntary Home Care,Camphill Communities Thornbury Limited,773.76, 29-Dec-2014
334,Revenue,CCHD,Supported Living - North,Private & Voluntary Home Care,Camphill Communities Thornbury Limited,511.68, 29-Dec-2014
335,Revenue,CCHD,Supported Living - North,Private & Voluntary Home Care,Camphill Communities Thornbury Limited,698.88, 29-Dec-2014
336,Revenue,CCHD,Supported Living - North,Private & Voluntary Home Care,Camphill Communities Thornbury Limited,1148.16, 29-Dec-2014
337,Revenue,CCHD,Bed Purchasing - Elderly S117- North,Permanent Residential,Canjayor,2334.04, 23-Dec-2014
338,Revenue,CCHD,Home Care - Elderly - South,Other Small Contracts,Care 1st Homecare,4009.01, 02-Dec-2014
339,Revenue,CCHD,Home Care - Elderly - North,Other Small Contracts,Care 1st Homecare,3003, 02-Dec-2014
340,Revenue,CCHD,Home care - Elderly MH - North,Other Small Contracts,Care 1st Homecare,16.8, 02-Dec-2014
341,Revenue,CCHD,Home Care - Elderly - South,Other Small Contracts,Care 1st Homecare,4021.61, 04-Dec-2014
342,Revenue,CCHD,Home Care - Elderly - North,Other Small Contracts,Care 1st Homecare,3045, 04-Dec-2014
343,Revenue,CCHD,Home care - Elderly MH - North,Other Small Contracts,Care 1st Homecare,16.8, 04-Dec-2014
344,Revenue,CCHD,Home Care - Elderly - South,Other Small Contracts,Care 1st Homecare,4003.93, 04-Dec-2014
345,Revenue,CCHD,Home Care - Elderly - North,Other Small Contracts,Care 1st Homecare,3040.8, 04-Dec-2014
346,Revenue,CCHD,Home care - Elderly MH - North,Other Small Contracts,Care 1st Homecare,8.4, 04-Dec-2014
347,Revenue,CCHD,Home Care - Elderly - South,Other Small Contracts,Care 1st Homecare,4053.88, 02-Dec-2014
348,Revenue,CCHD,Home Care - Elderly - North,Other Small Contracts,Care 1st Homecare,3099.6, 02-Dec-2014
349,Revenue,CCHD,Home care - Elderly MH - North,Other Small Contracts,Care 1st Homecare,12.6, 02-Dec-2014
350,Revenue,CCHD,Home Care - Elderly - South,Other Small Contracts,Care 1st Homecare,3873.73, 04-Dec-2014
351,Revenue,CCHD,Home Care - Elderly - North,Other Small Contracts,Care 1st Homecare,3124.8, 04-Dec-2014
352,Revenue,CCHD,Home care - Elderly MH - North,Other Small Contracts,Care 1st Homecare,16.8, 04-Dec-2014
353,Revenue,CCHD,Home Care - Elderly - South,Other Small Contracts,Care 1st Homecare,3712.58, 02-Dec-2014
354,Revenue,CCHD,Home Care - Elderly - North,Other Small Contracts,Care 1st Homecare,2977.8, 02-Dec-2014
355,Revenue,CCHD,Home care - Elderly MH - North,Other Small Contracts,Care 1st Homecare,16.8, 02-Dec-2014
356,Revenue,CCHD,Home Care - Elderly - South,Other Small Contracts,Care 1st Homecare,3764.09, 04-Dec-2014
357,Revenue,CCHD,Home Care - Elderly - North,Other Small Contracts,Care 1st Homecare,2935.8, 04-Dec-2014
358,Revenue,CCHD,Home care - Elderly MH - North,Other Small Contracts,Care 1st Homecare,16.8, 04-Dec-2014
359,Revenue,CCHD,Home Care - Elderly - South,Other Small Contracts,Care 1st Homecare,3547.01, 02-Dec-2014
360,Revenue,CCHD,Home Care - Elderly - North,Other Small Contracts,Care 1st Homecare,4006.5, 02-Dec-2014
361,Revenue,CCHD,Home care - Elderly MH - North,Other Small Contracts,Care 1st Homecare,16.8, 02-Dec-2014
362,Revenue,CCHD,Home Care - Elderly - South,Other Small Contracts,Care 1st Homecare,3593.21, 02-Dec-2014
363,Revenue,CCHD,Home Care - Elderly - North,Other Small Contracts,Care 1st Homecare,4391.75, 02-Dec-2014
364,Revenue,CCHD,Home care - Elderly MH - North,Other Small Contracts,Care 1st Homecare,16.8, 02-Dec-2014
365,Revenue,CCHD,Home Care - Elderly - South,Other Small Contracts,Care 1st Homecare,3789.29, 04-Dec-2014
366,Revenue,CCHD,Home Care - Elderly - North,Other Small Contracts,Care 1st Homecare,4144.4, 04-Dec-2014
367,Revenue,CCHD,Home care - Elderly MH - North,Other Small Contracts,Care 1st Homecare,16.8, 04-Dec-2014
368,Revenue,CCHD,Home Care - Elderly - South,Other Small Contracts,Care 1st Homecare,3749.27, 04-Dec-2014
369,Revenue,CCHD,Home Care - Elderly - North,Other Small Contracts,Care 1st Homecare,3792.6, 04-Dec-2014
370,Revenue,CCHD,Home care - Elderly MH - North,Other Small Contracts,Care 1st Homecare,16.8, 04-Dec-2014
371,Revenue,CCHD,Home Care - Elderly - South,Other Small Contracts,Care 1st Homecare,3459.92, 02-Dec-2014
372,Revenue,CCHD,Home Care - Elderly - North,Other Small Contracts,Care 1st Homecare,3784.2, 02-Dec-2014
373,Revenue,CCHD,Home care - Elderly MH - North,Other Small Contracts,Care 1st Homecare,16.8, 02-Dec-2014
374,Revenue,CCHD,s256 - Additional Support Funding,Other Supplies & Services,Care and Support West,23750, 12-Dec-2014
375,Revenue,CCHD,Bed Purchasing - Elderly S117- North,Permanent Residential,Care Community Ltd,7647.92, 23-Dec-2014
376,Revenue,CCHD,Purchase of Non-Res Care - South,Day Care / Social Activities,Care Futures,1944.3, 12-Dec-2014
377,Revenue,CCHD,Purchase of Non-Res Care - North,Day Care / Social Activities,Care Horizons Limited,1932.04, 08-Dec-2014
378,Revenue,CCHD,Purchase of Non-Res Care - North,Day Care / Social Activities,Care Horizons Limited,1197.46, 08-Dec-2014
379,Revenue,CCHD,Electronic Home Care Monitoring,Other Supplies & Services,Care Monitoring 2000 Limited,2680, 15-Dec-2014
380,Revenue,CCHD,Electronic Home Care Monitoring,Other Supplies & Services,Care Monitoring 2000 Limited,860, 12-Dec-2014
381,Revenue,CCHD,Electronic Home Care Monitoring,Other Supplies & Services,Care Monitoring 2000 Limited,9916.65, 10-Dec-2014
382,Revenue,CCHD,Electronic Home Care Monitoring,Other Supplies & Services,Care Monitoring 2000 Limited,9786.69, 10-Dec-2014
383,Revenue,CCHD,Home Care - Elderly - South,Day Care / Social Activities,Care UK,196, 01-Dec-2014
384,Revenue,CCHD,Home Care - Elderly - South,Other Small Contracts,Care UK,4856.88, 01-Dec-2014
385,Revenue,CCHD,Home Care - Elderly - North,Day Care / Social Activities,Care UK,160.72, 01-Dec-2014
386,Revenue,CCHD,Home Care - Elderly - North,Other Small Contracts,Care UK,1066.24, 01-Dec-2014
387,Revenue,CCHD,Day Care - North,Day Care / Social Activities,Care UK,305.76, 01-Dec-2014
388,Revenue,CCHD,Home care - Elderly MH - North,Other Small Contracts,Care UK,544.88, 01-Dec-2014
389,Revenue,CCHD,Elderly MH Day Care North,Day Care / Social Activities,Care UK,141.12, 01-Dec-2014
390,Revenue,CCHD,Home Care - Elderly - South,Day Care / Social Activities,Care UK,196, 01-Dec-2014
391,Revenue,CCHD,Home Care - Elderly - South,Other Small Contracts,Care UK,5084.24, 01-Dec-2014
392,Revenue,CCHD,Home Care - Elderly - North,Day Care / Social Activities,Care UK,156.8, 01-Dec-2014
393,Revenue,CCHD,Home Care - Elderly - North,Other Small Contracts,Care UK,1140.72, 01-Dec-2014
394,Revenue,CCHD,Day Care - North,Day Care / Social Activities,Care UK,282.24, 01-Dec-2014
395,Revenue,CCHD,Home care - Elderly MH - North,Other Small Contracts,Care UK,525.28, 01-Dec-2014
396,Revenue,CCHD,Elderly MH Day Care North,Day Care / Social Activities,Care UK,145.04, 01-Dec-2014
397,Revenue,CCHD,Home Care - Elderly - South,Day Care / Social Activities,Care UK,196, 11-Dec-2014
398,Revenue,CCHD,Home Care - Elderly - South,Other Small Contracts,Care UK,4692.24, 11-Dec-2014
399,Revenue,CCHD,Home Care - Elderly - North,Day Care / Social Activities,Care UK,145.04, 11-Dec-2014
400,Revenue,CCHD,Home Care - Elderly - North,Other Small Contracts,Care UK,1144.64, 11-Dec-2014
401,Revenue,CCHD,Day Care - North,Day Care / Social Activities,Care UK,286.16, 11-Dec-2014
402,Revenue,CCHD,Home care - Elderly MH - North,Other Small Contracts,Care UK,509.6, 11-Dec-2014
403,Revenue,CCHD,Elderly MH Day Care North,Day Care / Social Activities,Care UK,141.12, 11-Dec-2014
404,Revenue,CCHD,Home Care - Elderly - South,Day Care / Social Activities,Care UK,196, 05-Dec-2014
405,Revenue,CCHD,Home Care - Elderly - South,Other Small Contracts,Care UK,4731.44, 05-Dec-2014
406,Revenue,CCHD,Home Care - Elderly - North,Day Care / Social Activities,Care UK,160.72, 05-Dec-2014
407,Revenue,CCHD,Home Care - Elderly - North,Other Small Contracts,Care UK,1183.84, 05-Dec-2014
408,Revenue,CCHD,Day Care - North,Day Care / Social Activities,Care UK,282.24, 05-Dec-2014
409,Revenue,CCHD,Home care - Elderly MH - North,Other Small Contracts,Care UK,548.8, 05-Dec-2014
410,Revenue,CCHD,Elderly MH Day Care North,Day Care / Social Activities,Care UK,141.12, 05-Dec-2014
411,Revenue,CCHD,Home Care - Elderly - South,Day Care / Social Activities,Care UK,196, 23-Dec-2014
412,Revenue,CCHD,Home Care - Elderly - South,Other Small Contracts,Care UK,4970.56, 23-Dec-2014
413,Revenue,CCHD,Home Care - Elderly - North,Day Care / Social Activities,Care UK,129.36, 23-Dec-2014
414,Revenue,CCHD,Home Care - Elderly - North,Other Small Contracts,Care UK,1179.92, 23-Dec-2014
415,Revenue,CCHD,Day Care - North,Day Care / Social Activities,Care UK,278.32, 23-Dec-2014
416,Revenue,CCHD,Home care - Elderly MH - North,Other Small Contracts,Care UK,517.44, 23-Dec-2014
417,Revenue,CCHD,Elderly MH Day Care North,Day Care / Social Activities,Care UK,141.12, 23-Dec-2014
418,Revenue,CCHD,Home Care - Elderly - South,Other Small Contracts,Carers R Us (Bristol) Limited,219.45, 08-Dec-2014
419,Revenue,CCHD,Home Care - Elderly - North,Other Small Contracts,Carers R Us (Bristol) Limited,319.2, 08-Dec-2014
420,Revenue,CCHD,Home Care - Elderly - South,Other Small Contracts,Carers R Us (Bristol) Limited,227.43, 08-Dec-2014
421,Revenue,CCHD,Home Care - Elderly - North,Other Small Contracts,Carers R Us (Bristol) Limited,422.94, 08-Dec-2014
422,Revenue,CCHD,Home Care - Elderly - South,Other Small Contracts,Carers R Us (Bristol) Limited,219.45, 08-Dec-2014
423,Revenue,CCHD,Home Care - Elderly - North,Other Small Contracts,Carers R Us (Bristol) Limited,399, 08-Dec-2014
424,Revenue,CCHD,Home Care - Elderly - South,Other Small Contracts,Carers R Us (Bristol) Limited,231.42, 08-Dec-2014
425,Revenue,CCHD,Home Care - Elderly - North,Other Small Contracts,Carers R Us (Bristol) Limited,410.97, 08-Dec-2014
426,Revenue,CCHD,Home Care - Elderly - South,Other Small Contracts,Carers R Us (Bristol) Limited,223.44, 08-Dec-2014
427,Revenue,CCHD,Home Care - Elderly - North,Other Small Contracts,Carers R Us (Bristol) Limited,359.1, 08-Dec-2014
428,Revenue,CCHD,Home Care - Elderly - South,Other Small Contracts,Carers R Us (Bristol) Limited,219.45, 08-Dec-2014
429,Revenue,CCHD,Home Care - Elderly - North,Other Small Contracts,Carers R Us (Bristol) Limited,426.93, 08-Dec-2014
430,Revenue,CCHD,Home Care - Elderly - South,Other Small Contracts,Carers R Us (Bristol) Limited,223.44, 19-Dec-2014
431,Revenue,CCHD,Home Care - Elderly - North,Other Small Contracts,Carers R Us (Bristol) Limited,399, 19-Dec-2014
432,Revenue,CCHD,Home Care - Elderly - South,Other Small Contracts,Carers R Us (Bristol) Limited,207.48, 23-Dec-2014
433,Revenue,CCHD,Home Care - Elderly - North,Other Small Contracts,Carers R Us (Bristol) Limited,410.97, 23-Dec-2014
434,Revenue,CCHD,Home Care - Elderly - South,Other Small Contracts,Carewatch (Bristol),174.25, 01-Dec-2014
435,Revenue,CCHD,Home Care - Elderly - North,Other Small Contracts,Carewatch (Bristol),633.25, 01-Dec-2014
436,Revenue,CCHD,Home Care - Elderly - South,Other Small Contracts,Carewatch (Bristol),114.75, 01-Dec-2014
437,Revenue,CCHD,Home Care - Elderly - North,Other Small Contracts,Carewatch (Bristol),612, 01-Dec-2014
438,Revenue,CCHD,Home Care - Elderly - South,Other Small Contracts,Carewatch (Bristol),157.25, 05-Dec-2014
439,Revenue,CCHD,Home Care - Elderly - North,Other Small Contracts,Carewatch (Bristol),595, 05-Dec-2014
440,Revenue,CCHD,Bed Purchasing - North,Permanent Residential,Charlton House Residential Home,1071.28, 23-Dec-2014
441,Revenue,CCHD,Home Care - Elderly - South,Other Small Contracts,Cherish Able Care Limited,6067.35, 05-Dec-2014
442,Revenue,CCHD,Home Care - Elderly - North,Other Small Contracts,Cherish Able Care Limited,849.49, 05-Dec-2014
443,Revenue,CCHD,Home Care - Elderly - South,Other Small Contracts,Cherish Able Care Limited,5658.69, 12-Dec-2014
444,Revenue,CCHD,Home Care - Elderly - North,Other Small Contracts,Cherish Able Care Limited,845.32, 12-Dec-2014
445,Revenue,CCHD,Home Care - Elderly - South,Other Small Contracts,Cherish Able Care Limited,5892.21, 19-Dec-2014
446,Revenue,CCHD,Home Care - Elderly - North,Other Small Contracts,Cherish Able Care Limited,849.49, 19-Dec-2014
447,Revenue,CCHD,Home Care - Elderly - South,Other Small Contracts,Cherish Able Care Limited,6234.15, 24-Dec-2014
448,Revenue,CCHD,Home Care - Elderly - North,Other Small Contracts,Cherish Able Care Limited,845.32, 24-Dec-2014
449,Revenue,CCHD,Bed purchasing -S28A  Under 65 - North,Permanent Residential,Chescombe Lodge,8697, 23-Dec-2014
450,Revenue,CCHD,Bed Purchasing - Southmead Hospital,Permanent Nursing,Cholwell House Nursing Home Ltd,1972.64, 23-Dec-2014
451,Revenue,CCHD,Training - Adult Services,Training Expenses,Individual,1200, 24-Dec-2014
452,Revenue,CCHD,Bed Purchasing - North,Permanent Residential,Church House,10507.68, 23-Dec-2014
453,Revenue,CCHD,Bed Purchasing - North,Permanent Residential,Church House,5914.96, 23-Dec-2014
454,Revenue,CCHD,Section 117 Placements MH Younger,Permanent Residential,Church House,7567.32, 23-Dec-2014
455,Revenue,CCHD,Section 117 Placements MH Younger,Permanent Residential,Church House,7307.08, 23-Dec-2014
456,Revenue,CCHD,18-25 Year Olds,Permanent Residential,Citibase Watford,7012, 23-Dec-2014
457,Revenue,CCHD,Bed Purchasing - Elderly S117- North,Permanent Residential,Citibase Watford,8932.12, 23-Dec-2014
458,Revenue,CCHD,18-25 Year Olds,Permanent Residential,Citibase Watford,5454.64, 23-Dec-2014
459,Revenue,CCHD,Home Care - Elderly - South,Other Small Contracts,Cleeve Care Group,903, 24-Dec-2014
460,Revenue,CCHD,Home Care - Elderly - North,Other Small Contracts,Cleeve Care Group,395.5, 24-Dec-2014
461,Revenue,CCHD,Home Care - Elderly - South,Other Small Contracts,Cleeve Care Group,1085, 23-Dec-2014
462,Revenue,CCHD,Home Care - Elderly - North,Other Small Contracts,Cleeve Care Group,920.5, 23-Dec-2014
463,Revenue,CCHD,Home Care - Elderly - South,Other Small Contracts,Cleeve Care Group,1057, 19-Dec-2014
464,Revenue,CCHD,Home Care - Elderly - North,Other Small Contracts,Cleeve Care Group,878.5, 19-Dec-2014
465,Revenue,CCHD,Bed Purchasing - Southmead Hospital,Permanent Residential,Cleeve Lodge,1457.16, 23-Dec-2014
466,Revenue,CCHD,Bed Purchasing - South,Respite Planned - Residential,Cleeve Lodge,615, 23-Dec-2014
467,Revenue,CCHD,Bed Purchasing - North,Permanent Nursing,Cleeve Lodge,1874.24, 23-Dec-2014
468,Revenue,CCHD,Bed Purchasing - South,Respite Planned - Residential,Cleeve Lodge,1714.29, 23-Dec-2014
469,Revenue,CCHD,Bed Purchasing - South,Respite Planned - Residential,Cleeve Lodge,928.57, 23-Dec-2014
470,Revenue,CCHD,Bed Purchasing - South,Respite Planned - Residential,Cleeve Lodge,796.14, 23-Dec-2014
471,Revenue,CCHD,Bed Purchasing - South,Permanent Residential,Cleeve Lodge,1801.44, 23-Dec-2014
472,Revenue,CCHD,Bed Purchasing - South,Permanent Residential,Cleeve Lodge,2291.88, 23-Dec-2014
473,Revenue,CCHD,Bed Purchasing - North,Permanent Residential,Cleeve Lodge,1393.6, 23-Dec-2014
474,Revenue,CCHD,Bed Purchasing - South,Permanent Residential,Cleeve Lodge,1806.32, 23-Dec-2014
475,Revenue,CCHD,Bed Purchasing - South,Permanent Residential,Collingwood Residential Home,1427.48, 23-Dec-2014
476,Revenue,CCHD,Bed Purchasing - South,Permanent Residential,Collingwood Residential Home,1504.2, 23-Dec-2014
477,Revenue,CCHD,Bed Purchasing - South,Permanent Residential,Collingwood Residential Home,698.38, 23-Dec-2014
478,Revenue,CCHD,Bed Purchasing - South,Permanent Residential,Collingwood Residential Home,1448.6, 23-Dec-2014
479,Revenue,CCHD,Bed Purchasing - South,Permanent Residential,Collingwood Residential Home,1072.8, 23-Dec-2014
480,Revenue,CCHD,Bed Purchasing - South,Permanent Residential,Collingwood Residential Home,689.66, 23-Dec-2014
481,Revenue,CCHD,Bed Purchasing - South,Permanent Residential,Collingwood Residential Home,1323.04, 23-Dec-2014
482,Revenue,CCHD,Bed Purchasing - South,Permanent Residential,Collingwood Residential Home,1280.2, 23-Dec-2014
483,Revenue,CCHD,Bed and Breakfast,Bed & Breakfast,Connolly & Callaghan Limited,630, 30-Dec-2014
484,Revenue,CCHD,Bed and Breakfast,Bed & Breakfast,Connolly & Callaghan Limited,459.9, 01-Dec-2014
485,Revenue,CCHD,Bed and Breakfast,Bed & Breakfast,Connolly & Callaghan Limited,491.4, 01-Dec-2014
486,Revenue,CCHD,Bed and Breakfast,Bed & Breakfast,Connolly & Callaghan Limited,554.4, 01-Dec-2014
487,Revenue,CCHD,Bed and Breakfast,Bed & Breakfast,Connolly & Callaghan Limited,680.4, 01-Dec-2014
488,Revenue,CCHD,Bed and Breakfast,Bed & Breakfast,Connolly & Callaghan Limited,525, 01-Dec-2014
489,Revenue,CCHD,Bed and Breakfast,Bed & Breakfast,Connolly & Callaghan Limited,648.9, 01-Dec-2014
490,Revenue,CCHD,Bed and Breakfast,Bed & Breakfast,Connolly & Callaghan Limited,585.9, 01-Dec-2014
491,Revenue,CCHD,Bed and Breakfast,Bed & Breakfast,Connolly & Callaghan Limited,522.9, 01-Dec-2014
492,Revenue,CCHD,Bed and Breakfast,Bed & Breakfast,Connolly & Callaghan Limited,448, 01-Dec-2014
493,Revenue,CCHD,Bed and Breakfast,Bed & Breakfast,Connolly & Callaghan Limited,522.9, 01-Dec-2014
494,Revenue,CCHD,Bed and Breakfast,Bed & Breakfast,Connolly & Callaghan Limited,459.9, 01-Dec-2014
495,Revenue,CCHD,Bed and Breakfast,Bed & Breakfast,Connolly & Callaghan Limited,522.9, 01-Dec-2014
496,Revenue,CCHD,Bed and Breakfast,Bed & Breakfast,Connolly & Callaghan Limited,617.4, 01-Dec-2014
497,Revenue,CCHD,Bed and Breakfast,Bed & Breakfast,Connolly & Callaghan Limited,554.4, 01-Dec-2014
498,Revenue,CCHD,Bed and Breakfast,Bed & Breakfast,Connolly & Callaghan Limited,490, 01-Dec-2014
499,Revenue,CCHD,Bed and Breakfast,Bed & Breakfast,Connolly & Callaghan Limited,630, 01-Dec-2014
500,Revenue,CCHD,Bed and Breakfast,Bed & Breakfast,Connolly & Callaghan Limited,459.9, 01-Dec-2014
501,Revenue,CCHD,Bed and Breakfast,Bed & Breakfast,Connolly & Callaghan Limited,459.9, 03-Dec-2014
502,Revenue,CCHD,Bed and Breakfast,Bed & Breakfast,Connolly & Callaghan Limited,491.4, 03-Dec-2014
503,Revenue,CCHD,Bed and Breakfast,Bed & Breakfast,Connolly & Callaghan Limited,554.4, 03-Dec-2014
504,Revenue,CCHD,Bed and Breakfast,Bed & Breakfast,Connolly & Callaghan Limited,680.4, 03-Dec-2014
505,Revenue,CCHD,Bed and Breakfast,Bed & Breakfast,Connolly & Callaghan Limited,525, 03-Dec-2014
506,Revenue,CCHD,Bed and Breakfast,Bed & Breakfast,Connolly & Callaghan Limited,648.9, 03-Dec-2014
507,Revenue,CCHD,Bed and Breakfast,Bed & Breakfast,Connolly & Callaghan Limited,585.9, 03-Dec-2014
508,Revenue,CCHD,Bed and Breakfast,Bed & Breakfast,Connolly & Callaghan Limited,522.9, 03-Dec-2014
509,Revenue,CCHD,Bed and Breakfast,Bed & Breakfast,Connolly & Callaghan Limited,522.9, 03-Dec-2014
510,Revenue,CCHD,Bed and Breakfast,Bed & Breakfast,Connolly & Callaghan Limited,459.9, 03-Dec-2014
511,Revenue,CCHD,Bed and Breakfast,Bed & Breakfast,Connolly & Callaghan Limited,522.9, 03-Dec-2014
512,Revenue,CCHD,Bed and Breakfast,Bed & Breakfast,Connolly & Callaghan Limited,522.9, 03-Dec-2014
513,Revenue,CCHD,Bed and Breakfast,Bed & Breakfast,Connolly & Callaghan Limited,522.9, 03-Dec-2014
514,Revenue,CCHD,Bed and Breakfast,Bed & Breakfast,Connolly & Callaghan Limited,617.4, 03-Dec-2014
515,Revenue,CCHD,Bed and Breakfast,Bed & Breakfast,Connolly & Callaghan Limited,554.4, 03-Dec-2014
516,Revenue,CCHD,Bed and Breakfast,Bed & Breakfast,Connolly & Callaghan Limited,490, 03-Dec-2014
517,Revenue,CCHD,Bed and Breakfast,Bed & Breakfast,Connolly & Callaghan Limited,630, 03-Dec-2014
518,Revenue,CCHD,Bed and Breakfast,Bed & Breakfast,Connolly & Callaghan Limited,459.9, 03-Dec-2014
519,Revenue,CCHD,Bed and Breakfast,Bed & Breakfast,Connolly & Callaghan Limited,459.9, 08-Dec-2014
520,Revenue,CCHD,Bed and Breakfast,Bed & Breakfast,Connolly & Callaghan Limited,491.4, 08-Dec-2014
521,Revenue,CCHD,Bed and Breakfast,Bed & Breakfast,Connolly & Callaghan Limited,428.4, 08-Dec-2014
522,Revenue,CCHD,Bed and Breakfast,Bed & Breakfast,Connolly & Callaghan Limited,554.4, 08-Dec-2014
523,Revenue,CCHD,Bed and Breakfast,Bed & Breakfast,Connolly & Callaghan Limited,680.4, 08-Dec-2014
524,Revenue,CCHD,Bed and Breakfast,Bed & Breakfast,Connolly & Callaghan Limited,525, 08-Dec-2014
525,Revenue,CCHD,Bed and Breakfast,Bed & Breakfast,Connolly & Callaghan Limited,648.9, 08-Dec-2014
526,Revenue,CCHD,Bed and Breakfast,Bed & Breakfast,Connolly & Callaghan Limited,585.9, 08-Dec-2014
527,Revenue,CCHD,Bed and Breakfast,Bed & Breakfast,Connolly & Callaghan Limited,522.9, 08-Dec-2014
528,Revenue,CCHD,Bed and Breakfast,Bed & Breakfast,Connolly & Callaghan Limited,522.9, 08-Dec-2014
529,Revenue,CCHD,Bed and Breakfast,Bed & Breakfast,Connolly & Callaghan Limited,459.9, 08-Dec-2014
530,Revenue,CCHD,Bed and Breakfast,Bed & Breakfast,Connolly & Callaghan Limited,522.9, 08-Dec-2014
531,Revenue,CCHD,Bed and Breakfast,Bed & Breakfast,Connolly & Callaghan Limited,522.9, 08-Dec-2014
532,Revenue,CCHD,Bed and Breakfast,Bed & Breakfast,Connolly & Callaghan Limited,522.9, 08-Dec-2014
533,Revenue,CCHD,Bed and Breakfast,Bed & Breakfast,Connolly & Callaghan Limited,617.4, 11-Dec-2014
534,Revenue,CCHD,Bed and Breakfast,Bed & Breakfast,Connolly & Callaghan Limited,491.4, 11-Dec-2014
535,Revenue,CCHD,Bed and Breakfast,Bed & Breakfast,Connolly & Callaghan Limited,554.4, 11-Dec-2014
536,Revenue,CCHD,Bed and Breakfast,Bed & Breakfast,Connolly & Callaghan Limited,490, 11-Dec-2014
537,Revenue,CCHD,Bed and Breakfast,Bed & Breakfast,Connolly & Callaghan Limited,630, 11-Dec-2014
538,Revenue,CCHD,Bed and Breakfast,Bed & Breakfast,Connolly & Callaghan Limited,459.9, 11-Dec-2014
539,Revenue,CCHD,Bed and Breakfast,Bed & Breakfast,Connolly & Callaghan Limited,459.9, 11-Dec-2014
540,Revenue,CCHD,Bed and Breakfast,Bed & Breakfast,Connolly & Callaghan Limited,491.4, 12-Dec-2014
541,Revenue,CCHD,Bed and Breakfast,Bed & Breakfast,Connolly & Callaghan Limited,428.4, 19-Dec-2014
542,Revenue,CCHD,Bed and Breakfast,Bed & Breakfast,Connolly & Callaghan Limited,554.4, 12-Dec-2014
543,Revenue,CCHD,Bed and Breakfast,Bed & Breakfast,Connolly & Callaghan Limited,525, 12-Dec-2014
544,Revenue,CCHD,Bed and Breakfast,Bed & Breakfast,Connolly & Callaghan Limited,648.9, 12-Dec-2014
545,Revenue,CCHD,Bed and Breakfast,Bed & Breakfast,Connolly & Callaghan Limited,418.5, 12-Dec-2014
546,Revenue,CCHD,Bed and Breakfast,Bed & Breakfast,Connolly & Callaghan Limited,522.9, 12-Dec-2014
547,Revenue,CCHD,Bed and Breakfast,Bed & Breakfast,Connolly & Callaghan Limited,522.9, 12-Dec-2014
548,Revenue,CCHD,Bed and Breakfast,Bed & Breakfast,Connolly & Callaghan Limited,459.9, 12-Dec-2014
549,Revenue,CCHD,Bed and Breakfast,Bed & Breakfast,Connolly & Callaghan Limited,522.9, 12-Dec-2014
550,Revenue,CCHD,Bed and Breakfast,Bed & Breakfast,Connolly & Callaghan Limited,522.9, 12-Dec-2014
551,Revenue,CCHD,Bed and Breakfast,Bed & Breakfast,Connolly & Callaghan Limited,617.4, 12-Dec-2014
552,Revenue,CCHD,Bed and Breakfast,Bed & Breakfast,Connolly & Callaghan Limited,522.9, 12-Dec-2014
553,Revenue,CCHD,Bed and Breakfast,Bed & Breakfast,Connolly & Callaghan Limited,490, 12-Dec-2014
554,Revenue,CCHD,Bed and Breakfast,Bed & Breakfast,Connolly & Callaghan Limited,630, 12-Dec-2014
555,Revenue,CCHD,Bed and Breakfast,Bed & Breakfast,Connolly & Callaghan Limited,459.9, 12-Dec-2014
556,Revenue,CCHD,Bed and Breakfast,Bed & Breakfast,Connolly & Callaghan Limited,459.9, 23-Dec-2014
557,Revenue,CCHD,Bed and Breakfast,Bed & Breakfast,Connolly & Callaghan Limited,491.4, 23-Dec-2014
558,Revenue,CCHD,Bed and Breakfast,Bed & Breakfast,Connolly & Callaghan Limited,428.4, 23-Dec-2014
559,Revenue,CCHD,Bed and Breakfast,Bed & Breakfast,Connolly & Callaghan Limited,554.4, 23-Dec-2014
560,Revenue,CCHD,Bed and Breakfast,Bed & Breakfast,Connolly & Callaghan Limited,525, 23-Dec-2014
561,Revenue,CCHD,Bed and Breakfast,Bed & Breakfast,Connolly & Callaghan Limited,648.9, 23-Dec-2014
562,Revenue,CCHD,Bed and Breakfast,Bed & Breakfast,Connolly & Callaghan Limited,491.4, 23-Dec-2014
563,Revenue,CCHD,Bed and Breakfast,Bed & Breakfast,Connolly & Callaghan Limited,554.4, 23-Dec-2014
564,Revenue,CCHD,Bed and Breakfast,Bed & Breakfast,Connolly & Callaghan Limited,522.9, 23-Dec-2014
565,Revenue,CCHD,Bed and Breakfast,Bed & Breakfast,Connolly & Callaghan Limited,522.9, 23-Dec-2014
566,Revenue,CCHD,Bed and Breakfast,Bed & Breakfast,Connolly & Callaghan Limited,459.9, 23-Dec-2014
567,Revenue,CCHD,Bed and Breakfast,Bed & Breakfast,Connolly & Callaghan Limited,522.9, 23-Dec-2014
568,Revenue,CCHD,Bed and Breakfast,Bed & Breakfast,Connolly & Callaghan Limited,522.9, 23-Dec-2014
569,Revenue,CCHD,Bed and Breakfast,Bed & Breakfast,Connolly & Callaghan Limited,546, 23-Dec-2014
570,Revenue,CCHD,Bed and Breakfast,Bed & Breakfast,Connolly & Callaghan Limited,617.4, 23-Dec-2014
571,Revenue,CCHD,Bed and Breakfast,Bed & Breakfast,Connolly & Callaghan Limited,522.9, 23-Dec-2014
572,Revenue,CCHD,Bed and Breakfast,Bed & Breakfast,Connolly & Callaghan Limited,490, 23-Dec-2014
573,Revenue,CCHD,Bed and Breakfast,Bed & Breakfast,Connolly & Callaghan Limited,630, 23-Dec-2014
574,Revenue,CCHD,Bed and Breakfast,Bed & Breakfast,Connolly & Callaghan Limited,459.9, 22-Dec-2014
575,Revenue,CCHD,Bed and Breakfast,Bed & Breakfast,Connolly & Callaghan Limited,491.4, 30-Dec-2014
576,Revenue,CCHD,Bed and Breakfast,Bed & Breakfast,Connolly & Callaghan Limited,554.4, 30-Dec-2014
577,Revenue,CCHD,Bed and Breakfast,Bed & Breakfast,Connolly & Callaghan Limited,525, 30-Dec-2014
578,Revenue,CCHD,Bed and Breakfast,Bed & Breakfast,Connolly & Callaghan Limited,648.9, 30-Dec-2014
579,Revenue,CCHD,Bed and Breakfast,Bed & Breakfast,Connolly & Callaghan Limited,491.4, 30-Dec-2014
580,Revenue,CCHD,Bed and Breakfast,Bed & Breakfast,Connolly & Callaghan Limited,554.4, 30-Dec-2014
581,Revenue,CCHD,Bed and Breakfast,Bed & Breakfast,Connolly & Callaghan Limited,522.9, 30-Dec-2014
582,Revenue,CCHD,Bed and Breakfast,Bed & Breakfast,Connolly & Callaghan Limited,558, 30-Dec-2014
583,Revenue,CCHD,Bed and Breakfast,Bed & Breakfast,Connolly & Callaghan Limited,459.9, 30-Dec-2014
584,Revenue,CCHD,Bed and Breakfast,Bed & Breakfast,Connolly & Callaghan Limited,522.9, 30-Dec-2014
585,Revenue,CCHD,Bed and Breakfast,Bed & Breakfast,Connolly & Callaghan Limited,522.9, 30-Dec-2014
586,Revenue,CCHD,Bed and Breakfast,Bed & Breakfast,Connolly & Callaghan Limited,546, 30-Dec-2014
587,Revenue,CCHD,Bed and Breakfast,Bed & Breakfast,Connolly & Callaghan Limited,617.4, 30-Dec-2014
588,Revenue,CCHD,Bed and Breakfast,Bed & Breakfast,Connolly & Callaghan Limited,522.9, 30-Dec-2014
589,Revenue,CCHD,Bed and Breakfast,Bed & Breakfast,Connolly & Callaghan Limited,490, 30-Dec-2014
590,Revenue,CCHD,Bed and Breakfast,Bed & Breakfast,Connolly & Callaghan Limited,630, 30-Dec-2014
591,Revenue,CCHD,Bed and Breakfast,Bed & Breakfast,Connolly & Callaghan Limited,459.9, 30-Dec-2014
592,Revenue,CCHD,Bed Purchasing - Southmead Hospital,Permanent Residential,Coombs Wood House,965, 23-Dec-2014
593,Revenue,CCHD,Sexual Health,Other Supplies & Services,Coventry & Warwickshire Partnership NHS Trust,671, 29-Dec-2014
594,Revenue,CCHD,Bed Purchasing - S28A - Over 65- North,Permanent Residential,Cream Ii Ltd  Longrun House,8039.76, 23-Dec-2014
595,Revenue,CCHD,Bed Purchasing - South,Permanent Residential,Cream Ii Ltd  Longrun House,5628.52, 23-Dec-2014
596,Revenue,CCHD,Bed purchasing -S28A  Under 65 - North,Permanent Residential,Creedy Court,9294.4, 23-Dec-2014
597,Revenue,CCHD,Bed Purchasing - S28A - Over 65- North,Permanent Residential,Creedy Court,7726.88, 23-Dec-2014
598,Revenue,CCHD,Bed Purchasing - North,Permanent Residential,Creedy Court,12580.08, 22-Dec-2014
599,Revenue,CCHD,Bed Purchasing - South,Permanent Residential,Daneswood,11009.48, 23-Dec-2014
600,Revenue,CCHD,Bed Purchasing - North,Permanent Residential,Daneswood,9114.88, 23-Dec-2014
601,Revenue,CCHD,Bed Purchasing - Elderly S117- North,Permanent Nursing,Danshell Healthcare Group,11529, 23-Dec-2014
602,Revenue,CCHD,Learning Difficulties PSL,Other Supplies & Services,Individual,2016.44, 22-Dec-2014
603,Revenue,CCHD,Purchase of Non-Res Care - North,Day Care / Social Activities,Design 4 Life Ltd,1049.76, 30-Dec-2014
604,Revenue,CCHD,Purchase of Non-Res Care - North,Day Care / Social Activities,Design 4 Life Ltd,1049.76, 30-Dec-2014
605,Revenue,CCHD,Community Support - South,Preventative Assistance,Design 4 Life Ltd,2694.96, 17-Dec-2014
606,Revenue,CCHD,Community Support - South,Preventative Assistance,Design 4 Life Ltd,673.74, 17-Dec-2014
607,Revenue,CCHD,Purchase of Non-Res Care - North,Day Care / Social Activities,Design 4 Life Ltd,1533.71, 22-Dec-2014
608,Revenue,CCHD,Purchase of Non-Res Care - North,Day Care / Social Activities,Design 4 Life Ltd,1226.96, 29-Dec-2014
609,Revenue,CCHD,Bed Purchasing - South,Permanent Residential,Devon & Cornwall Autistic Community Trus,8796.92, 23-Dec-2014
610,Revenue,CCHD,Home Care - Elderly - South,Other Small Contracts,Dhek Bhal,638.88, 05-Dec-2014
611,Revenue,CCHD,Home Care - Elderly - North,Other Small Contracts,Dhek Bhal,193.6, 05-Dec-2014
612,Revenue,CCHD,Home Care - Elderly - South,Other Small Contracts,Dhek Bhal,667.92, 05-Dec-2014
613,Revenue,CCHD,Home Care - Elderly - North,Other Small Contracts,Dhek Bhal,193.6, 05-Dec-2014
614,Revenue,CCHD,Home Care - Elderly - South,Other Small Contracts,Dhek Bhal,571.12, 05-Dec-2014
615,Revenue,CCHD,Home Care - Elderly - North,Other Small Contracts,Dhek Bhal,193.6, 05-Dec-2014
616,Revenue,CCHD,Home Care - Elderly - South,Day Care / Social Activities,Dhek Bhal,58.08, 16-Dec-2014
617,Revenue,CCHD,Home Care - Elderly - South,Other Small Contracts,Dhek Bhal,503.36, 16-Dec-2014
618,Revenue,CCHD,Home Care - Elderly - North,Other Small Contracts,Dhek Bhal,193.6, 16-Dec-2014
619,Revenue,CCHD,Home Care - Elderly - South,Other Small Contracts,Dhek Bhal,672.76, 19-Dec-2014
620,Revenue,CCHD,Home Care - Elderly - North,Other Small Contracts,Dhek Bhal,193.6, 19-Dec-2014
621,Revenue,CCHD,Supported Living - South,Private & Voluntary Home Care,Dimensions (UK) Ltd,1783.52, 17-Dec-2014
622,Revenue,CCHD,Supported Living - South,Private & Voluntary Home Care,Dimensions (UK) Ltd,7748.4, 16-Dec-2014
623,Revenue,CCHD,Training - Adult Services,Training Expenses,Do The Right Thing Ltd,875, 17-Dec-2014
624,Revenue,CCHD,Home Care - Elderly - South,Other Small Contracts,DoCare Ltd,3975.75, 01-Dec-2014
625,Revenue,CCHD,Home Care - Elderly - North,Day Care / Social Activities,DoCare Ltd,38, 01-Dec-2014
626,Revenue,CCHD,Home Care - Elderly - North,Other Small Contracts,DoCare Ltd,8398, 01-Dec-2014
627,Revenue,CCHD,Home Care - Elderly - South,Other Small Contracts,DoCare Ltd,4023.26, 01-Dec-2014
628,Revenue,CCHD,Home Care - Elderly - North,Day Care / Social Activities,DoCare Ltd,4.75, 01-Dec-2014
629,Revenue,CCHD,Home Care - Elderly - North,Other Small Contracts,DoCare Ltd,7851.75, 01-Dec-2014
630,Revenue,CCHD,Home Care - Elderly - South,Other Small Contracts,DoCare Ltd,4047, 01-Dec-2014
631,Revenue,CCHD,Home Care - Elderly - North,Day Care / Social Activities,DoCare Ltd,19, 01-Dec-2014
632,Revenue,CCHD,Home Care - Elderly - North,Other Small Contracts,DoCare Ltd,7913.5, 01-Dec-2014
633,Revenue,CCHD,Home Care - Elderly - South,Other Small Contracts,DoCare Ltd,4047.01, 01-Dec-2014
634,Revenue,CCHD,Home Care - Elderly - North,Day Care / Social Activities,DoCare Ltd,38, 01-Dec-2014
635,Revenue,CCHD,Home Care - Elderly - North,Other Small Contracts,DoCare Ltd,8146.25, 01-Dec-2014
636,Revenue,CCHD,Home Care - Elderly - South,Other Small Contracts,DoCare Ltd,3909.25, 01-Dec-2014
637,Revenue,CCHD,Home Care - Elderly - North,Day Care / Social Activities,DoCare Ltd,38, 01-Dec-2014
638,Revenue,CCHD,Home Care - Elderly - North,Other Small Contracts,DoCare Ltd,7942, 01-Dec-2014
639,Revenue,CCHD,Home Care - Elderly - South,Other Small Contracts,DoCare Ltd,3833.26, 01-Dec-2014
640,Revenue,CCHD,Home Care - Elderly - North,Day Care / Social Activities,DoCare Ltd,33.25, 01-Dec-2014
641,Revenue,CCHD,Home Care - Elderly - North,Other Small Contracts,DoCare Ltd,7980, 01-Dec-2014
642,Revenue,CCHD,Home Care - Elderly - South,Other Small Contracts,DoCare Ltd,3035.25, 23-Dec-2014
643,Revenue,CCHD,Home Care - Elderly - North,Day Care / Social Activities,DoCare Ltd,38, 23-Dec-2014
644,Revenue,CCHD,Home Care - Elderly - North,Other Small Contracts,DoCare Ltd,7965.75, 23-Dec-2014
645,Revenue,CCHD,Home Care - Elderly - South,Other Small Contracts,DoCare Ltd,2911.75, 23-Dec-2014
646,Revenue,CCHD,Home Care - Elderly - North,Day Care / Social Activities,DoCare Ltd,38, 23-Dec-2014
647,Revenue,CCHD,Home Care - Elderly - North,Other Small Contracts,DoCare Ltd,7471.75, 23-Dec-2014
648,Revenue,CCHD,Cambrian Green Day Service,"Provisions (Food, etc)",Douglas Liddell,595, 05-Dec-2014
649,Revenue,CCHD,Cambrian Green Day Service,"Provisions (Food, etc)",Douglas Liddell,585, 19-Dec-2014
650,Revenue,CCHD,Cambrian Green Day Service,"Provisions (Food, etc)",Douglas Liddell,555, 19-Dec-2014
651,Revenue,CCHD,Social Lettings Agency,Other Supplies & Services,Individual,580.74, 24-Dec-2014
652,Revenue,CCHD,MH Purchasing - Younger,Permanent Residential,Dunraven House,1854.32, 23-Dec-2014
653,Revenue,CCHD,Bed and Breakfast,Bed & Breakfast,E J Bartlett,504, 09-Dec-2014
654,Revenue,CCHD,Bed and Breakfast,Bed & Breakfast,E J Bartlett,651, 08-Dec-2014
655,Revenue,CCHD,Bed and Breakfast,Bed & Breakfast,E J Bartlett,504, 08-Dec-2014
656,Revenue,CCHD,Bed and Breakfast,Bed & Breakfast,E J Bartlett,651, 22-Dec-2014
657,Revenue,CCHD,Bed and Breakfast,Bed & Breakfast,E J Bartlett,420, 11-Dec-2014
658,Revenue,CCHD,Bed and Breakfast,Bed & Breakfast,E J Bartlett,504, 11-Dec-2014
659,Revenue,CCHD,Bed and Breakfast,Bed & Breakfast,E J Bartlett,651, 19-Dec-2014
660,Revenue,CCHD,Bed and Breakfast,Bed & Breakfast,E J Bartlett,420, 19-Dec-2014
661,Revenue,CCHD,Bed and Breakfast,Bed & Breakfast,E J Bartlett,504, 19-Dec-2014
662,Revenue,CCHD,Bed and Breakfast,Bed & Breakfast,E J Bartlett,651, 24-Dec-2014
663,Revenue,CCHD,Bed and Breakfast,Bed & Breakfast,E J Bartlett,420, 24-Dec-2014
664,Revenue,CCHD,Bed Purchasing - North,Permanent Residential,East Court,2213.44, 23-Dec-2014
665,Revenue,CCHD,Home Care - Elderly - South,Day Care / Social Activities,Easton Community Centre,520.56, 23-Dec-2014
666,Revenue,CCHD,Home Care - Elderly - South,Day Care / Social Activities,Easton Community Centre,520.56, 23-Dec-2014
667,Revenue,CCHD,Home Care - Elderly - North,Day Care / Social Activities,Easton Community Centre,520.56, 23-Dec-2014
668,Revenue,CCHD,Home Care - Elderly - North,Day Care / Social Activities,Easton Community Centre,520.56, 23-Dec-2014
669,Revenue,CCHD,Home Care - Elderly - South,Supported Living,Eclipse Office Park,3592.96, 23-Dec-2014
670,Revenue,CCHD,Home Care - Elderly - North,Supported Living,Eclipse Office Park,4293.72, 23-Dec-2014
671,Revenue,CCHD,Home Care - Elderly - South,Supported Living,Eclipse Office Park,3592.96, 23-Dec-2014
672,Revenue,CCHD,Supported Living (S28a) North,Private & Voluntary Home Care,Eclipse Office Park,4032.8, 23-Dec-2014
673,Revenue,CCHD,Home Care - Elderly - South,Supported Living,Eclipse Office Park,3604.68, 23-Dec-2014
674,Revenue,CCHD,Home Care - Elderly - South,Supported Living,Eclipse Office Park,2292.92, 23-Dec-2014
675,Revenue,CCHD,Supported Living (S28a) North,Private & Voluntary Home Care,Eclipse Office Park,4002.44, 23-Dec-2014
676,Revenue,CCHD,Supported Living (S28a) North,Private & Voluntary Home Care,Eclipse Office Park,4002.44, 23-Dec-2014
677,Revenue,CCHD,Supported Living (S28a) North,Private & Voluntary Home Care,Eclipse Office Park,4032.8, 23-Dec-2014
678,Revenue,CCHD,Supported Living (S28a) South,Supported Living,Eclipse Office Park,3839.88, 23-Dec-2014
679,Revenue,CCHD,Supported Living (S28a) North,Private & Voluntary Home Care,Eclipse Office Park,3564.6, 23-Dec-2014
680,Revenue,CCHD,Supported Living (S28a) North,Private & Voluntary Home Care,Eclipse Office Park,3564.6, 23-Dec-2014
681,Revenue,CCHD,Home Care - Elderly - South,Supported Living,Eclipse Office Park,2949.92, 23-Dec-2014
682,Revenue,CCHD,Supported Living (S28a) South,Supported Living,Eclipse Office Park,5447, 23-Dec-2014
683,Revenue,CCHD,Home Care - Elderly - South,Supported Living,Eclipse Office Park,2208.68, 23-Dec-2014
684,Revenue,CCHD,Supported Living (S28a) South,Supported Living,Eclipse Office Park,2208.68, 23-Dec-2014
685,Revenue,CCHD,Supported Living (S28a) North,Private & Voluntary Home Care,Eclipse Office Park,4303.72, 23-Dec-2014
686,Revenue,CCHD,Supported Living (S28a) North,Private & Voluntary Home Care,Eclipse Office Park,3576.6, 23-Dec-2014
687,Revenue,CCHD,Supported Living (S28a) South,Supported Living,Eclipse Office Park,2088.68, 23-Dec-2014
688,Revenue,CCHD,Supported Living (S28a) South,Supported Living,Eclipse Office Park,2208.68, 23-Dec-2014
689,Revenue,CCHD,Supported Living (S28a) South,Supported Living,Eclipse Office Park,2949.92, 23-Dec-2014
690,Revenue,CCHD,Home Care - Elderly - South,Day Care / Social Activities,Eclipse Office Park,735.12, 23-Dec-2014
691,Revenue,CCHD,Home Care - Elderly - North,Day Care / Social Activities,Eclipse Office Park,980.16, 23-Dec-2014
692,Revenue,CCHD,Home Care - Elderly - South,Day Care / Social Activities,Eclipse Office Park,612.6, 23-Dec-2014
693,Revenue,CCHD,Home Care - Elderly - South,Day Care / Social Activities,Eclipse Office Park,857.64, 23-Dec-2014
694,Revenue,CCHD,Home Care - Elderly - South,Day Care / Social Activities,Eclipse Office Park,735.12, 23-Dec-2014
695,Revenue,CCHD,Home Care - Elderly - South,Day Care / Social Activities,Eclipse Office Park,857.64, 23-Dec-2014
696,Revenue,CCHD,Home Care - Elderly - South,Day Care / Social Activities,Eclipse Office Park,1225.2, 23-Dec-2014
697,Revenue,CCHD,Home Care - Elderly - South,Day Care / Social Activities,Eclipse Office Park,735.12, 23-Dec-2014
698,Revenue,CCHD,Home Care - Elderly - South,Day Care / Social Activities,Eclipse Office Park,857.64, 23-Dec-2014
699,Revenue,CCHD,Home Care - Elderly - South,Day Care / Social Activities,Eclipse Office Park,980.16, 23-Dec-2014
700,Revenue,CCHD,Bed Purchasing - North,Permanent Residential,Eclipse Office Park,2653.24, 23-Dec-2014
701,Revenue,CCHD,Bed Purchasing - South,Permanent Residential,Eclipse Office Park,1429.36, 23-Dec-2014
702,Revenue,CCHD,Bed Purchasing - North,Permanent Residential,Eclipse Office Park,3435.28, 23-Dec-2014
703,Revenue,CCHD,Bed Purchasing - South,Permanent Residential,Eclipse Office Park,4867.92, 23-Dec-2014
704,Revenue,CCHD,Bed Purchasing - South,Permanent Residential,Eclipse Office Park,5442.48, 23-Dec-2014
705,Revenue,CCHD,Bed Purchasing - South,Permanent Nursing,Eclipse Office Park,2740.16, 23-Dec-2014
706,Revenue,CCHD,Bed Purchasing - South,Permanent Nursing,Eclipse Office Park,1281.68, 23-Dec-2014
707,Revenue,CCHD,Bed Purchasing - South,Permanent Residential,Eclipse Office Park,3605.96, 23-Dec-2014
708,Revenue,CCHD,Bed purchasing - Elderly S117 - South,Permanent Nursing,Eclipse Office Park,1992, 23-Dec-2014
709,Revenue,CCHD,Section 117 Placements MH Younger,Permanent Residential,Eclipse Office Park,1356, 23-Dec-2014
710,Revenue,CCHD,Bed purchasing - Elderly S117 - South,Permanent Nursing,Eclipse Office Park,1992, 23-Dec-2014
711,Revenue,CCHD,Bed Purchasing - South,Permanent Nursing,Eclipse Office Park,926.6, 23-Dec-2014
712,Revenue,CCHD,Bed Purchasing - North,Permanent Nursing,Eclipse Office Park,1421.72, 23-Dec-2014
713,Revenue,CCHD,Bed Purchasing - South,Permanent Residential,Eclipse Office Park,4125.12, 23-Dec-2014
714,Revenue,CCHD,Bed purchasing -S28A  Under 65 - North,Permanent Nursing,Eclipse Office Park,5411.96, 23-Dec-2014
715,Revenue,CCHD,Bed purchasing -S28A  Under 65 - North,Permanent Residential,Eclipse Office Park,5334.12, 23-Dec-2014
716,Revenue,CCHD,Bed purchasing - S28A Under 65 - South,Permanent Residential,Eclipse Office Park,5527.88, 23-Dec-2014
717,Revenue,CCHD,Bed Purchasing - South,Permanent Residential,Eclipse Office Park,1302.92, 23-Dec-2014
718,Revenue,CCHD,Bed Purchasing - South,Permanent Residential,Eclipse Office Park,5018.44, 23-Dec-2014
719,Revenue,CCHD,Bed Purchasing - South,Permanent Residential,Eclipse Office Park,5534.96, 23-Dec-2014
720,Revenue,CCHD,Bed purchasing - S28A Under 65 - South,Permanent Nursing,Eclipse Office Park,7294.32, 23-Dec-2014
721,Revenue,CCHD,MH Purchasing - Younger,Permanent Residential,Eclipse Office Park,860.2, 23-Dec-2014
722,Revenue,CCHD,Bed Purchasing - South,Permanent Residential,Eclipse Office Park,5124.6, 23-Dec-2014
723,Revenue,CCHD,Bed Purchasing - South,Permanent Residential,Eclipse Office Park,3877.68, 23-Dec-2014
724,Revenue,CCHD,Bed Purchasing - North,Permanent Residential,Eclipse Office Park,4023.56, 23-Dec-2014
725,Revenue,CCHD,Bed purchasing -S28A  Under 65 - North,Permanent Residential,Eclipse Office Park,5258.04, 23-Dec-2014
726,Revenue,CCHD,Bed Purchasing - North,Permanent Residential,Eclipse Office Park,4634.84, 23-Dec-2014
727,Revenue,CCHD,Bed purchasing -S28A  Under 65 - North,Permanent Residential,Eclipse Office Park,7058.72, 23-Dec-2014
728,Revenue,CCHD,Bed purchasing -S28A  Under 65 - North,Permanent Nursing,Eclipse Office Park,5801.32, 23-Dec-2014
729,Revenue,CCHD,Bed purchasing -S28A  Under 65 - North,Permanent Nursing,Eclipse Office Park,53556.3, 23-Dec-2014
730,Revenue,CCHD,Bed Purchasing - South,Permanent Residential,Eclipse Office Park,4515.52, 23-Dec-2014
731,Revenue,CCHD,Bed Purchasing - South,Permanent Residential,Eclipse Office Park,3210.16, 23-Dec-2014
732,Revenue,CCHD,Bed purchasing -S28A  Under 65 - North,Permanent Residential,Eclipse Office Park,6755.12, 23-Dec-2014
733,Revenue,CCHD,Bed purchasing - S28A Under 65 - South,Permanent Residential,Eclipse Office Park,4525.88, 23-Dec-2014
734,Revenue,CCHD,Bed Purchasing - S28A - Over 65- North,Permanent Residential,Eclipse Office Park,6604.52, 23-Dec-2014
735,Revenue,CCHD,Bed purchasing -S28A  Under 65 - North,Permanent Residential,Eclipse Office Park,7114.72, 23-Dec-2014
736,Revenue,CCHD,Bed purchasing -S28A  Under 65 - North,Permanent Residential,Eclipse Office Park,7058.72, 23-Dec-2014
737,Revenue,CCHD,Bed Purchasing - LD S28A- Over 65- South,Permanent Residential,Eclipse Office Park,4098.32, 23-Dec-2014
738,Revenue,CCHD,Bed purchasing - S28A Under 65 - South,Permanent Residential,Eclipse Office Park,4867.92, 23-Dec-2014
739,Revenue,CCHD,Bed purchasing - S28A Under 65 - South,Permanent Residential,Eclipse Office Park,4761.36, 23-Dec-2014
740,Revenue,CCHD,Bed purchasing - S28A Under 65 - South,Permanent Residential,Eclipse Office Park,3663.96, 23-Dec-2014
741,Revenue,CCHD,Bed Purchasing - LD S28A- Over 65- South,Permanent Residential,Eclipse Office Park,5091.12, 23-Dec-2014
742,Revenue,CCHD,Bed Purchasing - LD S28A- Over 65- South,Permanent Residential,Eclipse Office Park,4919.32, 23-Dec-2014
743,Revenue,CCHD,Bed Purchasing - LD S28A- Over 65- South,Permanent Residential,Eclipse Office Park,13151.01, 23-Dec-2014
744,Revenue,CCHD,Bed Purchasing - LD S28A- Over 65- South,Permanent Residential,Eclipse Office Park,5075.32, 23-Dec-2014
745,Revenue,CCHD,Bed Purchasing - LD S28A- Over 65- South,Permanent Residential,Eclipse Office Park,4353.28, 23-Dec-2014
746,Revenue,CCHD,Bed Purchasing - LD S28A- Over 65- South,Permanent Residential,Eclipse Office Park,5170.2, 23-Dec-2014
747,Revenue,CCHD,Bed Purchasing - S28A - Over 65- North,Permanent Residential,Eclipse Office Park,2875.08, 23-Dec-2014
748,Revenue,CCHD,Section 117 Placements MH Younger,Permanent Residential,Eclipse Office Park,1356, 23-Dec-2014
749,Revenue,CCHD,Bed Purchasing - South,Permanent Residential,Eclipse Office Park,860.2, 23-Dec-2014
750,Revenue,CCHD,Bed purchasing - S28A Under 65 - South,Permanent Residential,Eclipse Office Park,5415.92, 23-Dec-2014
751,Revenue,CCHD,Bed Purchasing - North,Permanent Residential,Eclipse Office Park,4307.44, 23-Dec-2014
752,Revenue,CCHD,Bed Purchasing - North,Permanent Nursing,Eclipse Office Park,6842.6, 23-Dec-2014
753,Revenue,CCHD,Swift Dump Code,Permanent Residential,Eclipse Office Park,1279.32, 23-Dec-2014
754,Revenue,CCHD,Bed Purchasing - North,Permanent Nursing,Eclipse Office Park,1104.48, 23-Dec-2014
755,Revenue,CCHD,Bed Purchasing - South,Permanent Residential,Eclipse Office Park,4271.52, 23-Dec-2014
756,Revenue,CCHD,Bed purchasing -S28A  Under 65 - North,Permanent Residential,Eclipse Office Park,5675.56, 23-Dec-2014
757,Revenue,CCHD,Bed Purchasing - S28A - Over 65- North,Permanent Residential,Eclipse Office Park,3599.08, 23-Dec-2014
758,Revenue,CCHD,Bed Purchasing - Elderly S117- North,Permanent Residential,Eclipse Office Park,1756, 23-Dec-2014
759,Revenue,CCHD,MH Purchasing - Younger,Permanent Residential,Eclipse Office Park,1036.6, 23-Dec-2014
760,Revenue,CCHD,Bed Purchasing - S28A - Over 65- North,Permanent Residential,Eclipse Office Park,3214.56, 23-Dec-2014
761,Revenue,CCHD,Bed Purchasing - LD S28A- Over 65- South,Permanent Residential,Eclipse Office Park,3882.08, 23-Dec-2014
762,Revenue,CCHD,Bed purchasing - S28A Under 65 - South,Permanent Residential,Eclipse Office Park,5471.56, 23-Dec-2014
763,Revenue,CCHD,Bed purchasing - S28A Under 65 - South,Permanent Nursing,Eclipse Office Park,5364.24, 23-Dec-2014
764,Revenue,CCHD,Bed Purchasing - LD S28A- Over 65- South,Permanent Nursing,Eclipse Office Park,5225.52, 23-Dec-2014
765,Revenue,CCHD,Bed Purchasing - LD S28A- Over 65- South,Permanent Residential,Eclipse Office Park,4802.88, 23-Dec-2014
766,Revenue,CCHD,Bed Purchasing - LD S28A- Over 65- South,Permanent Residential,Eclipse Office Park,4524.76, 23-Dec-2014
767,Revenue,CCHD,Bed Purchasing - LD S28A- Over 65- South,Permanent Residential,Eclipse Office Park,4599.84, 23-Dec-2014
768,Revenue,CCHD,Bed purchasing - S28A Under 65 - South,Permanent Residential,Eclipse Office Park,6053.44, 23-Dec-2014
769,Revenue,CCHD,Bed Purchasing - LD S28A- Over 65- South,Permanent Residential,Eclipse Office Park,4667.16, 23-Dec-2014
770,Revenue,CCHD,Bed Purchasing - S28A - Over 65- North,Permanent Residential,Eclipse Office Park,4750.44, 23-Dec-2014
771,Revenue,CCHD,Bed Purchasing - South,Permanent Nursing,Eclipse Office Park,3284.32, 23-Dec-2014
772,Revenue,CCHD,Bed Purchasing - S28A - Over 65- North,Permanent Residential,Eclipse Office Park,4588.52, 23-Dec-2014
773,Revenue,CCHD,Bed Purchasing - S28A - Over 65- North,Permanent Residential,Eclipse Office Park,4759.28, 23-Dec-2014
774,Revenue,CCHD,Bed purchasing - S28A Under 65 - South,Permanent Residential,Eclipse Office Park,4756.28, 23-Dec-2014
775,Revenue,CCHD,Bed Purchasing - S28A - Over 65- North,Permanent Residential,Eclipse Office Park,4503.16, 23-Dec-2014
776,Revenue,CCHD,Bed purchasing -S28A  Under 65 - North,Permanent Residential,Eclipse Office Park,7058.72, 23-Dec-2014
777,Revenue,CCHD,Bed purchasing -S28A  Under 65 - North,Permanent Residential,Eclipse Office Park,3304.04, 23-Dec-2014
778,Revenue,CCHD,Bed Purchasing - S28A - Over 65- North,Permanent Residential,Eclipse Office Park,3133.72, 23-Dec-2014
779,Revenue,CCHD,Bed Purchasing - S28A - Over 65- North,Permanent Residential,Eclipse Office Park,3431.24, 23-Dec-2014
780,Revenue,CCHD,Bed Purchasing - LD S28A- Over 65- South,Permanent Residential,Eclipse Office Park,3086.04, 23-Dec-2014
781,Revenue,CCHD,Bed Purchasing - North,Permanent Residential,Eclipse Office Park,6773.16, 23-Dec-2014
782,Revenue,CCHD,Bed Purchasing - South,Permanent Residential,Eclipse Office Park,1318.68, 23-Dec-2014
783,Revenue,CCHD,MH Purchasing - Younger,Permanent Nursing,Eclipse Office Park,937.8, 23-Dec-2014
784,Revenue,CCHD,MH Purchasing - Younger,Permanent Nursing,Eclipse Office Park,952.2, 23-Dec-2014
785,Revenue,CCHD,Bed Purchasing - South,Permanent Residential,Eclipse Office Park,3254.24, 23-Dec-2014
786,Revenue,CCHD,Bed purchasing - S28A Under 65 - South,Permanent Residential,Eclipse Office Park,5919.12, 23-Dec-2014
787,Revenue,CCHD,Bed purchasing - S28A Under 65 - South,Permanent Residential,Eclipse Office Park,6010.16, 23-Dec-2014
788,Revenue,CCHD,Bed Purchasing - LD S28A- Over 65- South,Permanent Residential,Eclipse Office Park,4353.28, 23-Dec-2014
789,Revenue,CCHD,Bed Purchasing - South,Permanent Residential,Eclipse Office Park,5919.52, 23-Dec-2014
790,Revenue,CCHD,Bed Purchasing - LD S28A- Over 65- South,Permanent Nursing,Eclipse Office Park,4528.36, 23-Dec-2014
791,Revenue,CCHD,Bed Purchasing - LD S28A- Over 65- South,Permanent Nursing,Eclipse Office Park,5225.52, 23-Dec-2014
792,Revenue,CCHD,Bed Purchasing - LD S28A- Over 65- South,Permanent Residential,Eclipse Office Park,3540.96, 23-Dec-2014
793,Revenue,CCHD,Bed Purchasing - LD S28A- Over 65- South,Permanent Residential,Eclipse Office Park,4343.36, 23-Dec-2014
794,Revenue,CCHD,Bed Purchasing - LD S28A- Over 65- South,Permanent Residential,Eclipse Office Park,4832.92, 23-Dec-2014
795,Revenue,CCHD,Bed Purchasing - South,Permanent Residential,Eclipse Office Park,1224.16, 23-Dec-2014
796,Revenue,CCHD,Bed purchasing -S28A  Under 65 - North,Permanent Nursing,Eclipse Office Park,7675.92, 23-Dec-2014
797,Revenue,CCHD,Bed Purchasing - Southmead Hospital,Permanent Nursing,Eclipse Office Park,1348.48, 23-Dec-2014
798,Revenue,CCHD,Bed Purchasing - South,Permanent Residential,Eclipse Office Park,5257, 23-Dec-2014
799,Revenue,CCHD,Bed Purchasing - Elderly S117- North,Permanent Nursing,Eclipse Office Park,1992, 23-Dec-2014
800,Revenue,CCHD,Bed Purchasing - North,Permanent Nursing,Eclipse Office Park,836.44, 23-Dec-2014
801,Revenue,CCHD,Section 117 Placements MH Younger,Permanent Residential,Eclipse Office Park,1356, 23-Dec-2014
802,Revenue,CCHD,Bed Purchasing - South,Permanent Nursing,Eclipse Office Park,3389.36, 23-Dec-2014
803,Revenue,CCHD,Bed Purchasing - South,Permanent Residential,Eclipse Office Park,3389.48, 23-Dec-2014
804,Revenue,CCHD,Bed Purchasing - LD S28A- Over 65- South,Permanent Nursing,Eclipse Office Park,2981.68, 23-Dec-2014
805,Revenue,CCHD,Bed Purchasing - LD S28A- Over 65- South,Permanent Nursing,Eclipse Office Park,2767.44, 23-Dec-2014
806,Revenue,CCHD,Bed Purchasing - S28A - Over 65- North,Permanent Nursing,Eclipse Office Park,3692.72, 23-Dec-2014
807,Revenue,CCHD,Bed Purchasing - S28A - Over 65- North,Permanent Nursing,Eclipse Office Park,3684.72, 23-Dec-2014
808,Revenue,CCHD,MH Purchasing - Younger,Respite Planned - Residential,Eclipse Office Park,3734.48, 23-Dec-2014
809,Revenue,CCHD,Bed Purchasing - South,Respite Planned - Residential,Edgecumbe Lodge,2100, 23-Dec-2014
810,Revenue,CCHD,Bed Purchasing - Southmead Hospital,Permanent Residential,Edgecumbe Lodge,1260.2, 23-Dec-2014
811,Revenue,CCHD,Bed Purchasing - South,Permanent Residential,Edgecumbe Lodge,1056.36, 23-Dec-2014
812,Revenue,CCHD,Bed Purchasing - South,Permanent Residential,Edgecumbe Lodge,1427, 23-Dec-2014
813,Revenue,CCHD,Bed Purchasing - Southmead Hospital,Permanent Residential,Edgecumbe Lodge,1533.8, 23-Dec-2014
814,Revenue,CCHD,Bed Purchasing - South,Permanent Residential,Edgecumbe Lodge,1141.04, 23-Dec-2014
815,Revenue,CCHD,Bed Purchasing - North,Permanent Residential,Edgecumbe Lodge,1372.64, 23-Dec-2014
816,Revenue,CCHD,Bed Purchasing - Southmead Hospital,Permanent Residential,Edgemont House Ltd,1432.2, 23-Dec-2014
817,Revenue,CCHD,Bed Purchasing - South,Permanent Residential,Edgemont House Ltd,1472.92, 23-Dec-2014
818,Revenue,CCHD,Bed Purchasing - South,Permanent Residential,Edgemont House Ltd,1260.2, 23-Dec-2014
819,Revenue,CCHD,Bed Purchasing - South,Permanent Residential,Edgemont House Ltd,1260.2, 23-Dec-2014
820,Revenue,CCHD,Bed Purchasing - South,Permanent Residential,Edgemont House Ltd,1430.32, 23-Dec-2014
821,Revenue,CCHD,Bed Purchasing - South,Permanent Residential,Edgemont House Ltd,1293.48, 23-Dec-2014
822,Revenue,CCHD,Bed Purchasing - North,Permanent Nursing,Edgemont View Nursing Home,1217.24, 23-Dec-2014
823,Revenue,CCHD,Bed Purchasing - South,Permanent Nursing,Edgemont View Nursing Home,1445.88, 23-Dec-2014
824,Revenue,CCHD,Bed Purchasing - Southmead Hospital,Permanent Nursing,Edgemont View Nursing Home,1275.8, 23-Dec-2014
825,Revenue,CCHD,Bed Purchasing - South,Permanent Nursing,Edgemont View Nursing Home,1320.36, 23-Dec-2014
826,Revenue,CCHD,Bed Purchasing - South,Permanent Nursing,Edgemont View Nursing Home,1634.8, 23-Dec-2014
827,Revenue,CCHD,Bed Purchasing - South,Permanent Nursing,Edgemont View Nursing Home,1196.68, 23-Dec-2014
828,Revenue,CCHD,Telecare,Other Supplies & Services,Eldercare,1458.88, 08-Dec-2014
829,Revenue,CCHD,Supporting People Programme,Grants to Voluntary Bodies,Elim Housing Association Limited,5018.5, 01-Dec-2014
830,Revenue,CCHD,Home Care - Elderly - South,Other Small Contracts,Elite Home Care Ltd,4343.78, 02-Dec-2014
831,Revenue,CCHD,Home Care - Elderly - North,Other Small Contracts,Elite Home Care Ltd,332.12, 02-Dec-2014
832,Revenue,CCHD,Home Care - Elderly - South,Other Small Contracts,Elite Home Care Ltd,4549.17, 02-Dec-2014
833,Revenue,CCHD,Home Care - Elderly - North,Other Small Contracts,Elite Home Care Ltd,279.68, 02-Dec-2014
834,Revenue,CCHD,Home Care - Elderly - South,Other Small Contracts,Elite Home Care Ltd,4453.03, 02-Dec-2014
835,Revenue,CCHD,Home Care - Elderly - North,Other Small Contracts,Elite Home Care Ltd,371.45, 02-Dec-2014
836,Revenue,CCHD,Home Care - Elderly - South,Other Small Contracts,Elite Home Care Ltd,4553.54, 02-Dec-2014
837,Revenue,CCHD,Home Care - Elderly - North,Other Small Contracts,Elite Home Care Ltd,332.12, 02-Dec-2014
838,Revenue,CCHD,Home Care - Elderly - South,Other Small Contracts,Elite Home Care Ltd,4483.62, 16-Dec-2014
839,Revenue,CCHD,Home Care - Elderly - North,Other Small Contracts,Elite Home Care Ltd,323.38, 16-Dec-2014
840,Revenue,CCHD,Home Care - Elderly - South,Day Care / Social Activities,Elite Home Care Ltd,144.21, 19-Dec-2014
841,Revenue,CCHD,Home Care - Elderly - South,Other Small Contracts,Elite Home Care Ltd,4256.38, 19-Dec-2014
842,Revenue,CCHD,Home Care - Elderly - North,Other Small Contracts,Elite Home Care Ltd,327.75, 19-Dec-2014
843,Revenue,CCHD,Home Care - Elderly - South,Day Care / Social Activities,Elite Home Care Ltd,148.58, 24-Dec-2014
844,Revenue,CCHD,Home Care - Elderly - South,Other Small Contracts,Elite Home Care Ltd,4055.36, 24-Dec-2014
845,Revenue,CCHD,Home Care - Elderly - North,Other Small Contracts,Elite Home Care Ltd,332.12, 24-Dec-2014
846,Revenue,CCHD,Day Care - South,Day Care / Social Activities,Enham,638.72, 19-Dec-2014
847,Revenue,CCHD,Day Care - South,Day Care / Social Activities,Enham,638.72, 24-Dec-2014
848,Revenue,CCHD,Home Care - Elderly - South,Other Small Contracts,Everycare (Bristol) Ltd,3013.25, 01-Dec-2014
849,Revenue,CCHD,Home Care - Elderly - North,Other Small Contracts,Everycare (Bristol) Ltd,2558.5, 01-Dec-2014
850,Revenue,CCHD,Under 65s -MH  Home Care Purch,Other Small Contracts,Everycare (Bristol) Ltd,51, 01-Dec-2014
851,Revenue,CCHD,Home Care - Elderly - South,Other Small Contracts,Everycare (Bristol) Ltd,3536, 02-Dec-2014
852,Revenue,CCHD,Home Care - Elderly - North,Other Small Contracts,Everycare (Bristol) Ltd,2504.46, 02-Dec-2014
853,Revenue,CCHD,Under 65s -MH  Home Care Purch,Other Small Contracts,Everycare (Bristol) Ltd,51, 02-Dec-2014
854,Revenue,CCHD,Home Care - Elderly - South,Other Small Contracts,Everycare (Bristol) Ltd,3825, 02-Dec-2014
855,Revenue,CCHD,Home Care - Elderly - North,Other Small Contracts,Everycare (Bristol) Ltd,3599.75, 02-Dec-2014
856,Revenue,CCHD,Bed Purchasing - South,Permanent Nursing,Fairview Court,1880.16, 23-Dec-2014
857,Revenue,CCHD,Bed Purchasing - Southmead Hospital,Permanent Nursing,Fairview Court,1879.96, 23-Dec-2014
858,Revenue,CCHD,Bed Purchasing - Southmead Hospital,Permanent Nursing,Fairview Court,2359.76, 23-Dec-2014
859,Revenue,CCHD,South Glos Users in South Glos Homes,Permanent Nursing,Fairview Court,3976.2, 23-Dec-2014
860,Revenue,CCHD,South Glos Users in South Glos Homes,Permanent Nursing,Fairview Court,643.06, 23-Dec-2014
861,Revenue,CCHD,Bed Purchasing - South,Permanent Nursing,Fairview Court,1646.6, 23-Dec-2014
862,Revenue,CCHD,Bed Purchasing - South,Permanent Nursing,Fairview Court,1774.64, 23-Dec-2014
863,Revenue,CCHD,Bed Purchasing - South,Permanent Nursing,Fairview Court,6402.1, 23-Dec-2014
864,Revenue,CCHD,Bed Purchasing - South,Permanent Nursing,Fairview Court,2560.84, 23-Dec-2014
865,Revenue,CCHD,Bed Purchasing - South,Permanent Nursing,Fairview Court,2001.48, 23-Dec-2014
866,Revenue,CCHD,Bed Purchasing - South,Permanent Nursing,Fairview Court,1858.8, 23-Dec-2014
867,Revenue,CCHD,Bed Purchasing - South,Permanent Nursing,Fairview Court,1864.16, 23-Dec-2014
868,Revenue,CCHD,Bed Purchasing - South,Permanent Nursing,Fairview Court,2739.96, 23-Dec-2014
869,Revenue,CCHD,Bed Purchasing - South,Permanent Nursing,Fairview Court,1951.44, 23-Dec-2014
870,Revenue,CCHD,Bed Purchasing - South,Permanent Nursing,Fairview Court,1713.92, 23-Dec-2014
871,Revenue,CCHD,Bed Purchasing - South,Permanent Nursing,Fairview Court Care Home,1126.41, 05-Dec-2014
872,Revenue,CCHD,Bed Purchasing - South,Permanent Nursing,Fairview Court Care Home,985.16, 05-Dec-2014
873,Revenue,CCHD,Bed Purchasing - South,Permanent Nursing,Fairview Court Care Home,1991.06, 05-Dec-2014
874,Revenue,CCHD,Bed Purchasing - South,Permanent Nursing,Fairview Court Care Home,1997.1, 05-Dec-2014
875,Revenue,CCHD,Bed Purchasing - Southmead Hospital,Permanent Nursing,Fairview Court Care Home,1482.81, 05-Dec-2014
876,Revenue,CCHD,Bed purchasing - Elderly S117 - South,Permanent Nursing,Fairview Court Care Home,2528.31, 05-Dec-2014
877,Revenue,CCHD,S75 CCG Interim Beds,Permanent Nursing,Fairview Court Care Home,10200, 23-Dec-2014
878,Revenue,CCHD,Bed Purchasing - South,Permanent Residential,Fairview House,872.32, 23-Dec-2014
879,Revenue,CCHD,Bed purchasing - Elderly S117 - South,Permanent Residential,Fairview House,1916.84, 23-Dec-2014
880,Revenue,CCHD,Bed Purchasing - Southmead Hospital,Permanent Residential,Fairview House,1023.16, 23-Dec-2014
881,Revenue,CCHD,Bed Purchasing - South,Permanent Residential,Fairview House,865.24, 23-Dec-2014
882,Revenue,CCHD,Bed Purchasing - South,Permanent Residential,Fairview House,1260.2, 23-Dec-2014
883,Revenue,CCHD,Bed Purchasing - North,Permanent Residential,Fairview House,1218.04, 23-Dec-2014
884,Revenue,CCHD,Bed Purchasing - North,Permanent Residential,Fairview House,945.15, 23-Dec-2014
885,Revenue,CCHD,Bed Purchasing - South,Permanent Residential,Fairview House,1192.92, 23-Dec-2014
886,Revenue,CCHD,Bed Purchasing - South,Permanent Residential,Fairview House,1117.92, 23-Dec-2014
887,Revenue,CCHD,Bed Purchasing - Southmead Hospital,Permanent Residential,Fairview House,1260.2, 23-Dec-2014
888,Revenue,CCHD,Bed Purchasing - Southmead Hospital,Permanent Residential,Fairview House,1077.32, 23-Dec-2014
889,Revenue,CCHD,Bed Purchasing - South,Permanent Residential,Fairview House,1039.6, 23-Dec-2014
890,Revenue,CCHD,Bed Purchasing - South,Permanent Residential,Fairview House,3747.51, 23-Dec-2014
891,Revenue,CCHD,Bed Purchasing - South,Permanent Residential,Fairview House,1437.4, 23-Dec-2014
892,Revenue,CCHD,Bed Purchasing - Southmead Hospital,Permanent Residential,Faith House,1223.28, 23-Dec-2014
893,Revenue,CCHD,Bed Purchasing - North,Permanent Residential,Fernbank,7706, 23-Dec-2014
894,Revenue,CCHD,Bed Purchasing - North,Permanent Nursing,Field House Care Home,6503.12, 23-Dec-2014
895,Revenue,CCHD,South Glos Users in South Glos Homes,Permanent Nursing,Field House Care Home,950.49, 23-Dec-2014
896,Revenue,CCHD,Home Care - Elderly - South,Other Small Contracts,Firstpoint Homecare Ltd,2042.88, 05-Dec-2014
897,Revenue,CCHD,Home Care - Elderly - North,Other Small Contracts,Firstpoint Homecare Ltd,1758.72, 05-Dec-2014
898,Revenue,CCHD,Under 65s -MH  Home Care Purch,Other Small Contracts,Firstpoint Homecare Ltd,42.24, 05-Dec-2014
899,Revenue,CCHD,Home Care - Elderly - South,Other Small Contracts,Firstpoint Homecare Ltd,1766.4, 09-Dec-2014
900,Revenue,CCHD,Home Care - Elderly - North,Other Small Contracts,Firstpoint Homecare Ltd,887.04, 09-Dec-2014
901,Revenue,CCHD,Home care - Elderly MH - North,Other Small Contracts,Firstpoint Homecare Ltd,49.92, 09-Dec-2014
902,Revenue,CCHD,Home Care - Elderly - South,Other Small Contracts,Firstpoint Homecare Ltd,1920, 04-Dec-2014
903,Revenue,CCHD,Home Care - Elderly - North,Other Small Contracts,Firstpoint Homecare Ltd,1655.04, 04-Dec-2014
904,Revenue,CCHD,Under 65s -MH  Home Care Purch,Other Small Contracts,Firstpoint Homecare Ltd,46.08, 04-Dec-2014
905,Revenue,CCHD,Home Care - Elderly - South,Other Small Contracts,Firstpoint Homecare Ltd,1977.6, 02-Dec-2014
906,Revenue,CCHD,Home Care - Elderly - North,Other Small Contracts,Firstpoint Homecare Ltd,1409.28, 02-Dec-2014
907,Revenue,CCHD,Under 65s -MH  Home Care Purch,Other Small Contracts,Firstpoint Homecare Ltd,46.08, 02-Dec-2014
908,Revenue,CCHD,Home Care - Elderly - South,Other Small Contracts,Firstpoint Homecare Ltd,1735.68, 05-Dec-2014
909,Revenue,CCHD,Home Care - Elderly - North,Other Small Contracts,Firstpoint Homecare Ltd,1685.76, 05-Dec-2014
910,Revenue,CCHD,Under 65s -MH  Home Care Purch,Other Small Contracts,Firstpoint Homecare Ltd,46.08, 05-Dec-2014
911,Revenue,CCHD,Home care - Elderly MH - North,Other Small Contracts,Firstpoint Homecare Ltd,42.24, 05-Dec-2014
912,Revenue,CCHD,Home Care - Elderly - South,Other Small Contracts,Firstpoint Homecare Ltd,1881.6, 09-Dec-2014
913,Revenue,CCHD,Home Care - Elderly - North,Other Small Contracts,Firstpoint Homecare Ltd,1655.04, 09-Dec-2014
914,Revenue,CCHD,Under 65s -MH  Home Care Purch,Other Small Contracts,Firstpoint Homecare Ltd,46.08, 09-Dec-2014
915,Revenue,CCHD,Home care - Elderly MH - North,Other Small Contracts,Firstpoint Homecare Ltd,42.24, 09-Dec-2014
916,Revenue,CCHD,Home Care - Elderly - South,Other Small Contracts,Firstpoint Homecare Ltd,1524.48, 02-Dec-2014
917,Revenue,CCHD,Home Care - Elderly - North,Other Small Contracts,Firstpoint Homecare Ltd,1486.08, 02-Dec-2014
918,Revenue,CCHD,Under 65s -MH  Home Care Purch,Other Small Contracts,Firstpoint Homecare Ltd,46.08, 02-Dec-2014
919,Revenue,CCHD,Home care - Elderly MH - North,Other Small Contracts,Firstpoint Homecare Ltd,46.08, 02-Dec-2014
920,Revenue,CCHD,Home Care - Elderly - South,Other Small Contracts,Firstpoint Homecare Ltd,1482.24, 01-Dec-2014
921,Revenue,CCHD,Home Care - Elderly - North,Other Small Contracts,Firstpoint Homecare Ltd,1513.79, 01-Dec-2014
922,Revenue,CCHD,Under 65s -MH  Home Care Purch,Other Small Contracts,Firstpoint Homecare Ltd,49.92, 01-Dec-2014
923,Revenue,CCHD,Home care - Elderly MH - North,Other Small Contracts,Firstpoint Homecare Ltd,30.72, 01-Dec-2014
924,Revenue,CCHD,ASSIST - Health Promotion in Schools,Other Supplies & Services,Foster & Brown Research LTD,6200, 24-Dec-2014
925,Revenue,CCHD,Bed Purchasing - South,Permanent Nursing,Four Seasons Health Care,1196.88, 23-Dec-2014
926,Revenue,CCHD,Bed Purchasing - Elderly S117- North,Permanent Residential,Four Seasons Health Care,2060.4, 23-Dec-2014
927,Revenue,CCHD,Bed Purchasing - Southmead Hospital,Permanent Residential,Four Seasons Health Care,1550.64, 23-Dec-2014
928,Revenue,CCHD,Supporting People Programme,Grants to Voluntary Bodies,Freeways Trust Limited,7967, 01-Dec-2014
929,Revenue,CCHD,Supported Living - South,Private & Voluntary Home Care,Freeways Trust Limited,1306.44, 12-Dec-2014
930,Revenue,CCHD,Supported Living - South,Private & Voluntary Home Care,Freeways Trust Limited,1392.39, 12-Dec-2014
931,Revenue,CCHD,Freeways,Permanent Residential,Freeways Trust Limited,3611.8, 29-Dec-2014
932,Revenue,CCHD,Freeways,Permanent Residential,Freeways Trust Limited,2269.08, 29-Dec-2014
933,Revenue,CCHD,Freeways,Permanent Residential,Freeways Trust Limited,2346.88, 29-Dec-2014
934,Revenue,CCHD,Freeways,Permanent Residential,Freeways Trust Limited,2993.72, 29-Dec-2014
935,Revenue,CCHD,Freeways,Permanent Residential,Freeways Trust Limited,2346.88, 29-Dec-2014
936,Revenue,CCHD,Freeways,Permanent Residential,Freeways Trust Limited,3242.64, 29-Dec-2014
937,Revenue,CCHD,Freeways,Permanent Residential,Freeways Trust Limited,3522.28, 29-Dec-2014
938,Revenue,CCHD,Freeways,Permanent Residential,Freeways Trust Limited,3023.2, 29-Dec-2014
939,Revenue,CCHD,Freeways,Permanent Residential,Freeways Trust Limited,2870.2, 29-Dec-2014
940,Revenue,CCHD,Freeways,Permanent Residential,Freeways Trust Limited,3211.48, 29-Dec-2014
941,Revenue,CCHD,Freeways,Permanent Residential,Freeways Trust Limited,3077.36, 29-Dec-2014
942,Revenue,CCHD,Freeways,Permanent Residential,Freeways Trust Limited,3573.72, 29-Dec-2014
943,Revenue,CCHD,Freeways,Permanent Residential,Freeways Trust Limited,2440.84, 29-Dec-2014
944,Revenue,CCHD,Freeways,Permanent Residential,Freeways Trust Limited,2425.52, 29-Dec-2014
945,Revenue,CCHD,Freeways,Permanent Residential,Freeways Trust Limited,2425.52, 29-Dec-2014
946,Revenue,CCHD,Freeways,Permanent Residential,Freeways Trust Limited,3357.44, 29-Dec-2014
947,Revenue,CCHD,Bed Purchasing - North,Permanent Residential,Freeways Trust Ltd,2860.04, 23-Dec-2014
948,Revenue,CCHD,Bed purchasing - S28A Under 65 - South,Permanent Residential,Freeways Trust Ltd,2924.48, 23-Dec-2014
949,Revenue,CCHD,Bed Purchasing - North,Permanent Residential,Freeways Trust Ltd,3129.84, 23-Dec-2014
950,Revenue,CCHD,Bed Purchasing - North,Permanent Residential,Freeways Trust Ltd,2286.96, 23-Dec-2014
951,Revenue,CCHD,Bed Purchasing - North,Permanent Residential,Freeways Trust Ltd,2731.36, 23-Dec-2014
952,Revenue,CCHD,Bed Purchasing - South,Permanent Residential,Freeways Trust Ltd,3338.76, 23-Dec-2014
953,Revenue,CCHD,Bed Purchasing - North,Permanent Residential,Freeways Trust Ltd,2266.4, 23-Dec-2014
954,Revenue,CCHD,Bed Purchasing - South,Permanent Residential,Freeways Trust Ltd,2397.48, 23-Dec-2014
955,Revenue,CCHD,Bed Purchasing - North,Permanent Residential,Freeways Trust Ltd,2731.36, 23-Dec-2014
956,Revenue,CCHD,Bed Purchasing - North,Permanent Residential,Freeways Trust Ltd,3155.72, 23-Dec-2014
957,Revenue,CCHD,18-25 Year Olds,Permanent Residential,Freeways Trust Ltd,3373.2, 23-Dec-2014
958,Revenue,CCHD,Bed Purchasing - North,Permanent Residential,Freeways Trust Ltd,3823.88, 23-Dec-2014
959,Revenue,CCHD,Bed Purchasing - South,Permanent Residential,Freeways Trust Ltd,7906.56, 23-Dec-2014
960,Revenue,CCHD,Bed Purchasing - Southmead Hospital,Permanent Nursing,Frenchay Park Nursing Home,1010, 23-Dec-2014
961,Revenue,CCHD,Bed Purchasing - South,Permanent Nursing,Frenchay Park Nursing Home,1328.2, 23-Dec-2014
962,Revenue,CCHD,Bed Purchasing - South,Permanent Nursing,Fshc  1St Floor,896.16, 23-Dec-2014
963,Revenue,CCHD,Bed Purchasing - Southmead Hospital,Permanent Residential,Fshc  1St Floor,894.12, 23-Dec-2014
964,Revenue,CCHD,Bed Purchasing - South,Permanent Nursing,Fshc  1St Floor,953.52, 23-Dec-2014
965,Revenue,CCHD,Bed Purchasing - South,Permanent Nursing,Fshc  1St Floor,4759.54, 23-Dec-2014
966,Revenue,CCHD,South Glos Users in South Glos Homes,Permanent Nursing,Fshc  1St Floor,1520.78, 23-Dec-2014
967,Revenue,CCHD,Bed Purchasing - South,Permanent Nursing,Fshc  1St Floor,1388.2, 23-Dec-2014
968,Revenue,CCHD,South Glos Users in South Glos Homes,Permanent Nursing,Fshc  1St Floor,2423.74, 23-Dec-2014
969,Revenue,CCHD,Bed Purchasing - Southmead Hospital,Permanent Nursing,Fshc  1St Floor,1352.2, 23-Dec-2014
970,Revenue,CCHD,Bed Purchasing - Southmead Hospital,Permanent Nursing,Fshc  1St Floor,1388.2, 23-Dec-2014
971,Revenue,CCHD,Bed Purchasing - Southmead Hospital,Permanent Nursing,Fshc  1St Floor,1267.72, 23-Dec-2014
972,Revenue,CCHD,Bed Purchasing - Southmead Hospital,Permanent Nursing,Fshc  1St Floor,1388.2, 23-Dec-2014
973,Revenue,CCHD,Bed Purchasing - Southmead Hospital,Permanent Nursing,Fshc  1St Floor,1325.8, 23-Dec-2014
974,Revenue,CCHD,Bed Purchasing - Southmead Hospital,Permanent Nursing,Fshc  1St Floor,1050.56, 23-Dec-2014
975,Revenue,CCHD,Bed Purchasing - South,Permanent Residential,Fshc  1St Floor,1216.24, 23-Dec-2014
976,Revenue,CCHD,Bed Purchasing - Southmead Hospital,Permanent Nursing,Fshc  1St Floor,1198.92, 23-Dec-2014
977,Revenue,CCHD,Bed Purchasing - South,Permanent Nursing,Fshc  1St Floor,1012.92, 23-Dec-2014
978,Revenue,CCHD,Bed Purchasing - Southmead Hospital,Permanent Nursing,Fshc  1St Floor,1388.2, 23-Dec-2014
979,Revenue,CCHD,Bed Purchasing - South,Permanent Nursing,Fshc  1St Floor,1115.96, 23-Dec-2014
980,Revenue,CCHD,Bed Purchasing - South,Permanent Nursing,Fshc  1St Floor,1226.68, 23-Dec-2014
981,Revenue,CCHD,Bed Purchasing - Southmead Hospital,Permanent Nursing,Fshc  1St Floor,1365.64, 23-Dec-2014
982,Revenue,CCHD,Bed Purchasing - South,Permanent Nursing,Fshc  1St Floor,1324.48, 23-Dec-2014
983,Revenue,CCHD,Bed Purchasing - Southmead Hospital,Permanent Nursing,Fshc  1St Floor,1388.2, 23-Dec-2014
984,Revenue,CCHD,Bed Purchasing - Southmead Hospital,Permanent Nursing,Fshc  1St Floor,3077.41, 23-Dec-2014
985,Revenue,CCHD,Bed Purchasing - North,Permanent Nursing,Fshc  1St Floor,1388.2, 23-Dec-2014
986,Revenue,CCHD,Bed Purchasing - Southmead Hospital,Permanent Nursing,Fshc  1St Floor,1884, 23-Dec-2014
987,Revenue,CCHD,Bed Purchasing - North,Permanent Nursing,Fshc  1St Floor,1884, 23-Dec-2014
988,Revenue,CCHD,Bed Purchasing - Southmead Hospital,Permanent Nursing,Fshc  1St Floor,1204.12, 23-Dec-2014
989,Revenue,CCHD,Bed Purchasing - South,Permanent Nursing,Fshc  1St Floor,1388.2, 23-Dec-2014
990,Revenue,CCHD,Bed Purchasing - Southmead Hospital,Permanent Nursing,Fshc  1St Floor,1388.2, 23-Dec-2014
991,Revenue,CCHD,Bed Purchasing - South,Permanent Nursing,Fshc  1St Floor,1337.52, 23-Dec-2014
992,Revenue,CCHD,Bed Purchasing - South,Permanent Nursing,Fshc  1St Floor,1372.2, 23-Dec-2014
993,Revenue,CCHD,Bed Purchasing - Southmead Hospital,Permanent Nursing,Fshc  1St Floor,1096.6, 23-Dec-2014
994,Revenue,CCHD,South Glos Users in South Glos Homes,Permanent Nursing,Fshc  1St Floor,1283.16, 23-Dec-2014
995,Revenue,CCHD,Bed Purchasing - South,Permanent Nursing,Fshc  1St Floor,1352.2, 23-Dec-2014
996,Revenue,CCHD,Bed Purchasing - Southmead Hospital,Permanent Nursing,Fshc  1St Floor,1388.2, 23-Dec-2014
997,Revenue,CCHD,Bed Purchasing - South,Permanent Nursing,Fshc  1St Floor,1229.44, 23-Dec-2014
998,Revenue,CCHD,Bed Purchasing - North,Permanent Nursing,Fshc  1St Floor,781.44, 23-Dec-2014
999,Revenue,CCHD,Bed Purchasing - South,Permanent Nursing,Fshc  1St Floor,993.48, 23-Dec-2014
1000,Revenue,CCHD,Bed Purchasing - North,Permanent Residential,Fshc  1St Floor,900.15, 23-Dec-2014
1001,Revenue,CCHD,Bed Purchasing - Southmead Hospital,Permanent Nursing,Fshc  1St Floor,944.48, 23-Dec-2014
1002,Revenue,CCHD,Bed Purchasing - North,Permanent Nursing,Fshc  1St Floor,1290.68, 23-Dec-2014
1003,Revenue,CCHD,Bed Purchasing - Southmead Hospital,Permanent Nursing,Fshc  1St Floor,1602.96, 23-Dec-2014
1004,Revenue,CCHD,Bed Purchasing - Southmead Hospital,Permanent Residential,Fshc  1St Floor,1142.92, 23-Dec-2014
1005,Revenue,CCHD,Bed Purchasing - North,Permanent Nursing,Fshc  1St Floor,1347.08, 23-Dec-2014
1006,Revenue,CCHD,Bed Purchasing - North,Permanent Nursing,Fshc  1St Floor,1039.6, 23-Dec-2014
1007,Revenue,CCHD,Bed Purchasing - North,Permanent Residential,Fshc  1St Floor,1077, 23-Dec-2014
1008,Revenue,CCHD,Bed Purchasing - North,Permanent Residential,Fshc  1St Floor,1367.48, 23-Dec-2014
1009,Revenue,CCHD,Bed Purchasing - Southmead Hospital,Permanent Residential,Fshc  1St Floor,1036.84, 23-Dec-2014
1010,Revenue,CCHD,Bed Purchasing - Southmead Hospital,Permanent Nursing,Fshc  1St Floor,1104.08, 23-Dec-2014
1011,Revenue,CCHD,Bed Purchasing - Southmead Hospital,Permanent Nursing,Fshc  1St Floor,1129, 23-Dec-2014
1012,Revenue,CCHD,Bed Purchasing - Southmead Hospital,Permanent Nursing,Fshc  1St Floor,1289.2, 23-Dec-2014
1013,Revenue,CCHD,Bed Purchasing - Southmead Hospital,Permanent Nursing,Fshc  1St Floor,1128.8, 23-Dec-2014
1014,Revenue,CCHD,Bed Purchasing - Southmead Hospital,Permanent Nursing,Fshc  1St Floor,1588.2, 23-Dec-2014
1015,Revenue,CCHD,Bed Purchasing - South,Permanent Residential,Fshc  1St Floor,1132.6, 23-Dec-2014
1016,Revenue,CCHD,Bed Purchasing - Southmead Hospital,Permanent Nursing,Fshc  1St Floor,2060, 23-Dec-2014
1017,Revenue,CCHD,Bed Purchasing - Southmead Hospital,Permanent Nursing,Fshc  1St Floor,1375.6, 23-Dec-2014
1018,Revenue,CCHD,Bed Purchasing - Southmead Hospital,Permanent Nursing,Fshc  1St Floor,1388.2, 23-Dec-2014
1019,Revenue,CCHD,Bed Purchasing - North,Permanent Nursing,Fshc  1St Floor,574.28, 23-Dec-2014
1020,Revenue,CCHD,Bed Purchasing - North,Permanent Nursing,Fshc  1St Floor,1489.72, 23-Dec-2014
1021,Revenue,CCHD,Bed Purchasing - North,Permanent Nursing,Fshc  1St Floor,1289.2, 23-Dec-2014
1022,Revenue,CCHD,Bed Purchasing - Southmead Hospital,Permanent Residential,Fshc  1St Floor,621.36, 23-Dec-2014
1023,Revenue,CCHD,Bed Purchasing - Southmead Hospital,Permanent Nursing,Fshc  1St Floor,1294.72, 23-Dec-2014
1024,Revenue,CCHD,Bed Purchasing - Southmead Hospital,Permanent Nursing,Fshc  1St Floor,1372.56, 23-Dec-2014
1025,Revenue,CCHD,Bed Purchasing - North,Permanent Nursing,Fshc  1St Floor,1312.76, 23-Dec-2014
1026,Revenue,CCHD,Bed Purchasing - North,Permanent Residential,Fshc  1St Floor,779.72, 23-Dec-2014
1027,Revenue,CCHD,Bed Purchasing - Southmead Hospital,Permanent Nursing,Fshc  1St Floor,1475.48, 23-Dec-2014
1028,Revenue,CCHD,Bed Purchasing - Southmead Hospital,Permanent Nursing,Fshc  1St Floor,1564.2, 23-Dec-2014
1029,Revenue,CCHD,Bed Purchasing - South,Permanent Nursing,Fshc  1St Floor,1338.84, 23-Dec-2014
1030,Revenue,CCHD,Bed Purchasing - North,Permanent Nursing,Fshc  1St Floor,1471.32, 23-Dec-2014
1031,Revenue,CCHD,Bed Purchasing - South,Permanent Nursing,Fshc  1St Floor,1309.96, 23-Dec-2014
1032,Revenue,CCHD,Bed Purchasing - North,Permanent Residential,Fshc  1St Floor,1456.2, 23-Dec-2014
1033,Revenue,CCHD,Bed Purchasing - North,Permanent Nursing,Fshc  1St Floor,1552.64, 23-Dec-2014
1034,Revenue,CCHD,Bed purchasing - Elderly S117 - South,Permanent Nursing,Fshc  1St Floor,1884, 23-Dec-2014
1035,Revenue,CCHD,Bed Purchasing - North,Permanent Residential,Fshc  1St Floor,1263.96, 23-Dec-2014
1036,Revenue,CCHD,Bed Purchasing - Southmead Hospital,Permanent Nursing,Fshc  1St Floor,1388.2, 23-Dec-2014
1037,Revenue,CCHD,Bed Purchasing - Southmead Hospital,Permanent Residential,Fshc  1St Floor,1260.2, 23-Dec-2014
1038,Revenue,CCHD,Bed Purchasing - North,Permanent Residential,Fshc  1St Floor,1260.2, 23-Dec-2014
1039,Revenue,CCHD,Bed Purchasing - South,Permanent Nursing,Fshc  1St Floor,1564.2, 23-Dec-2014
1040,Revenue,CCHD,Bed Purchasing - North,Permanent Residential,Fshc  1St Floor,1401.92, 23-Dec-2014
1041,Revenue,CCHD,Bed Purchasing - North,Permanent Nursing,Fshc  1St Floor,1592.2, 23-Dec-2014
1042,Revenue,CCHD,Bed Purchasing - North,Permanent Nursing,Fshc  1St Floor,857.29, 23-Dec-2014
1043,Revenue,CCHD,South Glos Users in South Glos Homes,Permanent Nursing,Fshc  1St Floor,1203.95, 23-Dec-2014
1044,Revenue,CCHD,Bed Purchasing - North,Permanent Nursing,Fshc  1St Floor,1388.2, 23-Dec-2014
1045,Revenue,CCHD,Bed Purchasing - North,Permanent Residential,Fshc  1St Floor,1260.2, 23-Dec-2014
1046,Revenue,CCHD,Bed Purchasing - North,Permanent Nursing,Fshc  1St Floor,1153.32, 23-Dec-2014
1047,Revenue,CCHD,South Glos Users in South Glos Homes,Permanent Nursing,Fshc  1St Floor,3437.59, 23-Dec-2014
1048,Revenue,CCHD,Bed Purchasing - Southmead Hospital,Permanent Nursing,Fshc  1St Floor,7580.77, 23-Dec-2014
1049,Revenue,CCHD,Bed Purchasing - Southmead Hospital,Permanent Nursing,Fshc  1St Floor,1192.48, 23-Dec-2014
1050,Revenue,CCHD,Bed Purchasing - Southmead Hospital,Permanent Residential,Fshc  1St Floor,1260.2, 23-Dec-2014
1051,Revenue,CCHD,Bed Purchasing - North,Permanent Nursing,Fshc  1St Floor,587.4, 23-Dec-2014
1052,Revenue,CCHD,Bed Purchasing - North,Permanent Nursing,Fshc  1St Floor,738.4, 23-Dec-2014
1053,Revenue,CCHD,Bed Purchasing - North,Permanent Nursing,Fshc  1St Floor,1388.2, 23-Dec-2014
1054,Revenue,CCHD,Bed Purchasing - North,Permanent Nursing,Fshc  1St Floor,1164.6, 23-Dec-2014
1055,Revenue,CCHD,South Glos Users in South Glos Homes,Permanent Nursing,Fshc  1St Floor,1631.67, 23-Dec-2014
1056,Revenue,CCHD,South Glos Users in South Glos Homes,Permanent Nursing,Fshc  1St Floor,1489.09, 23-Dec-2014
1057,Revenue,CCHD,Bed Purchasing - Southmead Hospital,Permanent Nursing,Fshc  1St Floor,1328.04, 23-Dec-2014
1058,Revenue,CCHD,Bed Purchasing - North,Permanent Nursing,Fshc  1St Floor,903.52, 23-Dec-2014
1059,Revenue,CCHD,Bed Purchasing - North,Permanent Nursing,Fshc  1St Floor,1017.2, 23-Dec-2014
1060,Revenue,CCHD,South Glos Users in South Glos Homes,Permanent Nursing,Fshc  1St Floor,1172.27, 23-Dec-2014
1061,Revenue,CCHD,Bed Purchasing - South,Permanent Nursing,Fshc  1St Floor,1365, 23-Dec-2014
1062,Revenue,CCHD,Bed Purchasing - Southmead Hospital,Permanent Nursing,Fshc  1St Floor,1388.2, 23-Dec-2014
1063,Revenue,CCHD,Bed Purchasing - Southmead Hospital,Permanent Nursing,Fshc  1St Floor,586.56, 23-Dec-2014
1064,Revenue,CCHD,Bed Purchasing - Southmead Hospital,Permanent Nursing,Fshc  1St Floor,1933.56, 23-Dec-2014
1065,Revenue,CCHD,Bed Purchasing - Southmead Hospital,Permanent Nursing,Fshc  1St Floor,1388.2, 23-Dec-2014
1066,Revenue,CCHD,Bed Purchasing - Southmead Hospital,Permanent Nursing,Fshc  1St Floor,873.88, 23-Dec-2014
1067,Revenue,CCHD,Bed Purchasing - Southmead Hospital,Permanent Nursing,Fshc  1St Floor,3024.29, 23-Dec-2014
1068,Revenue,CCHD,Bed Purchasing - Southmead Hospital,Permanent Nursing,Fshc  1St Floor,1388.2, 23-Dec-2014
1069,Revenue,CCHD,Bed Purchasing - Southmead Hospital,Permanent Nursing,Fshc  1St Floor,1312.68, 23-Dec-2014
1070,Revenue,CCHD,Bed Purchasing - North,Permanent Nursing,Fshc  1St Floor,1270.2, 23-Dec-2014
1071,Revenue,CCHD,Bed Purchasing - South,Permanent Nursing,Fshc  1St Floor,1337.24, 23-Dec-2014
1072,Revenue,CCHD,Bed Purchasing - Southmead Hospital,Permanent Nursing,Fshc  1St Floor,1360.32, 23-Dec-2014
1073,Revenue,CCHD,Bed Purchasing - Southmead Hospital,Permanent Nursing,Fshc  1St Floor,1822.56, 23-Dec-2014
1074,Revenue,CCHD,Bed Purchasing - North,Permanent Residential,Fshc  1St Floor,3000.64, 23-Dec-2014
1075,Revenue,CCHD,Bed Purchasing - North,Permanent Nursing,Fshc  1St Floor,1394.04, 23-Dec-2014
1076,Revenue,CCHD,Bed Purchasing - Southmead Hospital,Permanent Residential,Fshc  1St Floor,1952, 23-Dec-2014
1077,Revenue,CCHD,Bed Purchasing - Southmead Hospital,Permanent Nursing,Fshc  1St Floor,1319.28, 23-Dec-2014
1078,Revenue,CCHD,Bed Purchasing - South,Permanent Residential,Fshc  1St Floor,1952, 23-Dec-2014
1079,Revenue,CCHD,Bed Purchasing - Southmead Hospital,Permanent Nursing,Fshc  1St Floor,1381, 23-Dec-2014
1080,Revenue,CCHD,South Glos Users in South Glos Homes,Permanent Nursing,Fshc  1St Floor,1506.27, 23-Dec-2014
1081,Revenue,CCHD,Bed Purchasing - Southmead Hospital,Permanent Residential,Fshc  1St Floor,1484.2, 23-Dec-2014
1082,Revenue,CCHD,Bed Purchasing - North,Permanent Residential,Fshc  1St Floor,1167.12, 23-Dec-2014
1083,Revenue,CCHD,Bed Purchasing - North,Permanent Nursing,Fshc  1St Floor,1143.32, 23-Dec-2014
1084,Revenue,CCHD,Bed Purchasing - South,Permanent Nursing,Fshc  1St Floor,1248.96, 23-Dec-2014
1085,Revenue,CCHD,Bed Purchasing - South,Permanent Residential,Fshc  1St Floor,1264.9, 23-Dec-2014
1086,Revenue,CCHD,Bed Purchasing - North,Respite Emergency - Residential,Fshc  1St Floor,878, 23-Dec-2014
1087,Revenue,CCHD,Bed Purchasing - North,Permanent Nursing,Fshc  1St Floor,1884, 23-Dec-2014
1088,Revenue,CCHD,Bed Purchasing - Southmead Hospital,Permanent Nursing,Fshc  1St Floor,1203.24, 23-Dec-2014
1089,Revenue,CCHD,Bed Purchasing - Southmead Hospital,Permanent Nursing,Fshc  1St Floor,1384.2, 23-Dec-2014
1090,Revenue,CCHD,Bed Purchasing - South,Permanent Residential,Fshc  1St Floor,901.6, 23-Dec-2014
1091,Revenue,CCHD,Bed Purchasing - South,Permanent Nursing,Fshc  1St Floor,1236.24, 23-Dec-2014
1092,Revenue,CCHD,South Glos Users in South Glos Homes,Permanent Nursing,Fshc  1St Floor,538.61, 23-Dec-2014
1093,Revenue,CCHD,Bed Purchasing - South,Permanent Residential,Fshc  1St Floor,1260.2, 23-Dec-2014
1094,Revenue,CCHD,Bed Purchasing - Southmead Hospital,Permanent Nursing,Fshc  1St Floor,1388.2, 23-Dec-2014
1095,Revenue,CCHD,Bed Purchasing - Southmead Hospital,Permanent Nursing,Fshc  1St Floor,16485, 23-Dec-2014
1096,Revenue,CCHD,Bed Purchasing - South,Permanent Nursing,Fshc  1St Floor,1120.72, 23-Dec-2014
1097,Revenue,CCHD,Bed Purchasing - Southmead Hospital,Permanent Nursing,Fshc  1St Floor,1388.2, 23-Dec-2014
1098,Revenue,CCHD,Bed Purchasing - South,Permanent Residential,Fshc  1St Floor,2788.57, 23-Dec-2014
1099,Revenue,CCHD,Bed Purchasing - South,Permanent Residential,Fshc  1St Floor,1952, 23-Dec-2014
1100,Revenue,CCHD,Bed Purchasing - Southmead Hospital,Permanent Nursing,Fshc  1St Floor,1308.28, 23-Dec-2014
1101,Revenue,CCHD,Bed Purchasing - Southmead Hospital,Permanent Nursing,Fshc  1St Floor,997.48, 23-Dec-2014
1102,Revenue,CCHD,Bed Purchasing - Southmead Hospital,Permanent Residential,Fshc  1St Floor,1475.64, 23-Dec-2014
1103,Revenue,CCHD,Bed Purchasing - South,Permanent Nursing,Fshc  1St Floor,1227.24, 23-Dec-2014
1104,Revenue,CCHD,Bed Purchasing - South,Permanent Nursing,Fshc  1St Floor,816.76, 23-Dec-2014
1105,Revenue,CCHD,Swift Dump Code,Permanent Residential,Fshc  1St Floor,5171.06, 23-Dec-2014
1106,Revenue,CCHD,Bed purchasing - Elderly S117 - South,Permanent Nursing,Fshc  1St Floor,1884, 23-Dec-2014
1107,Revenue,CCHD,Bed Purchasing - Southmead Hospital,Permanent Residential,Fshc  1St Floor,1122.08, 23-Dec-2014
1108,Revenue,CCHD,Bed Purchasing - South,Permanent Nursing,Fshc  1St Floor,1385.4, 23-Dec-2014
1109,Revenue,CCHD,Bed Purchasing - North,Permanent Nursing,Fshc  1St Floor,1327.84, 23-Dec-2014
1110,Revenue,CCHD,Bed Purchasing - South,Permanent Residential,Fshc  1St Floor,1371.16, 23-Dec-2014
1111,Revenue,CCHD,Bed Purchasing - Southmead Hospital,Permanent Nursing,Fshc  1St Floor,777.8, 23-Dec-2014
1112,Revenue,CCHD,Bed Purchasing - North,Permanent Residential,Fshc  1St Floor,1216.92, 23-Dec-2014
1113,Revenue,CCHD,Bed Purchasing - South,Permanent Nursing,Fshc  1St Floor,1193.88, 23-Dec-2014
1114,Revenue,CCHD,Bed Purchasing - South,Permanent Nursing,Fshc  1St Floor,1304.72, 23-Dec-2014
1115,Revenue,CCHD,Bed Purchasing - South,Permanent Nursing,Fshc  1St Floor,1668.4, 23-Dec-2014
1116,Revenue,CCHD,Bed Purchasing - South,Permanent Nursing,Fshc  1St Floor,1132.32, 23-Dec-2014
1117,Revenue,CCHD,Bed Purchasing - Southmead Hospital,Permanent Nursing,Fshc  1St Floor,1224.08, 23-Dec-2014
1118,Revenue,CCHD,Bed Purchasing - Southmead Hospital,Permanent Nursing,Fshc  1St Floor,958.64, 23-Dec-2014
1119,Revenue,CCHD,Bed Purchasing - Southmead Hospital,Permanent Nursing,Fshc  1St Floor,1549, 23-Dec-2014
1120,Revenue,CCHD,Bed Purchasing - Southmead Hospital,Permanent Nursing,Fshc  1St Floor,1364.92, 23-Dec-2014
1121,Revenue,CCHD,Bed Purchasing - Southmead Hospital,Permanent Nursing,Fshc  1St Floor,1388.2, 23-Dec-2014
1122,Revenue,CCHD,Bed Purchasing - Southmead Hospital,Permanent Nursing,Fshc  1St Floor,881.8, 23-Dec-2014
1123,Revenue,CCHD,Bed Purchasing - South,Permanent Nursing,Fshc  1St Floor,1199.48, 23-Dec-2014
1124,Revenue,CCHD,Bed Purchasing - South,Permanent Nursing,Fshc  1St Floor,10294.71, 23-Dec-2014
1125,Revenue,CCHD,Bed Purchasing - Southmead Hospital,Permanent Residential,Fshc  1St Floor,1832.2, 23-Dec-2014
1126,Revenue,CCHD,Bed Purchasing - South,Permanent Residential,Fshc  1St Floor,2704.2, 23-Dec-2014
1127,Revenue,CCHD,Bed Purchasing - North,Permanent Nursing,Fshc  1St Floor,1402.4, 23-Dec-2014
1128,Revenue,CCHD,Bed Purchasing - North,Permanent Nursing,Fshc  1St Floor,1352.32, 23-Dec-2014
1129,Revenue,CCHD,Bed Purchasing - Southmead Hospital,Permanent Nursing,Fshc  1St Floor,1402.4, 23-Dec-2014
1130,Revenue,CCHD,Bed Purchasing - North,Respite Emergency - Residential,Fshc  1St Floor,1016.89, 23-Dec-2014
1131,Revenue,CCHD,Bed Purchasing - North,Permanent Nursing,Fshc  1St Floor,1346.88, 23-Dec-2014
1132,Revenue,CCHD,Bed Purchasing - North,Permanent Nursing,Fshc  1St Floor,843.72, 23-Dec-2014
1133,Revenue,CCHD,Bed Purchasing - North,Permanent Nursing,Fshc  1St Floor,1496.2, 23-Dec-2014
1134,Revenue,CCHD,Bed Purchasing - North,Permanent Nursing,Fshc  1St Floor,1229.36, 23-Dec-2014
1135,Revenue,CCHD,Bed Purchasing - Southmead Hospital,Permanent Nursing,Fshc  1St Floor,1344.2, 23-Dec-2014
1136,Revenue,CCHD,Bed Purchasing - South,Permanent Nursing,Fshc  1St Floor,857.04, 23-Dec-2014
1137,Revenue,CCHD,Bed Purchasing - North,Permanent Nursing,Fshc  1St Floor,1154.04, 23-Dec-2014
1138,Revenue,CCHD,Bed Purchasing - Southmead Hospital,Permanent Nursing,Fshc  1St Floor,1169.16, 23-Dec-2014
1139,Revenue,CCHD,Bed Purchasing - Southmead Hospital,Permanent Nursing,Fshc  1St Floor,1496.2, 23-Dec-2014
1140,Revenue,CCHD,Bed Purchasing - North,Permanent Nursing,Fshc  1St Floor,1368.56, 23-Dec-2014
1141,Revenue,CCHD,Bed Purchasing - Southmead Hospital,Permanent Residential,Fshc  1St Floor,1233.08, 23-Dec-2014
1142,Revenue,CCHD,Bed Purchasing - Southmead Hospital,Permanent Nursing,Fshc  1St Floor,1263.24, 23-Dec-2014
1143,Revenue,CCHD,Bed Purchasing - Southmead Hospital,Permanent Nursing,Fshc  1St Floor,1236.88, 23-Dec-2014
1144,Revenue,CCHD,Bed Purchasing - Southmead Hospital,Permanent Nursing,Fshc  1St Floor,1467.24, 23-Dec-2014
1145,Revenue,CCHD,Bed purchasing - Elderly S117 - South,Permanent Nursing,Fshc  1St Floor,1992, 23-Dec-2014
1146,Revenue,CCHD,Bed Purchasing - North,Permanent Residential,Fshc  1St Floor,1125.72, 23-Dec-2014
1147,Revenue,CCHD,Bed Purchasing - Southmead Hospital,Permanent Nursing,Fshc  1St Floor,950.68, 23-Dec-2014
1148,Revenue,CCHD,Bed Purchasing - Elderly S117- North,Permanent Nursing,Fshc  1St Floor,1992, 23-Dec-2014
1149,Revenue,CCHD,Bed Purchasing - North,Permanent Nursing,Fshc  1St Floor,2621.7, 23-Dec-2014
1150,Revenue,CCHD,Bed Purchasing - North,Permanent Nursing,Fshc  1St Floor,1165.2, 23-Dec-2014
1151,Revenue,CCHD,Bed Purchasing - North,Permanent Residential,Fshc  1St Floor,1432.2, 23-Dec-2014
1152,Revenue,CCHD,Bed Purchasing - Southmead Hospital,Permanent Nursing,Fshc  1St Floor,1100.44, 23-Dec-2014
1153,Revenue,CCHD,Bed Purchasing - North,Permanent Residential,Fshc  1St Floor,1043.24, 23-Dec-2014
1154,Revenue,CCHD,Bed Purchasing - South,Permanent Residential,Fshc  1St Floor,1351.48, 23-Dec-2014
1155,Revenue,CCHD,Bed Purchasing - Southmead Hospital,Permanent Residential,FSHC 1st Floor,806.6, 23-Dec-2014
1156,Revenue,CCHD,Bed Purchasing - South,Permanent Residential,Gatchell House,1420.84, 23-Dec-2014
1157,Revenue,CCHD,CAH Assistant Directors,Agency Staff (Admin/Support Staff) Pay,Gatenby Sanderson Limited,3687.5, 23-Dec-2014
1158,Revenue,CCHD,DAT Treatment,Project Funding,Gateway Revival Church,700, 19-Dec-2014
1159,Revenue,CCHD,Alexandra Way,Prop.Serv. General Repairs,Individual,1025, 24-Dec-2014
1160,Revenue,CCHD,Alexandra Way,Prop.Serv. General Repairs,Individual,640, 24-Dec-2014
1161,Revenue,CCHD,Section 117 Placements MH Younger,Permanent Residential,Gladstone House,2762.16, 23-Dec-2014
1162,Revenue,CCHD,Bed Purchasing - South,Permanent Residential,Glasallt Fawr,4615.6, 23-Dec-2014
1163,Revenue,CCHD,Bed Purchasing - North,Permanent Residential,Glebe House Nursing Home,2147.6, 23-Dec-2014
1164,Revenue,CCHD,Bed Purchasing - North,Permanent Nursing,Glebe House Nursing Home,1982.08, 23-Dec-2014
1165,Revenue,CCHD,Bed Purchasing - Southmead Hospital,Permanent Residential,Glebe House Nursing Home,1346.16, 23-Dec-2014
1166,Revenue,CCHD,Bed Purchasing - South,Permanent Residential,Glebe House Nursing Home,2044.08, 23-Dec-2014
1167,Revenue,CCHD,Bed Purchasing - North,Permanent Residential,Glebe House Nursing Home,1869.44, 23-Dec-2014
1168,Revenue,CCHD,South Glos Users in South Glos Homes,Permanent Nursing,Glebe House Nursing Home,3073.24, 23-Dec-2014
1169,Revenue,CCHD,South Glos Users in South Glos Homes,Permanent Nursing,Glebe House Nursing Home,950.49, 23-Dec-2014
1170,Revenue,CCHD,Bed Purchasing - North,Permanent Nursing,Glebe House Nursing Home,1832.52, 23-Dec-2014
1171,Revenue,CCHD,Bed Purchasing - North,Permanent Nursing,Glebe House Nursing Home,2166.72, 23-Dec-2014
1172,Revenue,CCHD,Bed Purchasing - North,Permanent Residential,Glebe House Nursing Home,2593, 23-Dec-2014
1173,Revenue,CCHD,Bed Purchasing - South,Permanent Residential,Gordena Care Home,18494.35, 23-Dec-2014
1174,Revenue,CCHD,Bed Purchasing - South,Permanent Residential,Gordena Care Home,2113.64, 23-Dec-2014
1175,Revenue,CCHD,Bed Purchasing - South,Permanent Residential,Gordena Care Home,4799.84, 23-Dec-2014
1176,Revenue,CCHD,Bed Purchasing - South,Permanent Residential,Gordena Care Home,3159.76, 23-Dec-2014
1177,Revenue,CCHD,Bed Purchasing - South,Permanent Residential,Gordena Care Home,2968.16, 23-Dec-2014
1178,Revenue,CCHD,Bed Purchasing - South,Permanent Residential,Gordena Care Home,1933.24, 23-Dec-2014
1179,Revenue,CCHD,Bed Purchasing - South,Permanent Residential,Gordena Care Limited,4217.76, 23-Dec-2014
1180,Revenue,CCHD,Bed purchasing - S28A Under 65 - South,Permanent Residential,Gordena Care Limited,4116, 23-Dec-2014
1181,Revenue,CCHD,Bed Purchasing - North,Permanent Residential,Gordena Care Limited,4218.96, 23-Dec-2014
1182,Revenue,CCHD,Bed Purchasing - South,Permanent Nursing,Gracefields Nursing Home,1705.28, 23-Dec-2014
1183,Revenue,CCHD,Bed purchasing - Elderly S117 - South,Permanent Nursing,Gracefields Nursing Home,2395.8, 23-Dec-2014
1184,Revenue,CCHD,Bed Purchasing - Southmead Hospital,Permanent Nursing,Gracefields Nursing Home,2356.44, 23-Dec-2014
1185,Revenue,CCHD,Bed Purchasing - South,Permanent Nursing,Gracefields Nursing Home,1860.64, 23-Dec-2014
1186,Revenue,CCHD,Bed Purchasing - South,Permanent Nursing,Gracefields Nursing Home,703.8, 23-Dec-2014
1187,Revenue,CCHD,Bed purchasing - Elderly S117 - South,Permanent Nursing,Gracefields Nursing Home,2356.44, 23-Dec-2014
1188,Revenue,CCHD,Bed Purchasing - South,Permanent Nursing,Gracefields Nursing Home,2227.8, 23-Dec-2014
1189,Revenue,CCHD,Bed Purchasing - Southmead Hospital,Permanent Nursing,Gracefields Nursing Home,1576.8, 23-Dec-2014
1190,Revenue,CCHD,Bed Purchasing - Southmead Hospital,Permanent Nursing,Gracefields Nursing Home,1860.64, 23-Dec-2014
1191,Revenue,CCHD,South Glos Users in South Glos Homes,Permanent Nursing,Gracefields Nursing Home,3976.2, 23-Dec-2014
1192,Revenue,CCHD,Bed Purchasing - North,Respite Planned - Nursing,Gracefields Nursing Home,1900, 23-Dec-2014
1193,Revenue,CCHD,Bed Purchasing - Southmead Hospital,Permanent Nursing,Gracefields Nursing Home,1530.44, 23-Dec-2014
1194,Revenue,CCHD,Bed Purchasing - North,Permanent Residential,Greensleeves,1331.92, 23-Dec-2014
1195,Revenue,CCHD,Bed Purchasing - North,Permanent Residential,Gwendoline House,1138.52, 23-Dec-2014
1196,Revenue,CCHD,Bed Purchasing - South,Permanent Residential,Gwendoline House,952.12, 23-Dec-2014
1197,Revenue,CCHD,Bed Purchasing - South,Permanent Residential,Gwendoline House,1292.56, 23-Dec-2014
1198,Revenue,CCHD,Bed Purchasing - South,Permanent Residential,Gwendoline House,1143.56, 23-Dec-2014
1199,Revenue,CCHD,Bed Purchasing - South,Permanent Residential,Gwendoline House,2293.64, 23-Dec-2014
1200,Revenue,CCHD,Bed Purchasing - Southmead Hospital,Permanent Residential,Gwendoline House,1620.2, 23-Dec-2014
1201,Revenue,CCHD,Supporting People Programme,Grants to Voluntary Bodies,Habinteg Housing Association,1358.58, 01-Dec-2014
1202,Revenue,CCHD,"Strategy, Advice and Public Protection",Other Supplies & Services,Halcrow Group Limited,1350.2, 24-Dec-2014
1203,Revenue,CCHD,Supporting People Programme,Grants to Voluntary Bodies,Hanover Housing Association,972.33, 01-Dec-2014
1204,Revenue,CCHD,Bed Purchasing - South,Permanent Residential,Harefield Hall,1203.2, 23-Dec-2014
1205,Revenue,CCHD,Bed Purchasing - South,Permanent Residential,Harefield Hall,1831.12, 23-Dec-2014
1206,Revenue,CCHD,Bed Purchasing - South,Permanent Residential,Harefield Hall,1140.08, 23-Dec-2014
1207,Revenue,CCHD,Bed Purchasing - South,Permanent Residential,Harefield Hall,1036.4, 23-Dec-2014
1208,Revenue,CCHD,Bed Purchasing - South,Permanent Residential,Harefield Hall,1304.48, 23-Dec-2014
1209,Revenue,CCHD,Bed Purchasing - South,Permanent Residential,Harefield Hall,881.52, 23-Dec-2014
1210,Revenue,CCHD,Bed Purchasing - North,Permanent Nursing,Hc-One Ltd,1492.36, 23-Dec-2014
1211,Revenue,CCHD,Bed Purchasing - North,Permanent Nursing,Hc-One Ltd,1533.56, 23-Dec-2014
1212,Revenue,CCHD,Bed Purchasing - North,Permanent Residential,Hc-One Ltd,1006.84, 23-Dec-2014
1213,Revenue,CCHD,Bed Purchasing - North,Permanent Nursing,Hc-One Ltd,1518.6, 23-Dec-2014
1214,Revenue,CCHD,Bed Purchasing - South,Permanent Nursing,Hc-One Ltd,1955.92, 23-Dec-2014
1215,Revenue,CCHD,Bed Purchasing - North,Permanent Nursing,Hc-One Ltd,1496.2, 23-Dec-2014
1216,Revenue,CCHD,Bed Purchasing - North,Permanent Nursing,Hc-One Ltd,1496.2, 23-Dec-2014
1217,Revenue,CCHD,Bed Purchasing - North,Permanent Nursing,Hc-One Ltd,1239.28, 23-Dec-2014
1218,Revenue,CCHD,Bed Purchasing - South,Permanent Nursing,Hc-One Ltd,1152.48, 23-Dec-2014
1219,Revenue,CCHD,Bed Purchasing - North,Permanent Nursing,Hc-One Ltd,1197.44, 23-Dec-2014
1220,Revenue,CCHD,Bed Purchasing - Elderly S117- North,Permanent Nursing,Hc-One Ltd,1976.56, 23-Dec-2014
1221,Revenue,CCHD,Day Care - North,Day Care / Social Activities,Headway Bristol,551.4, 01-Dec-2014
1222,Revenue,CCHD,Leadership and Business Support,Other Supplies & Services,Health Education England,1290, 11-Dec-2014
1223,Revenue,CCHD,Bed Purchasing - South,Permanent Residential,Heathwood Rest Home,1009.8, 23-Dec-2014
1224,Revenue,CCHD,Bed Purchasing - Southmead Hospital,Permanent Residential,Heathwood Rest Home,1009.8, 23-Dec-2014
1225,Revenue,CCHD,Planning and Partnerships Procurement,Other Supplies & Services,Individual,900, 24-Dec-2014
1226,Revenue,CCHD,Home Care - Elderly - South,Other Small Contracts,Helping Hands Homecare,637.33, 12-Dec-2014
1227,Revenue,CCHD,Home Care - Elderly - North,Day Care / Social Activities,Helping Hands Homecare,27.37, 12-Dec-2014
1228,Revenue,CCHD,Home Care - Elderly - North,Other Small Contracts,Helping Hands Homecare,1825.97, 12-Dec-2014
1229,Revenue,CCHD,Day Care - North,Day Care / Social Activities,Helping Hands Homecare,93.84, 12-Dec-2014
1230,Revenue,CCHD,Under 65s -MH  Home Care Purch,Other Small Contracts,Helping Hands Homecare,31.28, 12-Dec-2014
1231,Revenue,CCHD,Home care - Elderly MH - North,Other Small Contracts,Helping Hands Homecare,62.56, 12-Dec-2014
1232,Revenue,CCHD,Home Care - Elderly - South,Other Small Contracts,Helping Hands Homecare,832.83, 02-Dec-2014
1233,Revenue,CCHD,Home Care - Elderly - North,Day Care / Social Activities,Helping Hands Homecare,31.28, 02-Dec-2014
1234,Revenue,CCHD,Home Care - Elderly - North,Other Small Contracts,Helping Hands Homecare,2111.4, 02-Dec-2014
1235,Revenue,CCHD,Day Care - North,Day Care / Social Activities,Helping Hands Homecare,89.93, 02-Dec-2014
1236,Revenue,CCHD,Under 65s -MH  Home Care Purch,Other Small Contracts,Helping Hands Homecare,31.28, 02-Dec-2014
1237,Revenue,CCHD,Home care - Elderly MH - North,Other Small Contracts,Helping Hands Homecare,62.56, 02-Dec-2014
1238,Revenue,CCHD,Home Care - Elderly - South,Other Small Contracts,Helping Hands Homecare,938.4, 12-Dec-2014
1239,Revenue,CCHD,Home Care - Elderly - North,Day Care / Social Activities,Helping Hands Homecare,78.2, 12-Dec-2014
1240,Revenue,CCHD,Home Care - Elderly - North,Other Small Contracts,Helping Hands Homecare,2326.45, 12-Dec-2014
1241,Revenue,CCHD,Day Care - North,Day Care / Social Activities,Helping Hands Homecare,93.84, 12-Dec-2014
1242,Revenue,CCHD,Under 65s -MH  Home Care Purch,Other Small Contracts,Helping Hands Homecare,31.28, 12-Dec-2014
1243,Revenue,CCHD,Home care - Elderly MH - North,Other Small Contracts,Helping Hands Homecare,35.19, 12-Dec-2014
1244,Revenue,CCHD,Home Care - Elderly - South,Other Small Contracts,Helping Hands Homecare,914.94, 12-Dec-2014
1245,Revenue,CCHD,Home Care - Elderly - North,Day Care / Social Activities,Helping Hands Homecare,109.48, 12-Dec-2014
1246,Revenue,CCHD,Home Care - Elderly - North,Other Small Contracts,Helping Hands Homecare,2236.52, 12-Dec-2014
1247,Revenue,CCHD,Day Care - North,Day Care / Social Activities,Helping Hands Homecare,93.84, 12-Dec-2014
1248,Revenue,CCHD,Under 65s -MH  Home Care Purch,Other Small Contracts,Helping Hands Homecare,31.28, 12-Dec-2014
1249,Revenue,CCHD,Home care - Elderly MH - North,Other Small Contracts,Helping Hands Homecare,70.38, 12-Dec-2014
1250,Revenue,CCHD,Home Care - Elderly - South,Day Care / Social Activities,Helping Hands Homecare,31.28, 19-Dec-2014
1251,Revenue,CCHD,Home Care - Elderly - South,Other Small Contracts,Helping Hands Homecare,1000.96, 19-Dec-2014
1252,Revenue,CCHD,Home Care - Elderly - North,Day Care / Social Activities,Helping Hands Homecare,140.76, 19-Dec-2014
1253,Revenue,CCHD,Home Care - Elderly - North,Other Small Contracts,Helping Hands Homecare,2209.15, 19-Dec-2014
1254,Revenue,CCHD,Day Care - North,Day Care / Social Activities,Helping Hands Homecare,93.84, 19-Dec-2014
1255,Revenue,CCHD,Under 65s -MH  Home Care Purch,Other Small Contracts,Helping Hands Homecare,31.28, 19-Dec-2014
1256,Revenue,CCHD,Home care - Elderly MH - North,Other Small Contracts,Helping Hands Homecare,62.56, 19-Dec-2014
1257,Revenue,CCHD,Home Care - Elderly - South,Day Care / Social Activities,Helping Hands Homecare,31.28, 19-Dec-2014
1258,Revenue,CCHD,Home Care - Elderly - South,Other Small Contracts,Helping Hands Homecare,1298.12, 19-Dec-2014
1259,Revenue,CCHD,Home Care - Elderly - North,Day Care / Social Activities,Helping Hands Homecare,140.76, 19-Dec-2014
1260,Revenue,CCHD,Home Care - Elderly - North,Other Small Contracts,Helping Hands Homecare,2291.26, 19-Dec-2014
1261,Revenue,CCHD,Day Care - North,Day Care / Social Activities,Helping Hands Homecare,93.84, 19-Dec-2014
1262,Revenue,CCHD,Under 65s -MH  Home Care Purch,Other Small Contracts,Helping Hands Homecare,31.28, 19-Dec-2014
1263,Revenue,CCHD,Home care - Elderly MH - North,Other Small Contracts,Helping Hands Homecare,62.56, 19-Dec-2014
1264,Revenue,CCHD,S117 Placements PCT,Permanent Residential,Individual,18209.52, 23-Dec-2014
1265,Revenue,CCHD,Bed Purchasing - Southmead Hospital,Permanent Residential,High Border Lodge,1442.96, 23-Dec-2014
1266,Revenue,CCHD,Bed Purchasing - Southmead Hospital,Permanent Residential,Highfield House,1227.52, 23-Dec-2014
1267,Revenue,CCHD,Bed Purchasing - Southmead Hospital,Permanent Residential,Highgate Studios,1174.24, 23-Dec-2014
1268,Revenue,CCHD,Bed Purchasing - North,Permanent Residential,Holmleigh Care Homes Ltd,4059.84, 23-Dec-2014
1269,Revenue,CCHD,Bed Purchasing - South,Permanent Residential,Holmleigh Care Homes Ltd,5102.6, 23-Dec-2014
1270,Revenue,CCHD,Bed Purchasing - North,Permanent Residential,Home Farm Trust Ltd  5-6 Brook Office Pa,2852.08, 23-Dec-2014
1271,Revenue,CCHD,Bed Purchasing - South,Permanent Residential,Home Farm Trust Ltd  5-6 Brook Office Pa,5126.28, 23-Dec-2014
1272,Revenue,CCHD,Bed Purchasing - North,Permanent Residential,Home Farm Trust Ltd  5-6 Brook Office Pa,3442.72, 23-Dec-2014
1273,Revenue,CCHD,Bed Purchasing - South,Permanent Residential,Home Farm Trust Ltd  5-6 Brook Office Pa,5550.52, 23-Dec-2014
1274,Revenue,CCHD,18-25 Year Olds,Permanent Residential,Home From Home Care Ltd,8988.2, 23-Dec-2014
1275,Revenue,CCHD,Tenancy Start Up Scheme,Fees & Charges Income - General,Home Turf Lettings,1464.5, 10-Dec-2014
1276,Revenue,CCHD,Bed Purchasing - North,Permanent Residential,Homes Caring For Autism Ltd  Churchill H,9907.24, 23-Dec-2014
1277,Revenue,CCHD,18-25 Year Olds,Permanent Residential,Homes Caring For Autism Ltd  Churchill H,12903.72, 23-Dec-2014
1278,Revenue,CCHD,Supporting People Programme,Grants to Voluntary Bodies,Housing 21,616.42, 01-Dec-2014
1279,Revenue,CCHD,Supporting People Programme,Grants to Voluntary Bodies,Housing 21,935, 01-Dec-2014
1280,Revenue,CCHD,Home Care - Elderly - North,Private & Voluntary Home Care,Housing 21,37580.45, 10-Dec-2014
1281,Revenue,CCHD,Home Care - Elderly - South,Private & Voluntary Home Care,Housing 21,24011, 01-Dec-2014
1282,Revenue,CCHD,Social Lettings Agency,Fees - General,Individual,11.6, 11-Dec-2014
1283,Revenue,CCHD,Social Lettings Agency,Other Supplies & Services,Individual,655.41, 11-Dec-2014
1284,Revenue,CCHD,Tenancy Start Up Scheme,Other Supplies & Services,Individual,1500, 19-Dec-2014
1285,Revenue,CCHD,Homeless - Private Sector Leasing,Other Supplies & Services,Individual,594, 15-Dec-2014
1286,Revenue,CCHD,Home Care - Elderly - South,Supported Living,Julia Simone- Supp. Ind.,1165.8, 23-Dec-2014
1287,Revenue,CCHD,Younger MH non-res purchasing,Supported Living,Julia Simone- Supp. Ind.,1165.8, 23-Dec-2014
1288,Revenue,CCHD,Home Care - Elderly - North,Supported Living,Julia Simone- Supp. Ind.,957.62, 23-Dec-2014
1289,Revenue,CCHD,Younger MH non-res purchasing,Supported Living,Julia Simone- Supp. Ind.,1165.8, 23-Dec-2014
1290,Revenue,CCHD,Bed Purchasing - South,Permanent Residential,Julia Simone- Supp. Ind.,3960.52, 23-Dec-2014
1291,Revenue,CCHD,Bed purchasing -S28A  Under 65 - North,Permanent Residential,Julia Simone- Supp. Ind.,3494.52, 23-Dec-2014
1292,Revenue,CCHD,Bed Purchasing - South,Permanent Residential,Karenza Ltd,1756, 23-Dec-2014
1293,Revenue,CCHD,Bed Purchasing - South,Permanent Residential,Kenver House Residential Home,1568.68, 23-Dec-2014
1294,Revenue,CCHD,Bed Purchasing - Southmead Hospital,Permanent Residential,Kenver House Residential Home,1119.36, 23-Dec-2014
1295,Revenue,CCHD,Bed Purchasing - Southmead Hospital,Permanent Residential,Kenver House Residential Home,1643.72, 23-Dec-2014
1296,Revenue,CCHD,Bed Purchasing - Southmead Hospital,Permanent Residential,Kenver House Residential Home,1671.08, 23-Dec-2014
1297,Revenue,CCHD,Bed Purchasing - South,Permanent Residential,Kenver House Residential Home,1527.68, 23-Dec-2014
1298,Revenue,CCHD,Bed Purchasing - South,Permanent Residential,Kenver House Residential Home,1136.68, 23-Dec-2014
1299,Revenue,CCHD,Bed Purchasing - South,Permanent Residential,Kenver House Residential Home,1370.92, 23-Dec-2014
1300,Revenue,CCHD,Bed Purchasing - South,Permanent Residential,Kenver House Residential Home,1691.08, 23-Dec-2014
1301,Revenue,CCHD,Bed Purchasing - South,Respite Planned - Residential,Kenver House Residential Home,2166.88, 23-Dec-2014
1302,Revenue,CCHD,Bed Purchasing - South,Permanent Residential,Kenver House Residential Home,2166.88, 23-Dec-2014
1303,Revenue,CCHD,Bed Purchasing - South,Permanent Residential,Kenver House Residential Home,3262.16, 23-Dec-2014
1304,Revenue,CCHD,Bed Purchasing - Southmead Hospital,Permanent Residential,Kenver House Residential Home,1671, 23-Dec-2014
1305,Revenue,CCHD,Bed Purchasing - South,Permanent Residential,Kenver House Residential Home,1414.64, 23-Dec-2014
1306,Revenue,CCHD,Bed Purchasing - North,Permanent Residential,Kenver House Residential Home,1659.44, 23-Dec-2014
1307,Revenue,CCHD,Bed Purchasing - Southmead Hospital,Permanent Residential,Kenver House Residential Home,1562.4, 23-Dec-2014
1308,Revenue,CCHD,Supporting People Programme,Grants to Voluntary Bodies,Keyring Living Support Networks,2917, 01-Dec-2014
1309,Revenue,CCHD,Bed Purchasing - North,Permanent Nursing,Kingfisher Lodge Care Centre,2514.24, 23-Dec-2014
1310,Revenue,CCHD,Supporting People Programme,Grants to Voluntary Bodies,Kingswood Young Homeless Project,16943.67, 01-Dec-2014
1311,Revenue,CCHD,Bed Purchasing - North,Permanent Residential,Kisimul Group,11388.88, 23-Dec-2014
1312,Revenue,CCHD,Supporting People Programme,Grants to Voluntary Bodies,Knightstone Housing Association Limited,13513.75, 01-Dec-2014
1313,Revenue,CCHD,Supporting People Programme,Grants to Voluntary Bodies,Knightstone Housing Association Limited,8537.92, 01-Dec-2014
1314,Revenue,CCHD,Supporting People Programme,Grants to Voluntary Bodies,Knightstone Housing Association Limited,7602.5, 01-Dec-2014
1315,Revenue,CCHD,Supporting People Programme,Grants to Voluntary Bodies,Knightstone Housing Association Limited,1789.75, 01-Dec-2014
1316,Revenue,CCHD,Supporting People Programme,Grants to Voluntary Bodies,Knightstone Housing Association Limited,2482.75, 01-Dec-2014
1317,Revenue,CCHD,Supporting People Programme,Grants to Voluntary Bodies,Knightstone Housing Association Limited,2483.33, 01-Dec-2014
1318,Revenue,CCHD,Supporting People Programme,Grants to Voluntary Bodies,Knightstone Housing Association Limited,844.58, 01-Dec-2014
1319,Revenue,CCHD,Home Care - Elderly - South,Other Small Contracts,Kumari Care Limited,3377.5, 05-Dec-2014
1320,Revenue,CCHD,Home Care - Elderly - North,Other Small Contracts,Kumari Care Limited,872.51, 05-Dec-2014
1321,Revenue,CCHD,Day Care - South,Day Care / Social Activities,Kumari Care Limited,100.36, 05-Dec-2014
1322,Revenue,CCHD,Home Care - Elderly - South,Other Small Contracts,Kumari Care Limited,3385.22, 05-Dec-2014
1323,Revenue,CCHD,Home Care - Elderly - North,Other Small Contracts,Kumari Care Limited,841.58, 05-Dec-2014
1324,Revenue,CCHD,Day Care - South,Day Care / Social Activities,Kumari Care Limited,96.5, 05-Dec-2014
1325,Revenue,CCHD,Home Care - Elderly - South,Other Small Contracts,Kumari Care Limited,3308.02, 05-Dec-2014
1326,Revenue,CCHD,Home Care - Elderly - North,Other Small Contracts,Kumari Care Limited,833.91, 05-Dec-2014
1327,Revenue,CCHD,Day Care - South,Day Care / Social Activities,Kumari Care Limited,61.76, 05-Dec-2014
1328,Revenue,CCHD,Home Care - Elderly - South,Other Small Contracts,Kumari Care Limited,3315.74, 11-Dec-2014
1329,Revenue,CCHD,Home Care - Elderly - North,Other Small Contracts,Kumari Care Limited,833.86, 11-Dec-2014
1330,Revenue,CCHD,Day Care - South,Day Care / Social Activities,Kumari Care Limited,100.36, 11-Dec-2014
1331,Revenue,CCHD,Home Care - Elderly - South,Other Small Contracts,Kumari Care Limited,3273.28, 11-Dec-2014
1332,Revenue,CCHD,Home Care - Elderly - North,Other Small Contracts,Kumari Care Limited,833.86, 11-Dec-2014
1333,Revenue,CCHD,Day Care - South,Day Care / Social Activities,Kumari Care Limited,96.5, 11-Dec-2014
1334,Revenue,CCHD,Home Care - Elderly - South,Other Small Contracts,Kumari Care Limited,3319.6, 11-Dec-2014
1335,Revenue,CCHD,Home Care - Elderly - North,Other Small Contracts,Kumari Care Limited,833.89, 11-Dec-2014
1336,Revenue,CCHD,Day Care - South,Day Care / Social Activities,Kumari Care Limited,96.5, 11-Dec-2014
1337,Revenue,CCHD,Home Care - Elderly - South,Other Small Contracts,Kumari Care Limited,3165.2, 23-Dec-2014
1338,Revenue,CCHD,Home Care - Elderly - North,Other Small Contracts,Kumari Care Limited,833.86, 23-Dec-2014
1339,Revenue,CCHD,Home Care - Elderly - South,Other Small Contracts,Kumari Care Limited,3221.97, 23-Dec-2014
1340,Revenue,CCHD,Home Care - Elderly - North,Other Small Contracts,Kumari Care Limited,833.86, 23-Dec-2014
1341,Revenue,CCHD,Day Care - South,Day Care / Social Activities,Kumari Care Limited,96.5, 23-Dec-2014
1342,Revenue,CCHD,Bed Purchasing - North,Permanent Nursing,Leonard Cheshire  National Account Centr,5036.48, 23-Dec-2014
1343,Revenue,CCHD,Bed Purchasing - North,Permanent Residential,Leonard Cheshire  National Account Centr,2910.92, 23-Dec-2014
1344,Revenue,CCHD,Bed Purchasing - South,Permanent Residential,Leonard Cheshire  National Account Centr,3003.72, 23-Dec-2014
1345,Revenue,CCHD,Bed Purchasing - North,Permanent Nursing,Leonard Cheshire  National Account Centr,3520.6, 23-Dec-2014
1346,Revenue,CCHD,Bed Purchasing - North,Permanent Nursing,Leonard Cheshire  National Account Centr,2764.56, 23-Dec-2014
1347,Revenue,CCHD,18-25 Year Olds,Permanent Residential,Leonard Cheshire  National Account Centr,3196.52, 23-Dec-2014
1348,Revenue,CCHD,Bed Purchasing - North,Permanent Residential,Leonard Cheshire  National Account Centr,5959.48, 23-Dec-2014
1349,Revenue,CCHD,Bed Purchasing - North,Permanent Residential,Leonard Cheshire  National Account Centr,5957.92, 23-Dec-2014
1350,Revenue,CCHD,Bed Purchasing - South,Permanent Residential,Leonard Cheshire  National Account Centr,4492.08, 23-Dec-2014
1351,Revenue,CCHD,Bed Purchasing - North,Permanent Nursing,Leonard Cheshire  National Account Centr,2881.12, 23-Dec-2014
1352,Revenue,CCHD,Bed Purchasing - North,Permanent Nursing,Leonard Cheshire  National Account Centr,3869.32, 23-Dec-2014
1353,Revenue,CCHD,Bed Purchasing - North,Permanent Residential,Leonard Cheshire  National Account Centr,2932.64, 23-Dec-2014
1354,Revenue,CCHD,Bed Purchasing - North,Permanent Nursing,Leonard Cheshire  National Account Centr,3271.52, 23-Dec-2014
1355,Revenue,CCHD,Bed Purchasing - North,Permanent Nursing,Leonard Cheshire  National Account Centr,5603.08, 23-Dec-2014
1356,Revenue,CCHD,Bed Purchasing - South,Permanent Nursing,Leonard Cheshire  National Account Centr,2908.6, 23-Dec-2014
1357,Revenue,CCHD,Bed Purchasing - Southmead Hospital,Permanent Nursing,Leonard Cheshire  National Account Centr,3041.76, 23-Dec-2014
1358,Revenue,CCHD,South Glos Users in all other LA Homes,Permanent Nursing,Leonard Cheshire  National Account Centr,610.44, 23-Dec-2014
1359,Revenue,CCHD,Bed Purchasing - North,Permanent Nursing,Leonard Cheshire  National Account Centr,3358.64, 23-Dec-2014
1360,Revenue,CCHD,Bed Purchasing - North,Permanent Nursing,Leonard Cheshire  National Account Centr,4127.12, 23-Dec-2014
1361,Revenue,CCHD,Bed Purchasing - South,Permanent Nursing,Leonard Cheshire  National Account Centr,4560.88, 23-Dec-2014
1362,Revenue,CCHD,Supported Living - North,Private & Voluntary Home Care,Lifeways Community Care (Gloucester) Ltd,11373, 22-Dec-2014
1363,Revenue,CCHD,Supported Living - North,Private & Voluntary Home Care,Lifeways Community Care (Gloucester) Ltd,11373, 08-Dec-2014
1364,Revenue,CCHD,Bed Purchasing - Southmead Hospital,Permanent Residential,Little Croft,1080.92, 23-Dec-2014
1365,Revenue,CCHD,Bed Purchasing - Southmead Hospital,Permanent Residential,Little Croft,1260.2, 23-Dec-2014
1366,Revenue,CCHD,Bed Purchasing - Southmead Hospital,Permanent Residential,Little Croft,1268.2, 23-Dec-2014
1367,Revenue,CCHD,Bed Purchasing - South,Permanent Residential,Little Croft,1570.6, 23-Dec-2014
1368,Revenue,CCHD,Bed Purchasing - South,Permanent Residential,Little Croft,1602.64, 23-Dec-2014
1369,Revenue,CCHD,Bed Purchasing - South,Permanent Residential,Little Croft,903.84, 23-Dec-2014
1370,Revenue,CCHD,Bed Purchasing - Southmead Hospital,Permanent Residential,Little Croft,1748.76, 23-Dec-2014
1371,Revenue,CCHD,Bed Purchasing - Southmead Hospital,Permanent Residential,Little Croft,1432.2, 23-Dec-2014
1372,Revenue,CCHD,Bed Purchasing - Southmead Hospital,Permanent Residential,Little Croft,1189.72, 23-Dec-2014
1373,Revenue,CCHD,Bed Purchasing - Southmead Hospital,Permanent Residential,Little Croft,619.24, 23-Dec-2014
1374,Revenue,CCHD,Bed Purchasing - South,Permanent Residential,Little Croft,1050.36, 23-Dec-2014
1375,Revenue,CCHD,Bed Purchasing - South,Permanent Residential,Little Croft,12297.25, 23-Dec-2014
1376,Revenue,CCHD,Bed Purchasing - South,Permanent Residential,Little Croft,1405.4, 23-Dec-2014
1377,Revenue,CCHD,Bed Purchasing - Southmead Hospital,Permanent Residential,Little Croft,1260.2, 23-Dec-2014
1378,Revenue,CCHD,Bed Purchasing - North,Permanent Residential,Little Croft,1367.56, 23-Dec-2014
1379,Revenue,CCHD,Bed Purchasing - Southmead Hospital,Permanent Residential,Little Croft,1260.2, 23-Dec-2014
1380,Revenue,CCHD,Bed Purchasing - North,Permanent Residential,Littlecroft Residential Homes  Longcroft,6481.28, 23-Dec-2014
1381,Revenue,CCHD,Home Care - Elderly - North,Other Small Contracts,Lloyds TSB Commercial Finance Limited,5530, 01-Dec-2014
1382,Revenue,CCHD,Home Care - Elderly - North,Other Small Contracts,Lloyds TSB Commercial Finance Limited,5399.65, 03-Dec-2014
1383,Revenue,CCHD,Home Care - Elderly - North,Other Small Contracts,Lloyds TSB Commercial Finance Limited,5598.85, 16-Dec-2014
1384,Revenue,CCHD,Home Care - Elderly - North,Other Small Contracts,Lloyds TSB Commercial Finance Limited,6447, 19-Dec-2014
1385,Revenue,CCHD,Supported Living - South,Private & Voluntary Home Care,Lloyds TSB Commercial Finance Limited,9118.7, 16-Dec-2014
1386,Revenue,CCHD,Supported Living - South,Private & Voluntary Home Care,Lloyds TSB Commercial Finance Limited,3756.79, 16-Dec-2014
1387,Revenue,CCHD,Supported Living - South,Private & Voluntary Home Care,Lloyds TSB Commercial Finance Limited,3893.71, 16-Dec-2014
1388,Revenue,CCHD,Supported Living - South,Private & Voluntary Home Care,Lloyds TSB Commercial Finance Limited,9199.95, 16-Dec-2014
1389,Revenue,CCHD,Supported Living - South,Private & Voluntary Home Care,Lloyds TSB Commercial Finance Limited,3782.02, 16-Dec-2014
1390,Revenue,CCHD,Supported Living - South,Private & Voluntary Home Care,Lloyds TSB Commercial Finance Limited,4056.62, 16-Dec-2014
1391,Revenue,CCHD,Supported Living - South,Private & Voluntary Home Care,Lloyds TSB Commercial Finance Limited,3713.79, 16-Dec-2014
1392,Revenue,CCHD,Supported Living - South,Private & Voluntary Home Care,Lloyds TSB Commercial Finance Limited,3097.98, 16-Dec-2014
1393,Revenue,CCHD,Supported Living - South,Private & Voluntary Home Care,Lloyds TSB Commercial Finance Limited,5913.77, 16-Dec-2014
1394,Revenue,CCHD,Supported Living - South,Private & Voluntary Home Care,Lloyds TSB Commercial Finance Limited,3481.74, 16-Dec-2014
1395,Revenue,CCHD,Supported Living - South,Private & Voluntary Home Care,Lloyds TSB Commercial Finance Limited,3463.71, 19-Dec-2014
1396,Revenue,CCHD,Supported Living - South,Private & Voluntary Home Care,Loga Care Ltd (T/A Logacare),3795.33, 04-Dec-2014
1397,Revenue,CCHD,Social Lettings Agency,Fees - General,Individual,10, 01-Dec-2014
1398,Revenue,CCHD,Social Lettings Agency,Other Supplies & Services,Individual,565, 01-Dec-2014
1399,Revenue,CCHD,Home Care - Elderly - North,Day Care / Social Activities,Lower Kilcott,1466, 23-Dec-2014
1400,Revenue,CCHD,Home Care - Elderly - North,Day Care / Social Activities,Lower Kilcott,560.64, 23-Dec-2014
1401,Revenue,CCHD,Bed Purchasing - Southmead Hospital,Permanent Nursing,Majestic 3 Limited,1000.2, 23-Dec-2014
1402,Revenue,CCHD,Purchase of Non-Res Care - North,Day Care / Social Activities,Make It Mentoring (MiM),1148, 30-Dec-2014
1403,Revenue,CCHD,Purchase of Non-Res Care - North,Day Care / Social Activities,Make It Mentoring (MiM),992.38, 30-Dec-2014
1404,Revenue,CCHD,Bed Purchasing - Southmead Hospital,Permanent Residential,Manor Cottage,1032.52, 23-Dec-2014
1405,Revenue,CCHD,Bed Purchasing - South,Permanent Residential,Manor Cottage,1456.6, 23-Dec-2014
1406,Revenue,CCHD,Bed Purchasing - Southmead Hospital,Permanent Residential,Manor Cottage,1260.2, 23-Dec-2014
1407,Revenue,CCHD,Bed Purchasing - North,Permanent Residential,Manton Hall Residential Home,1521.6, 23-Dec-2014
1408,Revenue,CCHD,Supported Living - South,Private & Voluntary Home Care,Maples Community Care Limited,2889.6, 19-Dec-2014
1409,Revenue,CCHD,Section 117 Placements MH Younger,Day Care / Social Activities,Maples Community Care Limited,798, 19-Dec-2014
1410,Revenue,CCHD,Section 117 Placements MH Younger,Day Care / Social Activities,Maples Community Care Limited,2597, 19-Dec-2014
1411,Revenue,CCHD,Younger MH non-res purchasing,Day Care / Social Activities,Maples Community Care Limited,2597, 19-Dec-2014
1412,Revenue,CCHD,Section 117 Placements MH Younger,Day Care / Social Activities,Maples Community Care Limited,2597, 19-Dec-2014
1413,Revenue,CCHD,Social Lettings Agency,Fees - General,Individual,11.6, 19-Dec-2014
1414,Revenue,CCHD,Social Lettings Agency,Other Supplies & Services,Individual,655.41, 19-Dec-2014
1415,Revenue,CCHD,Bed Purchasing - South,Permanent Residential,Marsden Healthcare Limited,1263.2, 22-Dec-2014
1416,Revenue,CCHD,Bed Purchasing - South,Permanent Residential,Marsden Healthcare Limited,3247.8, 22-Dec-2014
1417,Revenue,CCHD,Bed Purchasing - South,Permanent Residential,Marsden Healthcare Limited,1525.64, 22-Dec-2014
1418,Revenue,CCHD,Bed Purchasing - South,Permanent Nursing,Meadow Care Home,1541, 23-Dec-2014
1419,Revenue,CCHD,Home Care - Elderly - South,Day Care / Social Activities,Mears Care,92.4, 05-Dec-2014
1420,Revenue,CCHD,Home Care - Elderly - South,Other Small Contracts,Mears Care,616, 05-Dec-2014
1421,Revenue,CCHD,Home Care - Elderly - North,Other Small Contracts,Mears Care,3830.75, 05-Dec-2014
1422,Revenue,CCHD,Day Care - North,Day Care / Social Activities,Mears Care,100.1, 05-Dec-2014
1423,Revenue,CCHD,Under 65s -MH  Home Care Purch,Other Small Contracts,Mears Care,115.5, 05-Dec-2014
1424,Revenue,CCHD,Home Care - Elderly - South,Day Care / Social Activities,Mears Care,134.75, 01-Dec-2014
1425,Revenue,CCHD,Home Care - Elderly - South,Other Small Contracts,Mears Care,585.2, 01-Dec-2014
1426,Revenue,CCHD,Home Care - Elderly - North,Other Small Contracts,Mears Care,4131.05, 01-Dec-2014
1427,Revenue,CCHD,Day Care - North,Day Care / Social Activities,Mears Care,100.1, 01-Dec-2014
1428,Revenue,CCHD,Under 65s -MH  Home Care Purch,Other Small Contracts,Mears Care,115.5, 01-Dec-2014
1429,Revenue,CCHD,Home Care - Elderly - South,Day Care / Social Activities,Mears Care,88.55, 19-Dec-2014
1430,Revenue,CCHD,Home Care - Elderly - South,Other Small Contracts,Mears Care,581.35, 19-Dec-2014
1431,Revenue,CCHD,Home Care - Elderly - North,Other Small Contracts,Mears Care,3903.9, 19-Dec-2014
1432,Revenue,CCHD,Day Care - North,Day Care / Social Activities,Mears Care,100.1, 19-Dec-2014
1433,Revenue,CCHD,Under 65s -MH  Home Care Purch,Other Small Contracts,Mears Care,115.5, 19-Dec-2014
1434,Revenue,CCHD,Home Care - Elderly - South,Day Care / Social Activities,Mears Care,88.55, 19-Dec-2014
1435,Revenue,CCHD,Home Care - Elderly - South,Other Small Contracts,Mears Care,666.05, 19-Dec-2014
1436,Revenue,CCHD,Home Care - Elderly - North,Other Small Contracts,Mears Care,3946.25, 19-Dec-2014
1437,Revenue,CCHD,Day Care - North,Day Care / Social Activities,Mears Care,100.1, 19-Dec-2014
1438,Revenue,CCHD,Under 65s -MH  Home Care Purch,Other Small Contracts,Mears Care,115.5, 19-Dec-2014
1439,Revenue,CCHD,Home Care - Elderly - South,Day Care / Social Activities,Mears Care,92.4, 23-Dec-2014
1440,Revenue,CCHD,Home Care - Elderly - South,Other Small Contracts,Mears Care,573.65, 23-Dec-2014
1441,Revenue,CCHD,Home Care - Elderly - North,Other Small Contracts,Mears Care,3911.6, 23-Dec-2014
1442,Revenue,CCHD,Day Care - North,Day Care / Social Activities,Mears Care,92.4, 23-Dec-2014
1443,Revenue,CCHD,Under 65s -MH  Home Care Purch,Other Small Contracts,Mears Care,119.35, 23-Dec-2014
1444,Revenue,CCHD,Home Care - Elderly - South,Private & Voluntary Home Care,Mears Care,49219, 24-Dec-2014
1445,Revenue,CCHD,Home Care - Elderly - South,Other Small Contracts,Medacs Home Care,259, 02-Dec-2014
1446,Revenue,CCHD,Home Care - Elderly - North,Other Small Contracts,Medacs Home Care,454.7, 02-Dec-2014
1447,Revenue,CCHD,Home care - Elderly MH - North,Other Small Contracts,Medacs Home Care,87.5, 02-Dec-2014
1448,Revenue,CCHD,Home Care - Elderly - South,Other Small Contracts,Medacs Home Care,262.5, 04-Dec-2014
1449,Revenue,CCHD,Home Care - Elderly - North,Other Small Contracts,Medacs Home Care,440.7, 04-Dec-2014
1450,Revenue,CCHD,Home care - Elderly MH - North,Other Small Contracts,Medacs Home Care,101.5, 04-Dec-2014
1451,Revenue,CCHD,Home Care - Elderly - South,Other Small Contracts,Medacs Home Care,213.5, 23-Dec-2014
1452,Revenue,CCHD,Home Care - Elderly - North,Other Small Contracts,Medacs Home Care,440.7, 23-Dec-2014
1453,Revenue,CCHD,Home care - Elderly MH - North,Other Small Contracts,Medacs Home Care,98, 23-Dec-2014
1454,Revenue,CCHD,Home Care - Elderly - South,Other Small Contracts,Medacs Home Care,203, 19-Dec-2014
1455,Revenue,CCHD,Home Care - Elderly - North,Other Small Contracts,Medacs Home Care,440.7, 19-Dec-2014
1456,Revenue,CCHD,Home care - Elderly MH - North,Other Small Contracts,Medacs Home Care,91, 19-Dec-2014
1457,Revenue,CCHD,Home Care - Elderly - South,Other Small Contracts,Medacs Home Care,203, 24-Dec-2014
1458,Revenue,CCHD,Home Care - Elderly - North,Other Small Contracts,Medacs Home Care,426.7, 24-Dec-2014
1459,Revenue,CCHD,Home care - Elderly MH - North,Other Small Contracts,Medacs Home Care,91, 24-Dec-2014
1460,Revenue,CCHD,NRS Contract,Daily Living Equipment,Medequip Assistive Technology Ltd,9008.67, 19-Dec-2014
1461,Revenue,CCHD,NRS Contract,Daily Living Equipment,Medequip Assistive Technology Ltd,72796.51, 19-Dec-2014
1462,Revenue,CCHD,Bed Purchasing - South,Permanent Residential,Mencap,2252.48, 23-Dec-2014
1463,Revenue,CCHD,Supported Living (S28a) South,Private & Voluntary Home Care,Mencap - PS Central & Cymru,3841.88, 10-Dec-2014
1464,Revenue,CCHD,Supported Living (S28a) South,Private & Voluntary Home Care,Mencap - PS Central & Cymru,3841.88, 22-Dec-2014
1465,Revenue,CCHD,Supporting People Programme,Grants to Voluntary Bodies,Merlin Housing Society,14628.5, 01-Dec-2014
1466,Revenue,CCHD,Supporting People Programme,Grants to Voluntary Bodies,Merlin Housing Society,2458.92, 01-Dec-2014
1467,Revenue,CCHD,Supporting People Programme,Grants to Voluntary Bodies,Merlin Housing Society,47076.5, 01-Dec-2014
1468,Revenue,CCHD,Supporting People Programme,Grants to Voluntary Bodies,Merlin Housing Society,1041.83, 01-Dec-2014
1469,Revenue,CCHD,Homelessness Grant,Other Supplies & Services,Merlin Housing Society,2040.13, 05-Dec-2014
1470,Revenue,CCHD,Home Care - Elderly - South,Other Small Contracts,MiHomecare,324, 02-Dec-2014
1471,Revenue,CCHD,Home Care - Elderly - North,Other Small Contracts,MiHomecare,421.2, 02-Dec-2014
1472,Revenue,CCHD,Bed Purchasing - Southmead Hospital,Permanent Residential,Milburn Finance,1055.44, 23-Dec-2014
1473,Revenue,CCHD,Home Care - Elderly - South,Day Care / Social Activities,Milestones Homecare & Dementia Service,31.04, 19-Dec-2014
1474,Revenue,CCHD,Home Care - Elderly - South,Other Small Contracts,Milestones Homecare & Dementia Service,1827.48, 19-Dec-2014
1475,Revenue,CCHD,Home Care - Elderly - North,Other Small Contracts,Milestones Homecare & Dementia Service,1489.92, 19-Dec-2014
1476,Revenue,CCHD,Home care - Elderly MH - North,Other Small Contracts,Milestones Homecare & Dementia Service,54.32, 19-Dec-2014
1477,Revenue,CCHD,Home Care - Elderly - South,Day Care / Social Activities,Milestones Homecare & Dementia Service,31.04, 12-Dec-2014
1478,Revenue,CCHD,Home Care - Elderly - South,Other Small Contracts,Milestones Homecare & Dementia Service,1843, 12-Dec-2014
1479,Revenue,CCHD,Home Care - Elderly - North,Other Small Contracts,Milestones Homecare & Dementia Service,1474.4, 12-Dec-2014
1480,Revenue,CCHD,Home care - Elderly MH - North,Other Small Contracts,Milestones Homecare & Dementia Service,54.32, 12-Dec-2014
1481,Revenue,CCHD,Home Care - Elderly - South,Day Care / Social Activities,Milestones Homecare & Dementia Service,34.92, 19-Dec-2014
1482,Revenue,CCHD,Home Care - Elderly - South,Other Small Contracts,Milestones Homecare & Dementia Service,1815.84, 19-Dec-2014
1483,Revenue,CCHD,Home Care - Elderly - North,Other Small Contracts,Milestones Homecare & Dementia Service,1319.2, 19-Dec-2014
1484,Revenue,CCHD,Home care - Elderly MH - North,Other Small Contracts,Milestones Homecare & Dementia Service,46.56, 19-Dec-2014
1485,Revenue,CCHD,Home Care - Elderly - South,Other Small Contracts,Milestones Supported Living Services,4206.49, 19-Dec-2014
1486,Revenue,CCHD,Home Care - Elderly - North,Other Small Contracts,Milestones Supported Living Services,48.12, 19-Dec-2014
1487,Revenue,CCHD,Day Care - South,Day Care / Social Activities,Milestones Supported Living Services,84.21, 19-Dec-2014
1488,Revenue,CCHD,Day Care - North,Day Care / Social Activities,Milestones Supported Living Services,220.78, 19-Dec-2014
1489,Revenue,CCHD,Younger MH non-res purchasing,Day Care / Social Activities,Milestones Supported Living Services,24.06, 19-Dec-2014
1490,Revenue,CCHD,Home care - Elderly MH - North,Other Small Contracts,Milestones Supported Living Services,64.16, 19-Dec-2014
1491,Revenue,CCHD,Home Care - Elderly - South,Other Small Contracts,Milestones Supported Living Services,4178.42, 19-Dec-2014
1492,Revenue,CCHD,Home Care - Elderly - North,Other Small Contracts,Milestones Supported Living Services,48.12, 19-Dec-2014
1493,Revenue,CCHD,Day Care - South,Day Care / Social Activities,Milestones Supported Living Services,96.24, 19-Dec-2014
1494,Revenue,CCHD,Day Care - North,Day Care / Social Activities,Milestones Supported Living Services,229.35, 19-Dec-2014
1495,Revenue,CCHD,Younger MH non-res purchasing,Day Care / Social Activities,Milestones Supported Living Services,20.05, 19-Dec-2014
1496,Revenue,CCHD,Home care - Elderly MH - North,Other Small Contracts,Milestones Supported Living Services,68.17, 19-Dec-2014
1497,Revenue,CCHD,Home Care - Elderly - South,Day Care / Social Activities,Milestones Supported Living Services,3123.79, 24-Dec-2014
1498,Revenue,CCHD,Home Care - Elderly - South,Other Small Contracts,Milestones Supported Living Services,3155.87, 24-Dec-2014
1499,Revenue,CCHD,Home Care - Elderly - South,Supported Living,Milestones Supported Living Services,673.68, 24-Dec-2014
1500,Revenue,CCHD,Home Care - Elderly - North,Day Care / Social Activities,Milestones Supported Living Services,1591.97, 24-Dec-2014
1501,Revenue,CCHD,Day Care - South,Day Care / Social Activities,Milestones Supported Living Services,96.24, 24-Dec-2014
1502,Revenue,CCHD,Day Care - North,Day Care / Social Activities,Milestones Supported Living Services,193.26, 24-Dec-2014
1503,Revenue,CCHD,Younger MH non-res purchasing,Day Care / Social Activities,Milestones Supported Living Services,24.06, 24-Dec-2014
1504,Revenue,CCHD,Home care - Elderly MH - North,Other Small Contracts,Milestones Supported Living Services,40.1, 24-Dec-2014
1505,Revenue,CCHD,Elderly MH Day Care North,Day Care / Social Activities,Milestones Trust,666.72, 16-Dec-2014
1506,Revenue,CCHD,Bed Purchasing - Southmead Hospital,Permanent Residential,Mostyn Lodge Residential Home,1133.48, 23-Dec-2014
1507,Revenue,CCHD,Bed Purchasing - North,Permanent Residential,Mostyn Lodge Residential Home,1234.64, 23-Dec-2014
1508,Revenue,CCHD,Supported Living - South,Private & Voluntary Home Care,Moving On,5366.51, 23-Dec-2014
1509,Revenue,CCHD,Social Lettings Agency,Fees - General,Individual,10, 05-Dec-2014
1510,Revenue,CCHD,Social Lettings Agency,Other Supplies & Services,Individual,565, 05-Dec-2014
1511,Revenue,CCHD,Social Lettings Agency,Fees - General,Individual,10, 18-Dec-2014
1512,Revenue,CCHD,Social Lettings Agency,Other Supplies & Services,Individual,565, 18-Dec-2014
1513,Revenue,CCHD,Social Lettings Agency,Fees - General,Individual,10.09, 05-Dec-2014
1514,Revenue,CCHD,Social Lettings Agency,Other Supplies & Services,Individual,570.66, 05-Dec-2014
1515,Revenue,CCHD,Social Lettings Agency,Fees - General,Individual,10.1, 05-Dec-2014
1516,Revenue,CCHD,Social Lettings Agency,Other Supplies & Services,Individual,570.64, 05-Dec-2014
1517,Revenue,CCHD,Social Lettings Agency,Fees - General,Individual,10, 22-Dec-2014
1518,Revenue,CCHD,Social Lettings Agency,Other Supplies & Services,Individual,565, 22-Dec-2014
1519,Revenue,CCHD,Supporting People Programme,Grants to Voluntary Bodies,Individual,998.92, 01-Dec-2014
1520,Revenue,CCHD,Tenancy Start Up Scheme,Other Supplies & Services,Individual,631, 04-Dec-2014
1521,Revenue,CCHD,Homeless - Private Sector Leasing,Other Supplies & Services,Individual,565, 23-Dec-2014
1522,Revenue,CCHD,Social Lettings Agency,Fees - General,Individual,11.71, 02-Dec-2014
1523,Revenue,CCHD,Social Lettings Agency,Other Supplies & Services,Individual,661.96, 02-Dec-2014
1524,Revenue,CCHD,Social Lettings Agency,Fees - General,Individual,10, 08-Dec-2014
1525,Revenue,CCHD,Social Lettings Agency,Other Supplies & Services,Individual,565, 08-Dec-2014
1526,Revenue,CCHD,Tenancy Start Up Scheme,Other Supplies & Services,Individual,1300, 05-Dec-2014
1527,Revenue,CCHD,Social Lettings Agency,Fees - General,Individual,10, 08-Dec-2014
1528,Revenue,CCHD,Social Lettings Agency,Other Supplies & Services,Individual,565, 08-Dec-2014
1529,Revenue,CCHD,Social Lettings Agency,Fees - General,Individual,10, 01-Dec-2014
1530,Revenue,CCHD,Social Lettings Agency,Other Supplies & Services,Individual,565, 01-Dec-2014
1531,Revenue,CCHD,Social Lettings Agency,Fees - General,Individual,16.16, 19-Dec-2014
1532,Revenue,CCHD,Social Lettings Agency,Other Supplies & Services,Individual,662.78, 19-Dec-2014
1533,Revenue,CCHD,Social Lettings Agency,Fees - General,Individual,10, 24-Dec-2014
1534,Revenue,CCHD,Social Lettings Agency,Other Supplies & Services,Individual,522.11, 24-Dec-2014
1535,Revenue,CCHD,Home Care - Elderly - South,Day Care / Social Activities,Mrs B Kimber -  CM2000,431.55, 02-Dec-2014
1536,Revenue,CCHD,Home Care - Elderly - South,Other Small Contracts,Mrs B Kimber -  CM2000,11350.89, 02-Dec-2014
1537,Revenue,CCHD,Home Care - Elderly - North,Other Small Contracts,Mrs B Kimber -  CM2000,4447.02, 02-Dec-2014
1538,Revenue,CCHD,Day Care - South,Day Care / Social Activities,Mrs B Kimber -  CM2000,263.04, 02-Dec-2014
1539,Revenue,CCHD,Under 65s -MH  Home Care Purch,Other Small Contracts,Mrs B Kimber -  CM2000,65.76, 02-Dec-2014
1540,Revenue,CCHD,Elderly MH Day Care North,Day Care / Social Activities,Mrs B Kimber -  CM2000,98.64, 02-Dec-2014
1541,Revenue,CCHD,Home Care - Elderly - South,Other Small Contracts,Mrs B Kimber -  CM2000,11446.08, 05-Dec-2014
1542,Revenue,CCHD,Home Care - Elderly - North,Other Small Contracts,Mrs B Kimber -  CM2000,4652.52, 05-Dec-2014
1543,Revenue,CCHD,Day Care - South,Day Care / Social Activities,Mrs B Kimber -  CM2000,226.05, 05-Dec-2014
1544,Revenue,CCHD,Under 65s -MH  Home Care Purch,Other Small Contracts,Mrs B Kimber -  CM2000,65.76, 05-Dec-2014
1545,Revenue,CCHD,Elderly MH Day Care North,Day Care / Social Activities,Mrs B Kimber -  CM2000,102.75, 05-Dec-2014
1546,Revenue,CCHD,Home Care - Elderly - South,Day Care / Social Activities,Mrs B Kimber -  CM2000,386.34, 05-Dec-2014
1547,Revenue,CCHD,Home Care - Elderly - South,Other Small Contracts,Mrs B Kimber -  CM2000,10621.2, 05-Dec-2014
1548,Revenue,CCHD,Home Care - Elderly - North,Other Small Contracts,Mrs B Kimber -  CM2000,4352.49, 05-Dec-2014
1549,Revenue,CCHD,Day Care - South,Day Care / Social Activities,Mrs B Kimber -  CM2000,164.4, 05-Dec-2014
1550,Revenue,CCHD,Under 65s -MH  Home Care Purch,Other Small Contracts,Mrs B Kimber -  CM2000,65.76, 05-Dec-2014
1551,Revenue,CCHD,Elderly MH Day Care North,Day Care / Social Activities,Mrs B Kimber -  CM2000,98.64, 05-Dec-2014
1552,Revenue,CCHD,Home Care - Elderly - South,Other Small Contracts,Mrs B Kimber -  CM2000,11209.26, 11-Dec-2014
1553,Revenue,CCHD,Home Care - Elderly - North,Other Small Contracts,Mrs B Kimber -  CM2000,4356.6, 11-Dec-2014
1554,Revenue,CCHD,Day Care - South,Day Care / Social Activities,Mrs B Kimber -  CM2000,160.29, 11-Dec-2014
1555,Revenue,CCHD,Under 65s -MH  Home Care Purch,Other Small Contracts,Mrs B Kimber -  CM2000,65.76, 11-Dec-2014
1556,Revenue,CCHD,Elderly MH Day Care North,Day Care / Social Activities,Mrs B Kimber -  CM2000,98.64, 11-Dec-2014
1557,Revenue,CCHD,Home Care - Elderly - South,Day Care / Social Activities,Mrs B Kimber -  CM2000,456.21, 11-Dec-2014
1558,Revenue,CCHD,Home Care - Elderly - South,Other Small Contracts,Mrs B Kimber -  CM2000,11150.16, 11-Dec-2014
1559,Revenue,CCHD,Home Care - Elderly - North,Other Small Contracts,Mrs B Kimber -  CM2000,4590.87, 11-Dec-2014
1560,Revenue,CCHD,Day Care - South,Day Care / Social Activities,Mrs B Kimber -  CM2000,123.3, 11-Dec-2014
1561,Revenue,CCHD,Under 65s -MH  Home Care Purch,Other Small Contracts,Mrs B Kimber -  CM2000,65.76, 11-Dec-2014
1562,Revenue,CCHD,Elderly MH Day Care North,Day Care / Social Activities,Mrs B Kimber -  CM2000,98.64, 11-Dec-2014
1563,Revenue,CCHD,Home Care - Elderly - South,Day Care / Social Activities,Mrs B Kimber -  CM2000,1031.64, 23-Dec-2014
1564,Revenue,CCHD,Home Care - Elderly - South,Other Small Contracts,Mrs B Kimber -  CM2000,10900.08, 23-Dec-2014
1565,Revenue,CCHD,Home Care - Elderly - North,Day Care / Social Activities,Mrs B Kimber -  CM2000,431.55, 23-Dec-2014
1566,Revenue,CCHD,Home Care - Elderly - North,Other Small Contracts,Mrs B Kimber -  CM2000,4077.12, 23-Dec-2014
1567,Revenue,CCHD,Under 65s -MH  Home Care Purch,Other Small Contracts,Mrs B Kimber -  CM2000,65.76, 23-Dec-2014
1568,Revenue,CCHD,Elderly MH Day Care North,Day Care / Social Activities,Mrs B Kimber -  CM2000,98.64, 23-Dec-2014
1569,Revenue,CCHD,Social Lettings Agency,Fees - General,Individual,10, 17-Dec-2014
1570,Revenue,CCHD,Social Lettings Agency,Other Supplies & Services,Individual,565, 17-Dec-2014
1571,Revenue,CCHD,Social Lettings Agency,Fees - General,Individual,10, 24-Dec-2014
1572,Revenue,CCHD,Social Lettings Agency,Other Supplies & Services,Individual,565, 24-Dec-2014
1573,Revenue,CCHD,Social Lettings Agency,Fees - General,Individual,10, 01-Dec-2014
1574,Revenue,CCHD,Social Lettings Agency,Other Supplies & Services,Individual,565, 01-Dec-2014
1575,Revenue,CCHD,Supported Living - North,Permanent Residential,Individual,1140.78, 08-Dec-2014
1576,Revenue,CCHD,Social Lettings Agency,Fees - General,Individual,10.1, 12-Dec-2014
1577,Revenue,CCHD,Social Lettings Agency,Other Supplies & Services,Individual,570.64, 12-Dec-2014
1578,Revenue,CCHD,Supported Living - North,Permanent Residential,Individual,1078.35, 08-Dec-2014
1579,Revenue,CCHD,Social Lettings Agency,Fees - General,Individual,11.6, 16-Dec-2014
1580,Revenue,CCHD,Social Lettings Agency,Other Supplies & Services,Individual,655.41, 16-Dec-2014
1581,Revenue,CCHD,Social Lettings Agency,Fees - General,Individual,10, 08-Dec-2014
1582,Revenue,CCHD,Social Lettings Agency,Other Supplies & Services,Individual,565, 08-Dec-2014
1583,Revenue,CCHD,Social Lettings Agency,Fees - General,Individual,17.13, 11-Dec-2014
1584,Revenue,CCHD,Social Lettings Agency,Other Supplies & Services,Individual,977.68, 11-Dec-2014
1585,Revenue,CCHD,Day Care - North,Day Care / Social Activities,NAS Services Limited,582.55, 01-Dec-2014
1586,Revenue,CCHD,Younger MH non-res purchasing,Day Care / Social Activities,NAS Services Limited,907.9, 12-Dec-2014
1587,Revenue,CCHD,Day Care - North,Day Care / Social Activities,NAS Services Limited,1193.75, 12-Dec-2014
1588,Revenue,CCHD,Younger MH non-res purchasing,Day Care / Social Activities,NAS Services Limited,578.4, 12-Dec-2014
1589,Revenue,CCHD,Day Care - South,Day Care / Social Activities,NAS Services Limited,758.3, 12-Dec-2014
1590,Revenue,CCHD,Younger MH non-res purchasing,Day Care / Social Activities,NAS Services Limited,808.55, 12-Dec-2014
1591,Revenue,CCHD,Home Care - Elderly - North,Day Care / Social Activities,NAS Services Limited,1675.52, 12-Dec-2014
1592,Revenue,CCHD,Day Care - South,Day Care / Social Activities,NAS Services Limited,613.05, 12-Dec-2014
1593,Revenue,CCHD,Newton House,Security Systems,National Security Group,123.51, 19-Dec-2014
1594,Revenue,CCHD,Drug/Alcohol Residential Rehab,Security Systems,National Security Group,21.67, 19-Dec-2014
1595,Revenue,CCHD,Home Care - Elderly - South,Other Small Contracts,Nestor T/A Allied Healthcare,2994.4, 04-Dec-2014
1596,Revenue,CCHD,Home Care - Elderly - North,Other Small Contracts,Nestor T/A Allied Healthcare,9022.95, 04-Dec-2014
1597,Revenue,CCHD,Day Care - North,Day Care / Social Activities,Nestor T/A Allied Healthcare,235.6, 04-Dec-2014
1598,Revenue,CCHD,Home care - Elderly MH - North,Other Small Contracts,Nestor T/A Allied Healthcare,53.2, 04-Dec-2014
1599,Revenue,CCHD,Home Care - Elderly - South,Other Small Contracts,Nestor T/A Allied Healthcare,3032.4, 04-Dec-2014
1600,Revenue,CCHD,Home Care - Elderly - North,Other Small Contracts,Nestor T/A Allied Healthcare,9258.44, 04-Dec-2014
1601,Revenue,CCHD,Day Care - North,Day Care / Social Activities,Nestor T/A Allied Healthcare,235.6, 04-Dec-2014
1602,Revenue,CCHD,Home care - Elderly MH - North,Other Small Contracts,Nestor T/A Allied Healthcare,53.2, 04-Dec-2014
1603,Revenue,CCHD,Home Care - Elderly - South,Other Small Contracts,Nestor T/A Allied Healthcare,3180.6, 10-Dec-2014
1604,Revenue,CCHD,Home Care - Elderly - North,Other Small Contracts,Nestor T/A Allied Healthcare,9393.03, 10-Dec-2014
1605,Revenue,CCHD,Day Care - North,Day Care / Social Activities,Nestor T/A Allied Healthcare,220.4, 10-Dec-2014
1606,Revenue,CCHD,Home care - Elderly MH - North,Other Small Contracts,Nestor T/A Allied Healthcare,53.2, 10-Dec-2014
1607,Revenue,CCHD,Social Lettings Agency,Fees - General,Individual,10, 04-Dec-2014
1608,Revenue,CCHD,Social Lettings Agency,Other Supplies & Services,Individual,565, 04-Dec-2014
1609,Revenue,CCHD,Community Promoting Independence Team,"Holidays, Outings & Visits",Neville Williams,1120, 17-Dec-2014
1610,Revenue,CCHD,Community Promoting Independence Team,"Holidays, Outings & Visits",Neville Williams,1098, 03-Dec-2014
1611,Revenue,CCHD,Community Promoting Independence Team,"Holidays, Outings & Visits",Neville Williams,1098, 24-Dec-2014
1612,Revenue,CCHD,Community Promoting Independence Team,Agency Staff (Operational)/PCT Pay,NHS England Re PCT SHA Closure,99622.94, 10-Dec-2014
1613,Revenue,CCHD,Mental Capacity Act - Advocacy,Other Supplies & Services,NHS South Gloucestershire CCG,27527.85, 24-Dec-2014
1614,Revenue,CCHD,"Strategy, Advice and Public Protection",Other Supplies & Services,NHS South West CSU,1900.25, 02-Dec-2014
1615,Revenue,CCHD,"Strategy, Advice and Public Protection",Other Supplies & Services,NHS South West CSU,1900.25, 09-Dec-2014
1616,Revenue,CCHD,Children & Young People�s Health,Other Small Contracts,North Bristol NHS Trust,122750, 15-Dec-2014
1617,Revenue,CCHD,Bed Purchasing - South,Permanent Residential,Norwood   Broadway House,4972.4, 23-Dec-2014
1618,Revenue,CCHD,Bed Purchasing - Southmead Hospital,Permanent Residential,Notaro Homes Ltd  Queensmead Court,3000, 23-Dec-2014
1619,Revenue,CCHD,Bed Purchasing - South,Permanent Residential,Notaro Homes Ltd  Queensmead Court,1884.8, 23-Dec-2014
1620,Revenue,CCHD,Bed Purchasing - Southmead Hospital,Permanent Residential,Notaro Homes Ltd  Queensmead Court,1389, 23-Dec-2014
1621,Revenue,CCHD,Bed Purchasing - North,Respite Planned - Residential,Notaro Homes Ltd  Queensmead Court,3000, 23-Dec-2014
1622,Revenue,CCHD,Bed Purchasing - South,Permanent Residential,Nova House Care Home,949.92, 23-Dec-2014
1623,Revenue,CCHD,Home Care - Elderly - South,Other Small Contracts,Nursing Solutions Limited,3414.32, 03-Dec-2014
1624,Revenue,CCHD,Home Care - Elderly - North,Other Small Contracts,Nursing Solutions Limited,631.12, 03-Dec-2014
1625,Revenue,CCHD,Home Care - Elderly - South,Other Small Contracts,Nursing Solutions Limited,3041.92, 05-Dec-2014
1626,Revenue,CCHD,Home Care - Elderly - North,Other Small Contracts,Nursing Solutions Limited,603.68, 05-Dec-2014
1627,Revenue,CCHD,Home Care - Elderly - South,Other Small Contracts,Nursing Solutions Limited,3265.36, 02-Dec-2014
1628,Revenue,CCHD,Home Care - Elderly - North,Other Small Contracts,Nursing Solutions Limited,654.64, 02-Dec-2014
1629,Revenue,CCHD,Home Care - Elderly - South,Other Small Contracts,Nursing Solutions Limited,3288.88, 04-Dec-2014
1630,Revenue,CCHD,Home Care - Elderly - North,Other Small Contracts,Nursing Solutions Limited,650.72, 04-Dec-2014
1631,Revenue,CCHD,Home Care - Elderly - South,Other Small Contracts,Nursing Solutions Limited,3194.8, 02-Dec-2014
1632,Revenue,CCHD,Home Care - Elderly - North,Other Small Contracts,Nursing Solutions Limited,603.68, 02-Dec-2014
1633,Revenue,CCHD,Home Care - Elderly - South,Other Small Contracts,Nursing Solutions Limited,3101.65, 11-Dec-2014
1634,Revenue,CCHD,Home Care - Elderly - North,Other Small Contracts,Nursing Solutions Limited,572.32, 11-Dec-2014
1635,Revenue,CCHD,Home Care - Elderly - South,Other Small Contracts,Nursing Solutions Limited,2932.16, 19-Dec-2014
1636,Revenue,CCHD,Home Care - Elderly - North,Other Small Contracts,Nursing Solutions Limited,591.92, 19-Dec-2014
1637,Revenue,CCHD,Section 117 Placements MH Younger,Permanent Nursing,Oaklands,6088.8, 23-Dec-2014
1638,Revenue,CCHD,Bed purchasing -S28A  Under 65 - North,Permanent Residential,Orchard End Limited,7562.88, 23-Dec-2014
1639,Revenue,CCHD,Bed purchasing - Elderly S117 - South,Permanent Residential,Osbourne Court,3105.28, 23-Dec-2014
1640,Revenue,CCHD,Bed Purchasing - Southmead Hospital,Permanent Residential,Osbourne Court,2530.48, 23-Dec-2014
1641,Revenue,CCHD,Bed Purchasing - Southmead Hospital,Permanent Residential,Osbourne Court,970.2, 23-Dec-2014
1642,Revenue,CCHD,Bed Purchasing - North,Permanent Residential,Osbourne Court,1796.4, 23-Dec-2014
1643,Revenue,CCHD,Bed Purchasing - North,Permanent Residential,Osbourne Court,2046.96, 23-Dec-2014
1644,Revenue,CCHD,Bed Purchasing - North,Respite Planned - Residential,Osbourne Court,780, 23-Dec-2014
1645,Revenue,CCHD,Bed Purchasing - Elderly S117- North,Permanent Residential,Osbourne Court,1928, 23-Dec-2014
1646,Revenue,CCHD,Bed Purchasing - North,Permanent Residential,Osbourne Court,2557.32, 23-Dec-2014
1647,Revenue,CCHD,Bed purchasing - S28A Under 65 - South,Permanent Residential,Osprey Court,4322.88, 23-Dec-2014
1648,Revenue,CCHD,Bed Purchasing - South,Permanent Residential,Osprey Court,7750.24, 23-Dec-2014
1649,Revenue,CCHD,Bed purchasing - S28A Under 65 - South,Permanent Residential,Osprey Court,6396.04, 23-Dec-2014
1650,Revenue,CCHD,Bed purchasing - Elderly S117 - South,Permanent Residential,Osprey Court,11328.56, 23-Dec-2014
1651,Revenue,CCHD,Breakthrough and Inclusion Work,Other Supplies & Services,P3D,3174.42, 09-Dec-2014
1652,Revenue,CCHD,Bed Purchasing - Southmead Hospital,Permanent Nursing,Palm Court Nursing Home,1519.32, 23-Dec-2014
1653,Revenue,CCHD,Bed Purchasing - South,Permanent Residential,Park Farm House,1344.56, 23-Dec-2014
1654,Revenue,CCHD,Bed Purchasing - South,Permanent Residential,Park Farm House,1614.16, 23-Dec-2014
1655,Revenue,CCHD,Bed Purchasing - South,Permanent Residential,Park Hall,5634.64, 23-Dec-2014
1656,Revenue,CCHD,Bed Purchasing - North,Permanent Residential,Park Hall,5202.24, 23-Dec-2014
1657,Revenue,CCHD,Bed Purchasing - South,Permanent Residential,Park Hall,5014.44, 23-Dec-2014
1658,Revenue,CCHD,Bed Purchasing - South,Permanent Residential,Park Hall,2555.68, 23-Dec-2014
1659,Revenue,CCHD,Bed Purchasing - North,Permanent Residential,Park Hall,4967.68, 23-Dec-2014
1660,Revenue,CCHD,Bed purchasing - S28A Under 65 - South,Permanent Residential,Park Hall,4682.92, 23-Dec-2014
1661,Revenue,CCHD,Bed Purchasing - South,Permanent Residential,Park Hall,4990.4, 23-Dec-2014
1662,Revenue,CCHD,Bed Purchasing - North,Permanent Residential,Park Hall,4323.28, 23-Dec-2014
1663,Revenue,CCHD,Bed Purchasing - South,Permanent Residential,Park Hall,10767.96, 23-Dec-2014
1664,Revenue,CCHD,Bed purchasing -S28A  Under 65 - North,Permanent Residential,Park Hall,5931.12, 23-Dec-2014
1665,Revenue,CCHD,Bed purchasing - S28A Under 65 - South,Permanent Residential,Park Hall,5670.16, 23-Dec-2014
1666,Revenue,CCHD,18-25 Year Olds,Permanent Residential,Park Hall,7181.48, 23-Dec-2014
1667,Revenue,CCHD,Bed Purchasing - North,Permanent Residential,Parker Meadows,2904.2, 23-Dec-2014
1668,Revenue,CCHD,Social Lettings Agency,Fees - General,Individual,10, 24-Dec-2014
1669,Revenue,CCHD,Social Lettings Agency,Other Supplies & Services,Individual,565, 24-Dec-2014
1670,Revenue,CCHD,Bed Purchasing - South,Permanent Residential,Penleigh House Care Home,4560.48, 23-Dec-2014
1671,Revenue,CCHD,Bed Purchasing - South,Permanent Residential,Penleigh House Care Home,6430.64, 23-Dec-2014
1672,Revenue,CCHD,Bed Purchasing - South,Permanent Residential,Penleigh House Care Home,4318.88, 23-Dec-2014
1673,Revenue,CCHD,Bed purchasing - S28A Under 65 - South,Permanent Residential,Penleigh House Care Home,5497.68, 23-Dec-2014
1674,Revenue,CCHD,Bed Purchasing - South,Permanent Residential,Penleigh House Care Home,4966.16, 23-Dec-2014
1675,Revenue,CCHD,Training - Adult Services,Training Expenses,Individual,511.7, 18-Dec-2014
1676,Revenue,CCHD,Information Systems - Software,Software Purchase,Phoenix Software Limited,6364.26, 18-Dec-2014
1677,Revenue,CCHD,Home Care - Elderly - North,Day Care / Social Activities,Premier Homecare Limited,136.8, 01-Dec-2014
1678,Revenue,CCHD,Home Care - Elderly - North,Other Small Contracts,Premier Homecare Limited,12309.15, 01-Dec-2014
1679,Revenue,CCHD,Home care - Elderly MH - North,Other Small Contracts,Premier Homecare Limited,127.68, 01-Dec-2014
1680,Revenue,CCHD,Elderly MH Day Care North,Day Care / Social Activities,Premier Homecare Limited,72.96, 01-Dec-2014
1681,Revenue,CCHD,Home Care - Elderly - North,Day Care / Social Activities,Premier Homecare Limited,132.24, 02-Dec-2014
1682,Revenue,CCHD,Home Care - Elderly - North,Other Small Contracts,Premier Homecare Limited,12011.04, 02-Dec-2014
1683,Revenue,CCHD,Day Care - North,Day Care / Social Activities,Premier Homecare Limited,13.68, 02-Dec-2014
1684,Revenue,CCHD,Home care - Elderly MH - North,Other Small Contracts,Premier Homecare Limited,123.12, 02-Dec-2014
1685,Revenue,CCHD,Elderly MH Day Care North,Day Care / Social Activities,Premier Homecare Limited,72.96, 02-Dec-2014
1686,Revenue,CCHD,Home Care - Elderly - North,Day Care / Social Activities,Premier Homecare Limited,136.8, 09-Dec-2014
1687,Revenue,CCHD,Home Care - Elderly - North,Other Small Contracts,Premier Homecare Limited,12591.87, 09-Dec-2014
1688,Revenue,CCHD,Home care - Elderly MH - North,Other Small Contracts,Premier Homecare Limited,127.68, 09-Dec-2014
1689,Revenue,CCHD,Elderly MH Day Care North,Day Care / Social Activities,Premier Homecare Limited,72.96, 09-Dec-2014
1690,Revenue,CCHD,Home Care - Elderly - North,Day Care / Social Activities,Premier Homecare Limited,136.8, 19-Dec-2014
1691,Revenue,CCHD,Home Care - Elderly - North,Other Small Contracts,Premier Homecare Limited,12528.03, 19-Dec-2014
1692,Revenue,CCHD,Home care - Elderly MH - North,Other Small Contracts,Premier Homecare Limited,127.68, 19-Dec-2014
1693,Revenue,CCHD,Elderly MH Day Care North,Day Care / Social Activities,Premier Homecare Limited,72.96, 19-Dec-2014
1694,Revenue,CCHD,Home Care - Elderly - North,Day Care / Social Activities,Premier Homecare Limited,127.68, 23-Dec-2014
1695,Revenue,CCHD,Home Care - Elderly - North,Other Small Contracts,Premier Homecare Limited,12082.04, 23-Dec-2014
1696,Revenue,CCHD,Home care - Elderly MH - North,Other Small Contracts,Premier Homecare Limited,127.68, 23-Dec-2014
1697,Revenue,CCHD,Elderly MH Day Care North,Day Care / Social Activities,Premier Homecare Limited,72.96, 23-Dec-2014
1698,Revenue,CCHD,Home Care - Elderly - South,Day Care / Social Activities,Prestige Nursing,26.28, 23-Dec-2014
1699,Revenue,CCHD,Home Care - Elderly - South,Other Small Contracts,Prestige Nursing,678.9, 23-Dec-2014
1700,Revenue,CCHD,Home Care - Elderly - North,Other Small Contracts,Prestige Nursing,563.58, 23-Dec-2014
1701,Revenue,CCHD,Day Care - South,Day Care / Social Activities,Prestige Nursing,122.64, 23-Dec-2014
1702,Revenue,CCHD,Kingswood Centre - Maple Suite,Agency Staff (Operational)/PCT Pay,Prestige Nursing,1274.28, 24-Dec-2014
1703,Revenue,CCHD,Alexandra Way,Agency Staff (Operational)/PCT Pay,Prestige Nursing,542.59, 11-Dec-2014
1704,Revenue,CCHD,Alexandra Way,Agency Staff (Operational)/PCT Pay,Prestige Nursing,591.56, 30-Dec-2014
1705,Revenue,CCHD,Section 117 Placements MH Younger,Permanent Residential,Proctor Care Home Limited,3519.2, 23-Dec-2014
1706,Revenue,CCHD,Training - Adult Services,Training Expenses,Quantum Property Partnership,452.5, 24-Dec-2014
1707,Revenue,CCHD,Bed Purchasing - North,Permanent Nursing,Ravenswood,2304.2, 23-Dec-2014
1708,Revenue,CCHD,Bed Purchasing - Elderly S117- North,Permanent Residential,Real Life Options,6632.64, 23-Dec-2014
1709,Revenue,CCHD,Breakthrough and Inclusion Work,Other Supplies & Services,Redefine Mentoring Ltd,3968.5, 09-Dec-2014
1710,Revenue,CCHD,Bed Purchasing - Elderly S117- North,Permanent Nursing,Redholme Memory Care Limited,1991.84, 23-Dec-2014
1711,Revenue,CCHD,Bed Purchasing - South,Permanent Nursing,Regent House,2255.28, 23-Dec-2014
1712,Revenue,CCHD,Bed Purchasing - South,Permanent Nursing,Regent House,5179.9, 23-Dec-2014
1713,Revenue,CCHD,Bed Purchasing - South,Permanent Nursing,Regent House,2500.64, 23-Dec-2014
1714,Revenue,CCHD,Bed Purchasing - South,Permanent Nursing,Regent House,2391.04, 23-Dec-2014
1715,Revenue,CCHD,Bed Purchasing - South,Permanent Nursing,Regent House,1670.88, 23-Dec-2014
1716,Revenue,CCHD,Bed Purchasing - South,Permanent Nursing,Regent House,1978.4, 23-Dec-2014
1717,Revenue,CCHD,Bed Purchasing - South,Permanent Nursing,Regent House,2008.44, 23-Dec-2014
1718,Revenue,CCHD,Bed Purchasing - South,Permanent Nursing,Regent House,1726.76, 23-Dec-2014
1719,Revenue,CCHD,Bed Purchasing - South,Permanent Nursing,Regent House,1894.92, 23-Dec-2014
1720,Revenue,CCHD,Swift Dump Code,Permanent Residential,Regent House,4321.83, 23-Dec-2014
1721,Revenue,CCHD,Bed Purchasing - Southmead Hospital,Permanent Nursing,Regent House,1995.04, 23-Dec-2014
1722,Revenue,CCHD,Swift Dump Code,Permanent Residential,Regent House,552, 23-Dec-2014
1723,Revenue,CCHD,Bed Purchasing - North,Permanent Nursing,Regent House,2004.36, 23-Dec-2014
1724,Revenue,CCHD,Bed Purchasing - Southmead Hospital,Permanent Nursing,Regent House,3475.48, 23-Dec-2014
1725,Revenue,CCHD,Bed Purchasing - Southmead Hospital,Permanent Nursing,Regent House,1207.52, 23-Dec-2014
1726,Revenue,CCHD,Bed Purchasing - North,Permanent Nursing,Regent House,2900.71, 23-Dec-2014
1727,Revenue,CCHD,Bed Purchasing - North,Permanent Nursing,Regent House,2137.36, 23-Dec-2014
1728,Revenue,CCHD,Bed Purchasing - South,Permanent Nursing,Regent House,1675.68, 23-Dec-2014
1729,Revenue,CCHD,Bed Purchasing - North,Permanent Nursing,Regent House,2549.44, 23-Dec-2014
1730,Revenue,CCHD,Bed Purchasing - Southmead Hospital,Permanent Nursing,Regent House,1406.44, 23-Dec-2014
1731,Revenue,CCHD,Bed Purchasing - South,Permanent Nursing,Regent House,1668.12, 23-Dec-2014
1732,Revenue,CCHD,Bed Purchasing - North,Permanent Nursing,Regent House,5001.28, 23-Dec-2014
1733,Revenue,CCHD,Bed Purchasing - South,Permanent Nursing,Regent House,1197.6, 23-Dec-2014
1734,Revenue,CCHD,Bed Purchasing - South,Permanent Nursing,Regent House,1280.24, 23-Dec-2014
1735,Revenue,CCHD,Bed Purchasing - South,Permanent Nursing,Regent House,1965.24, 23-Dec-2014
1736,Revenue,CCHD,Bed Purchasing - South,Permanent Residential,Ridgeway House,3502.08, 23-Dec-2014
1737,Revenue,CCHD,Bed Purchasing - South,Permanent Residential,Riverside House,3611.04, 23-Dec-2014
1738,Revenue,CCHD,Bed Purchasing - Southmead Hospital,Permanent Nursing,Riversway Nursing Home,892.6, 23-Dec-2014
1739,Revenue,CCHD,Bed Purchasing - Southmead Hospital,Permanent Nursing,Riversway Nursing Home,2685.28, 23-Dec-2014
1740,Revenue,CCHD,Bed Purchasing - South,Permanent Residential,Rockleaze,1426.8, 23-Dec-2014
1741,Revenue,CCHD,Bed Purchasing - LD S28A- Over 65- South,Permanent Residential,Rockleaze,2082.04, 23-Dec-2014
1742,Revenue,CCHD,Bed Purchasing - South,Permanent Residential,Rockleaze,2414.96, 23-Dec-2014
1743,Revenue,CCHD,Bed Purchasing - South,Permanent Residential,Rockleaze,1426.8, 23-Dec-2014
1744,Revenue,CCHD,Bed Purchasing - Southmead Hospital,Permanent Residential,Rodney House Residential Home,1432.2, 23-Dec-2014
1745,Revenue,CCHD,Supported Living - North,Permanent Residential,Rosealeen Jarrett,2608.04, 12-Dec-2014
1746,Revenue,CCHD,Bed Purchasing - South,Permanent Residential,Rosedale House,1517.92, 23-Dec-2014
1747,Revenue,CCHD,Bed Purchasing - South,Permanent Residential,Rosewood Lodge & Brook House,4569.72, 23-Dec-2014
1748,Revenue,CCHD,Learning Difficulties Development Fund,Other Supplies & Services,Royal Mencap Society,1250, 01-Dec-2014
1749,Revenue,CCHD,Training - Adult Services,Training Expenses,Individual,950, 22-Dec-2014
1750,Revenue,CCHD,Bed Purchasing - South,Permanent Residential,Salters Hill Barn,2039.36, 23-Dec-2014
1751,Revenue,CCHD,Bed Purchasing - Southmead Hospital,Permanent Residential,Sanctuary Care Ltd,1284.2, 23-Dec-2014
1752,Revenue,CCHD,Bed Purchasing - North,Respite Planned - Residential,Sanctuary House  Chamber Court,964, 23-Dec-2014
1753,Revenue,CCHD,Learning Difficulties PSL,Rent,Individual,1650, 01-Dec-2014
1754,Revenue,CCHD,Woodleaze,"Provisions (Food, etc)",School Milk Services Limited,830.07, 24-Dec-2014
1755,Revenue,CCHD,Bed Purchasing - South,Permanent Residential,Scope   Accounts Dept,3073.16, 23-Dec-2014
1756,Revenue,CCHD,Supporting People Programme,Grants to Voluntary Bodies,Second Step Housing Association,13454.42, 01-Dec-2014
1757,Revenue,CCHD,Supporting People Programme,Grants to Voluntary Bodies,Second Step Housing Association,11876.25, 01-Dec-2014
1758,Revenue,CCHD,Day Care - North,Day Care / Social Activities,SeeAbility,1941.93, 01-Dec-2014
1759,Revenue,CCHD,Supported Living - North,Private & Voluntary Home Care,SeeAbility,1298.49, 30-Dec-2014
1760,Revenue,CCHD,Supported Living - North,Private & Voluntary Home Care,SeeAbility,6743.83, 30-Dec-2014
1761,Revenue,CCHD,Supported Living - North,Private & Voluntary Home Care,SeeAbility,1234.2, 30-Dec-2014
1762,Revenue,CCHD,Supported Living - South,Private & Voluntary Home Care,Selborne Care Ltd,2680.54, 04-Dec-2014
1763,Revenue,CCHD,Supported Living - South,Private & Voluntary Home Care,Selborne Care Ltd,653.2, 04-Dec-2014
1764,Revenue,CCHD,Purchase of Non-Res Care - North,Day Care / Social Activities,Selborne Care Ltd,1507.18, 29-Dec-2014
1765,Revenue,CCHD,Supported Living - South,Private & Voluntary Home Care,Selborne Care Ltd,5205.08, 04-Dec-2014
1766,Revenue,CCHD,Supported Living - South,Private & Voluntary Home Care,Selborne Care Ltd,1164.7, 04-Dec-2014
1767,Revenue,CCHD,Supported Living - South,Private & Voluntary Home Care,Selborne Care Ltd,522.56, 04-Dec-2014
1768,Revenue,CCHD,Supported Living - South,Private & Voluntary Home Care,Selborne Care Ltd,4666.22, 04-Dec-2014
1769,Revenue,CCHD,Purchase of Non-Res Care - North,Day Care / Social Activities,Selborne Care Ltd,788.72, 29-Dec-2014
1770,Revenue,CCHD,Supported Living - South,Private & Voluntary Home Care,Selborne Care Ltd,562.84, 04-Dec-2014
1771,Revenue,CCHD,Supported Living - South,Private & Voluntary Home Care,Selborne Care Ltd,1964.28, 04-Dec-2014
1772,Revenue,CCHD,Purchase of Non-Res Care - North,Day Care / Social Activities,Selborne Care Ltd,672.28, 29-Dec-2014
1773,Revenue,CCHD,Supported Living (S28a) South,Private & Voluntary Home Care,Selborne Care Ltd,3376.08, 04-Dec-2014
1774,Revenue,CCHD,Supported Living - South,Private & Voluntary Home Care,Selborne Care Ltd,2638.95, 30-Dec-2014
1775,Revenue,CCHD,Supported Living - South,Private & Voluntary Home Care,Selborne Care Ltd,653.2, 30-Dec-2014
1776,Revenue,CCHD,Purchase of Non-Res Care - North,Day Care / Social Activities,Selborne Care Ltd,1525.28, 30-Dec-2014
1777,Revenue,CCHD,Supported Living - South,Private & Voluntary Home Care,Selborne Care Ltd,5205.08, 30-Dec-2014
1778,Revenue,CCHD,Supported Living - South,Private & Voluntary Home Care,Selborne Care Ltd,1164.3, 30-Dec-2014
1779,Revenue,CCHD,Supported Living - South,Private & Voluntary Home Care,Selborne Care Ltd,522.56, 30-Dec-2014
1780,Revenue,CCHD,Supported Living - South,Private & Voluntary Home Care,Selborne Care Ltd,4697.3, 30-Dec-2014
1781,Revenue,CCHD,Purchase of Non-Res Care - North,Day Care / Social Activities,Selborne Care Ltd,782.32, 30-Dec-2014
1782,Revenue,CCHD,Supported Living - South,Private & Voluntary Home Care,Selborne Care Ltd,562.84, 30-Dec-2014
1783,Revenue,CCHD,Supported Living - South,Private & Voluntary Home Care,Selborne Care Ltd,1980.53, 30-Dec-2014
1784,Revenue,CCHD,Purchase of Non-Res Care - North,Day Care / Social Activities,Selborne Care Ltd,613.03, 30-Dec-2014
1785,Revenue,CCHD,Supported Living (S28a) South,Private & Voluntary Home Care,Selborne Care Ltd,3408.76, 30-Dec-2014
1786,Revenue,CCHD,Bed Purchasing - South,Permanent Residential,Sense,8384.6, 23-Dec-2014
1787,Revenue,CCHD,Tenancy Start Up Scheme,Other Supplies & Services,Individual,1400, 23-Dec-2014
1788,Revenue,CCHD,Hospital Promoting Independence Team,Care Management/Assessment Staff Pay,Seven Resourcing Ltd,1186.25, 02-Dec-2014
1789,Revenue,CCHD,Hospital Promoting Independence Team,Care Management/Assessment Staff Pay,Seven Resourcing Ltd,1202.18, 09-Dec-2014
1790,Revenue,CCHD,Hospital Promoting Independence Team,Care Management/Assessment Staff Pay,Seven Resourcing Ltd,1202.5, 16-Dec-2014
1791,Revenue,CCHD,Hospital Promoting Independence Team,Care Management/Assessment Staff Pay,Seven Resourcing Ltd,1202.5, 24-Dec-2014
1792,Revenue,CCHD,Bed Purchasing - South,Permanent Residential,Shaldon House (Positive Care Ltd),2226.92, 23-Dec-2014
1793,Revenue,CCHD,Bed Purchasing - South,Permanent Nursing,Shaw Healthcare Ltd,2085.32, 23-Dec-2014
1794,Revenue,CCHD,Bed purchasing - S28A Under 65 - South,Permanent Residential,Shaw Healthcare Ltd,9968.4, 23-Dec-2014
1795,Revenue,CCHD,Bed purchasing - S28A Under 65 - South,Permanent Residential,Shaw Healthcare Ltd,9792, 23-Dec-2014
1796,Revenue,CCHD,Bed Purchasing - South,Permanent Residential,Shaw Healthcare Ltd,9905.52, 23-Dec-2014
1797,Revenue,CCHD,Bed Purchasing - South,Permanent Residential,Shaw Healthcare Ltd,3962.92, 23-Dec-2014
1798,Revenue,CCHD,Bed Purchasing - S28A - Over 65- North,Permanent Residential,Shaw Healthcare Ltd,4299.04, 23-Dec-2014
1799,Revenue,CCHD,Bed Purchasing - S28A - Over 65- North,Permanent Residential,Shaw Healthcare Ltd,4270.44, 23-Dec-2014
1800,Revenue,CCHD,Bed Purchasing - LD S28A- Over 65- South,Permanent Residential,Shaw Healthcare Ltd,4831.08, 23-Dec-2014
1801,Revenue,CCHD,Bed Purchasing - LD S28A- Over 65- South,Permanent Residential,Shaw Healthcare Ltd,4384.44, 23-Dec-2014
1802,Revenue,CCHD,Bed Purchasing - S28A - Over 65- North,Permanent Residential,Shaw Healthcare Ltd,8704.56, 23-Dec-2014
1803,Revenue,CCHD,Bed Purchasing - North,Permanent Residential,Shaw Healthcare Ltd,4146.08, 23-Dec-2014
1804,Revenue,CCHD,Bed Purchasing - Southmead Hospital,Permanent Residential,Shaw Healthcare Ltd,1134.52, 23-Dec-2014
1805,Revenue,CCHD,Day Care - North,Day Care / Social Activities,Silva Care Limited,1147.19, 05-Dec-2014
1806,Revenue,CCHD,Supported Living - South,Private & Voluntary Home Care,Silva Care Limited,4415.44, 24-Dec-2014
1807,Revenue,CCHD,Supported Living - South,Private & Voluntary Home Care,Silva Care Limited,4415.44, 24-Dec-2014
1808,Revenue,CCHD,Supported Living - South,Private & Voluntary Home Care,Silva Care Limited,4415.44, 24-Dec-2014
1809,Revenue,CCHD,Supported Living - South,Private & Voluntary Home Care,Silva Care Limited,4415.44, 24-Dec-2014
1810,Revenue,CCHD,Social Lettings Agency,Fees - General,Individual,18.31, 11-Dec-2014
1811,Revenue,CCHD,Social Lettings Agency,Other Supplies & Services,Individual,622.41, 11-Dec-2014
1812,Revenue,CCHD,Social Lettings Agency,Other Supplies & Services,Individual,640.72, 03-Dec-2014
1813,Revenue,CCHD,Community Support - South,Preventative Assistance,Sirona Care & Health CIC,3340, 03-Dec-2014
1814,Revenue,CCHD,Alexandra Way,Refuse Collection Charges,SITA UK LTD,742.04, 30-Dec-2014
1815,Revenue,CCHD,18-25 Year Olds,Permanent Residential,Small House Homes Limited,18014.64, 23-Dec-2014
1816,Revenue,CCHD,Home Care - Elderly - North,Supported Living,Smile Ind Living Support Limited,3028.12, 23-Dec-2014
1817,Revenue,CCHD,Home Care - Elderly - North,Supported Living,Smile Ind Living Support Limited,3028.12, 23-Dec-2014
1818,Revenue,CCHD,Home Care - Elderly - North,Supported Living,Smile Ind Living Support Limited,3028.12, 23-Dec-2014
1819,Revenue,CCHD,Home Care - Elderly - South,Day Care / Social Activities,Smile Independent Living Support Limited,286.44, 01-Dec-2014
1820,Revenue,CCHD,Home Care - Elderly - South,Other Small Contracts,Smile Independent Living Support Limited,572.88, 01-Dec-2014
1821,Revenue,CCHD,Home Care - Elderly - South,Supported Living,Smile Independent Living Support Limited,415.8, 01-Dec-2014
1822,Revenue,CCHD,Home Care - Elderly - North,Day Care / Social Activities,Smile Independent Living Support Limited,267.96, 01-Dec-2014
1823,Revenue,CCHD,Home Care - Elderly - North,Other Small Contracts,Smile Independent Living Support Limited,628.32, 01-Dec-2014
1824,Revenue,CCHD,Home Care - Elderly - North,Supported Living,Smile Independent Living Support Limited,1201.2, 01-Dec-2014
1825,Revenue,CCHD,Home Care - Elderly - South,Day Care / Social Activities,Smile Independent Living Support Limited,291.06, 08-Dec-2014
1826,Revenue,CCHD,Home Care - Elderly - South,Other Small Contracts,Smile Independent Living Support Limited,531.3, 08-Dec-2014
1827,Revenue,CCHD,Home Care - Elderly - South,Supported Living,Smile Independent Living Support Limited,411.18, 08-Dec-2014
1828,Revenue,CCHD,Home Care - Elderly - North,Day Care / Social Activities,Smile Independent Living Support Limited,286.44, 08-Dec-2014
1829,Revenue,CCHD,Home Care - Elderly - North,Other Small Contracts,Smile Independent Living Support Limited,462, 08-Dec-2014
1830,Revenue,CCHD,Home Care - Elderly - North,Supported Living,Smile Independent Living Support Limited,1164.24, 08-Dec-2014
1831,Revenue,CCHD,Home Care - Elderly - South,Day Care / Social Activities,Smile Independent Living Support Limited,281.82, 15-Dec-2014
1832,Revenue,CCHD,Home Care - Elderly - South,Other Small Contracts,Smile Independent Living Support Limited,364.98, 15-Dec-2014
1833,Revenue,CCHD,Home Care - Elderly - South,Supported Living,Smile Independent Living Support Limited,378.84, 15-Dec-2014
1834,Revenue,CCHD,Home Care - Elderly - North,Day Care / Social Activities,Smile Independent Living Support Limited,286.44, 15-Dec-2014
1835,Revenue,CCHD,Home Care - Elderly - North,Other Small Contracts,Smile Independent Living Support Limited,466.62, 15-Dec-2014
1836,Revenue,CCHD,Home Care - Elderly - North,Supported Living,Smile Independent Living Support Limited,1155, 15-Dec-2014
1837,Revenue,CCHD,Home Care - Elderly - South,Day Care / Social Activities,Smile Independent Living Support Limited,739.2, 22-Dec-2014
1838,Revenue,CCHD,Home Care - Elderly - South,Other Small Contracts,Smile Independent Living Support Limited,392.7, 22-Dec-2014
1839,Revenue,CCHD,Home Care - Elderly - North,Day Care / Social Activities,Smile Independent Living Support Limited,766.92, 22-Dec-2014
1840,Revenue,CCHD,Home Care - Elderly - North,Other Small Contracts,Smile Independent Living Support Limited,466.62, 22-Dec-2014
1841,Revenue,CCHD,Home Care - Elderly - North,Supported Living,Smile Independent Living Support Limited,517.44, 22-Dec-2014
1842,Revenue,CCHD,Home Care - Elderly - South,Day Care / Social Activities,Smile Independent Living Support Limited,753.06, 24-Dec-2014
1843,Revenue,CCHD,Home Care - Elderly - South,Other Small Contracts,Smile Independent Living Support Limited,425.04, 24-Dec-2014
1844,Revenue,CCHD,Home Care - Elderly - North,Day Care / Social Activities,Smile Independent Living Support Limited,1469.16, 24-Dec-2014
1845,Revenue,CCHD,Home Care - Elderly - North,Supported Living,Smile Independent Living Support Limited,300.3, 24-Dec-2014
1846,Revenue,CCHD,Information Systems - Software,Software Support & Maintenance,SoftBox Limited,3754, 10-Dec-2014
1847,Revenue,CCHD,Health Inequalities,Project Funding,Southern Brooks Community Partnership,29974, 24-Dec-2014
1848,Revenue,CCHD,SLA Grants - Support Serv,Grants to Voluntary Bodies,Sporting Memories Network CIC,5569.64, 12-Dec-2014
1849,Revenue,CCHD,Community Support - North,Preventative Assistance,Sports 1st Limited,660, 22-Dec-2014
1850,Revenue,CCHD,Breakthrough and Inclusion Work,Other Supplies & Services,Sports 1st Limited,2598, 02-Dec-2014
1851,Revenue,CCHD,Bed Purchasing - South,Permanent Residential,St Brigas,2086.44, 23-Dec-2014
1852,Revenue,CCHD,Bed Purchasing - South,Permanent Residential,St Brigas,3016.52, 23-Dec-2014
1853,Revenue,CCHD,Bed Purchasing - South,Permanent Residential,St Brigas,2033.44, 23-Dec-2014
